{"text_format":"3","workbook":"xlsx","n_sheets":51,"sheets":["Contents","Campus Totals","AOP","ATO","BAB","BEV","BSB","CCH","CFC","CGU","CGV1","CGV2","CPB","CRH","CTC","DCH","DZH","ELC","ENG","FFH","I2C","IMF","JRC","KDH","LIB","MOR","MSB","NCH","NUR","OKT","OPB","PPB","ROB","SCH600","SCH602","SCH604","SCH606","SCH608","SCH700","SCH702","SCH704","SCH706","SKH","SNH","SPR","SSB","SST","SWI","UFC","VBH","WIL"],"not_rendered":{"images":1},"read":"whole","date_system":"1900"}

{"sheet":"Contents","index":0,"n_rows":64,"n_cols":11,"rows_kept":64}
[]
[]
[null,"Link to Building Equipment Detail Pages"]
[]
[null,"Campus Total Counts and Prices (Calculated from BLD Pages)",{"$nulls":4},"MOR - Morton Hall"]
[null,"AOP - Alpha Omicron Pi",{"$nulls":4},"MSB - Material Science Building"]
[null,"ATO - Alpha Tau Omega",{"$nulls":4},"NCH - North Campus Housing"]
[null,"BAB - Business Administratio Building",{"$nulls":4},"NUR - Nursing Building"]
[null,"BEV - Bevill Center",{"$nulls":4},"OKT - Olin King Technology Hall"]
[null,"BSB - Business Services Building",{"$nulls":4},"OPB - Optics Building"]
[null,"CCH - Central Campus Housing",{"$nulls":4},"PPB - Physical Plant Building"]
[null,"CFC - Charger Food Court",{"$nulls":4},"ROB - Roberts Hall"]
[null,"CGU - Charger Union",{"$nulls":4},"SCH600 - Southeast Campus Housing 600"]
[null,"CGV1 - Charger Village I",{"$nulls":4},"SCH602 - Southeast Campus Housing 602"]
[null,"CGV2 - Charger Village II",{"$nulls":4},"SCH604 - Southeast Campus Housing 604"]
[null,"CPB - Central Plant Building",{"$nulls":4},"SCH606 - Southeast Campus Housing 606"]
[null,"CRH - Cramer Hall",{"$nulls":4},"SCH608 - Southeast Campus Housing 608"]
[null,"CTC - Conference and Training Center",{"$nulls":4},"SCH700 - Southeast Campus Housing 700"]
[null,"DCH - Delta Chi House",{"$nulls":4},"SCH702 - Southeast Campus Housing 702"]
[null,"DZH - Delta Zeta House",{"$nulls":4},"SCH704 - Southeast Campus Housing 704"]
[null,"ELC - Early Learning Center",{"$nulls":4},"SCH706 - Southeast Campus Housing 706"]
[null,"ENG - Engineering Building",{"$nulls":4},"SKH - Shelbie King Hall"]
[null,"FFH - Frank Franz Hall",{"$nulls":4},"SNH - Sigma Nu House"]
[null,"I2C - Innovation to Creation",{"$nulls":4},"SPR - Spragins Hall"]
[null,"IMF - Intermodal Facility",{"$nulls":4},"SSB - Student Services Building"]
[null,"JRC - Johnson Research Center",{"$nulls":4},"SST - Shelby Center for Science and Technology"]
[null,"KDH - Kappa Delta House",{"$nulls":4},"SWI - SWIRLL - Severe Weather Institute"]
[null,"LIB - Salmon Library",{"$nulls":4},"UFC - University Fitness Center"]
[{"$nulls":6},"VBH - Von Braun Research Hall"]
[{"$nulls":6},"WIL - Wilson Hall"]
[]
[]
[{"$nulls":3},"Please provide pricing/rates for the services below:"]
[]
[{"$nulls":3},"General Service Rate per Hour",0]
[{"$nulls":3},"After Hours Labor per Hour",0]
[{"$nulls":3},"Travel Fee or Trip Charge",0]
[{"$nulls":3},"Equipment Markup Percentage Over Cost",{"v":0,"d":"0%"}]
[]
[]
[]
["Additional Fire Extinguisher and Exit Light Locations",{"$nulls":7},"Total Extinguisher Counts by Type and Size"]
[{"$nulls":8},"Type","Size","Count"]
[{"$nulls":3},"Central Receiving",9,{"$nulls":3},"ABC ",2.5,357]
[{"$nulls":3},"   Receiving Exit Lights",4,{"$nulls":3},"ABC ",5,72]
[{"$nulls":3},"   Receiving Emergency Lighs",2,{"$nulls":3},"ABC ",10,1195]
[{"$nulls":3},"University Park",7,{"$nulls":3},"ABC ",20,10]
[{"$nulls":3},"Charger Park",9,{"$nulls":3},"Co2",5,68]
[{"$nulls":3},"Credit Union",2,{"$nulls":3},"Co2",10,12]
[{"$nulls":3},"Executive Plaza Suite 208",5,{"$nulls":3},"Co2",15,19]
[{"$nulls":3},"Fleet Vehicles",71,{"$nulls":3},"Co2",20,4]
[{"$nulls":3},"Off Campus Housing",13,{"$nulls":3},"CleanGuard",5,1]
[{"$nulls":3},"Pratt Whitney",3,{"$nulls":3},"D",30,1]
[{"$nulls":3},"WLRH Radio",4,{"$nulls":3},"FE36",9,2]
[{"$nulls":3},"   WLRH Exit Lights",7,{"$nulls":3},"Halon",9,9]
[{"$nulls":3},"   WLRH Emergency Lights",2,{"$nulls":3},"Halon",11,3]
[{"$nulls":4},{"$f":"SUM(E44,E47,E47:E54)","v":130},{"$nulls":3},"Halo-Tron",5,2]
[{"$nulls":8},"Halo-Tron",11,2]
[null,"Please quote for inpections at 3, 5, 6 and 12 year cycles as outlined per NFPA 10.",{"$nulls":6},"Halo-Tron",13,3]
[{"$nulls":8},"WaterMist",2.5,1]
[{"$nulls":8},"WaterMist",6,1]
[{"$nulls":8},"WetChem",6,1]
[{"$nulls":8},"Unknown",null,28]
[{"$nulls":10},{"$f":"SUM(K44:K63)","v":1791}]

{"sheet":"Campus Totals","index":1,"n_rows":49,"n_cols":7,"rows_kept":49}
[]
["Equipment to bid for Inspection Testing and Maintenance (ITM) - Campus Totals",{"$nulls":4},"Back to Contents"]
[]
[1,"Fire Alarm (Annual)",{"$nulls":4},"Total Bid Price"]
[]
[null,"Device Counts",null,"Smoke Detectors",{"$f":"SUM(AOP!E6,ATO!E6,BAB!E6,BEV!E6,BSB!E6,CCH!E6,CFC!E6,CGU!E6,'CGV1'!E6,'CGV2'!E6,CPB!E6,CRH!E6,CTC!E6,DCH!E6,DZH!E6,ELC!E6,ENG!E6,FFH!E6,I2C!E6,IMF!E6,JRC!E6,KDH!E6,LIB!E6,MOR!E6,MSB!E6,NCH!E6,NUR!E6,OKT!E6,OPB!E6,PPB!E6,ROB!E6,'SCH600'!E6,'SCH602'!E6,'SCH604'!E6,'SCH606'!E6,'SCH608'!E6,'SCH700'!E6,'SCH702'!E6,'SCH704'!E6,'SCH706'!E6,SKH!E6,SNH!E6,SPR!E6,SSB!E6,SST!E6,SWI!E6,UFC!E6,VBH!E6,WIL!E6)","v":5646},null,{"$f":"SUM(AOP!G6,ATO!G6,BAB!G6,BEV!G6,BSB!G6,CCH!G6,CFC!G6,CGU!G6,'CGV1'!G6,'CGV2'!G6,CPB!G6,CRH!G6,CTC!G6,DCH!G6,DZH!G6,ELC!G6,ENG!G6,FFH!G6,I2C!G6,IMF!G6,JRC!G6,KDH!G6,LIB!G6,MOR!G6,MSB!G6,NCH!G6,NUR!G6,OKT!G6,OPB!G6,PPB!G6,ROB!G6,'SCH600'!G6,'SCH602'!G6,'SCH604'!G6,'SCH606'!G6,'SCH608'!G6,'SCH700'!G6,'SCH702'!G6,'SCH704'!G6,'SCH706'!G6,SKH!G6,SNH!G6,SPR!G6,SSB!G6,SST!G6,SWI!G6,UFC!G6,VBH!G6,WIL!G6)","v":{"v":0,"d":"$0.00"}}]
[{"$nulls":3},"Heat Detectors",{"$f":"SUM(AOP!E7,ATO!E7,BAB!E7,BEV!E7,BSB!E7,CCH!E7,CFC!E7,CGU!E7,'CGV1'!E7,'CGV2'!E7,CPB!E7,CRH!E7,CTC!E7,DCH!E7,DZH!E7,ELC!E7,ENG!E7,FFH!E7,I2C!E7,IMF!E7,JRC!E7,KDH!E7,LIB!E7,MOR!E7,MSB!E7,NCH!E7,NUR!E7,OKT!E7,OPB!E7,PPB!E7,ROB!E7,'SCH600'!E7,'SCH602'!E7,'SCH604'!E7,'SCH606'!E7,'SCH608'!E7,'SCH700'!E7,'SCH702'!E7,'SCH704'!E7,'SCH706'!E7,SKH!E7,SNH!E7,SPR!E7,SSB!E7,SST!E7,SWI!E7,UFC!E7,VBH!E7,WIL!E7)","v":655},null,{"$f":"SUM(AOP!G7,ATO!G7,BAB!G7,BEV!G7,BSB!G7,CCH!G7,CFC!G7,CGU!G7,'CGV1'!G7,'CGV2'!G7,CPB!G7,CRH!G7,CTC!G7,DCH!G7,DZH!G7,ELC!G7,ENG!G7,FFH!G7,I2C!G7,IMF!G7,JRC!G7,KDH!G7,LIB!G7,MOR!G7,MSB!G7,NCH!G7,NUR!G7,OKT!G7,OPB!G7,PPB!G7,ROB!G7,'SCH600'!G7,'SCH602'!G7,'SCH604'!G7,'SCH606'!G7,'SCH608'!G7,'SCH700'!G7,'SCH702'!G7,'SCH704'!G7,'SCH706'!G7,SKH!G7,SNH!G7,SPR!G7,SSB!G7,SST!G7,SWI!G7,UFC!G7,VBH!G7,WIL!G7)","v":{"v":0,"d":"$0.00"}}]
[{"$nulls":3},"Duct Detectors",{"$f":"SUM(AOP!E8,ATO!E8,BAB!E8,BEV!E8,BSB!E8,CCH!E8,CFC!E8,CGU!E8,'CGV1'!E8,'CGV2'!E8,CPB!E8,CRH!E8,CTC!E8,DCH!E8,DZH!E8,ELC!E8,ENG!E8,FFH!E8,I2C!E8,IMF!E8,JRC!E8,KDH!E8,LIB!E8,MOR!E8,MSB!E8,NCH!E8,NUR!E8,OKT!E8,OPB!E8,PPB!E8,ROB!E8,'SCH600'!E8,'SCH602'!E8,'SCH604'!E8,'SCH606'!E8,'SCH608'!E8,'SCH700'!E8,'SCH702'!E8,'SCH704'!E8,'SCH706'!E8,SKH!E8,SNH!E8,SPR!E8,SSB!E8,SST!E8,SWI!E8,UFC!E8,VBH!E8,WIL!E8)","v":669},null,{"$f":"SUM(AOP!G8,ATO!G8,BAB!G8,BEV!G8,BSB!G8,CCH!G8,CFC!G8,CGU!G8,'CGV1'!G8,'CGV2'!G8,CPB!G8,CRH!G8,CTC!G8,DCH!G8,DZH!G8,ELC!G8,ENG!G8,FFH!G8,I2C!G8,IMF!G8,JRC!G8,KDH!G8,LIB!G8,MOR!G8,MSB!G8,NCH!G8,NUR!G8,OKT!G8,OPB!G8,PPB!G8,ROB!G8,'SCH600'!G8,'SCH602'!G8,'SCH604'!G8,'SCH606'!G8,'SCH608'!G8,'SCH700'!G8,'SCH702'!G8,'SCH704'!G8,'SCH706'!G8,SKH!G8,SNH!G8,SPR!G8,SSB!G8,SST!G8,SWI!G8,UFC!G8,VBH!G8,WIL!G8)","v":{"v":0,"d":"$0.00"}}]
[{"$nulls":3},"Pull Stations",{"$f":"SUM(AOP!E9,ATO!E9,BAB!E9,BEV!E9,BSB!E9,CCH!E9,CFC!E9,CGU!E9,'CGV1'!E9,'CGV2'!E9,CPB!E9,CRH!E9,CTC!E9,DCH!E9,DZH!E9,ELC!E9,ENG!E9,FFH!E9,I2C!E9,IMF!E9,JRC!E9,KDH!E9,LIB!E9,MOR!E9,MSB!E9,NCH!E9,NUR!E9,OKT!E9,OPB!E9,PPB!E9,ROB!E9,'SCH600'!E9,'SCH602'!E9,'SCH604'!E9,'SCH606'!E9,'SCH608'!E9,'SCH700'!E9,'SCH702'!E9,'SCH704'!E9,'SCH706'!E9,SKH!E9,SNH!E9,SPR!E9,SSB!E9,SST!E9,SWI!E9,UFC!E9,VBH!E9,WIL!E9)","v":695},null,{"$f":"SUM(AOP!G9,ATO!G9,BAB!G9,BEV!G9,BSB!G9,CCH!G9,CFC!G9,CGU!G9,'CGV1'!G9,'CGV2'!G9,CPB!G9,CRH!G9,CTC!G9,DCH!G9,DZH!G9,ELC!G9,ENG!G9,FFH!G9,I2C!G9,IMF!G9,JRC!G9,KDH!G9,LIB!G9,MOR!G9,MSB!G9,NCH!G9,NUR!G9,OKT!G9,OPB!G9,PPB!G9,ROB!G9,'SCH600'!G9,'SCH602'!G9,'SCH604'!G9,'SCH606'!G9,'SCH608'!G9,'SCH700'!G9,'SCH702'!G9,'SCH704'!G9,'SCH706'!G9,SKH!G9,SNH!G9,SPR!G9,SSB!G9,SST!G9,SWI!G9,UFC!G9,VBH!G9,WIL!G9)","v":{"v":0,"d":"$0.00"}}]
[{"$nulls":3},"Relay (Aux Control Functions)",{"$f":"SUM(AOP!E10,ATO!E10,BAB!E10,BEV!E10,BSB!E10,CCH!E10,CFC!E10,CGU!E10,'CGV1'!E10,'CGV2'!E10,CPB!E10,CRH!E10,CTC!E10,DCH!E10,DZH!E10,ELC!E10,ENG!E10,FFH!E10,I2C!E10,IMF!E10,JRC!E10,KDH!E10,LIB!E10,MOR!E10,MSB!E10,NCH!E10,NUR!E10,OKT!E10,OPB!E10,PPB!E10,ROB!E10,'SCH600'!E10,'SCH602'!E10,'SCH604'!E10,'SCH606'!E10,'SCH608'!E10,'SCH700'!E10,'SCH702'!E10,'SCH704'!E10,'SCH706'!E10,SKH!E10,SNH!E10,SPR!E10,SSB!E10,SST!E10,SWI!E10,UFC!E10,VBH!E10,WIL!E10)","v":716},null,{"$f":"SUM(AOP!G10,ATO!G10,BAB!G10,BEV!G10,BSB!G10,CCH!G10,CFC!G10,CGU!G10,'CGV1'!G10,'CGV2'!G10,CPB!G10,CRH!G10,CTC!G10,DCH!G10,DZH!G10,ELC!G10,ENG!G10,FFH!G10,I2C!G10,IMF!G10,JRC!G10,KDH!G10,LIB!G10,MOR!G10,MSB!G10,NCH!G10,NUR!G10,OKT!G10,OPB!G10,PPB!G10,ROB!G10,'SCH600'!G10,'SCH602'!G10,'SCH604'!G10,'SCH606'!G10,'SCH608'!G10,'SCH700'!G10,'SCH702'!G10,'SCH704'!G10,'SCH706'!G10,SKH!G10,SNH!G10,SPR!G10,SSB!G10,SST!G10,SWI!G10,UFC!G10,VBH!G10,WIL!G10)","v":{"v":0,"d":"$0.00"}}]
[{"$nulls":3},"Waterflow",{"$f":"SUM(AOP!E11,ATO!E11,BAB!E11,BEV!E11,BSB!E11,CCH!E11,CFC!E11,CGU!E11,'CGV1'!E11,'CGV2'!E11,CPB!E11,CRH!E11,CTC!E11,DCH!E11,DZH!E11,ELC!E11,ENG!E11,FFH!E11,I2C!E11,IMF!E11,JRC!E11,KDH!E11,LIB!E11,MOR!E11,MSB!E11,NCH!E11,NUR!E11,OKT!E11,OPB!E11,PPB!E11,ROB!E11,'SCH600'!E11,'SCH602'!E11,'SCH604'!E11,'SCH606'!E11,'SCH608'!E11,'SCH700'!E11,'SCH702'!E11,'SCH704'!E11,'SCH706'!E11,SKH!E11,SNH!E11,SPR!E11,SSB!E11,SST!E11,SWI!E11,UFC!E11,VBH!E11,WIL!E11)","v":173},null,{"$f":"SUM(AOP!G11,ATO!G11,BAB!G11,BEV!G11,BSB!G11,CCH!G11,CFC!G11,CGU!G11,'CGV1'!G11,'CGV2'!G11,CPB!G11,CRH!G11,CTC!G11,DCH!G11,DZH!G11,ELC!G11,ENG!G11,FFH!G11,I2C!G11,IMF!G11,JRC!G11,KDH!G11,LIB!G11,MOR!G11,MSB!G11,NCH!G11,NUR!G11,OKT!G11,OPB!G11,PPB!G11,ROB!G11,'SCH600'!G11,'SCH602'!G11,'SCH604'!G11,'SCH606'!G11,'SCH608'!G11,'SCH700'!G11,'SCH702'!G11,'SCH704'!G11,'SCH706'!G11,SKH!G11,SNH!G11,SPR!G11,SSB!G11,SST!G11,SWI!G11,UFC!G11,VBH!G11,WIL!G11)","v":{"v":0,"d":"$0.00"}}]
[{"$nulls":3},"Tamper Valves",{"$f":"SUM(AOP!E12,ATO!E12,BAB!E12,BEV!E12,BSB!E12,CCH!E12,CFC!E12,CGU!E12,'CGV1'!E12,'CGV2'!E12,CPB!E12,CRH!E12,CTC!E12,DCH!E12,DZH!E12,ELC!E12,ENG!E12,FFH!E12,I2C!E12,IMF!E12,JRC!E12,KDH!E12,LIB!E12,MOR!E12,MSB!E12,NCH!E12,NUR!E12,OKT!E12,OPB!E12,PPB!E12,ROB!E12,'SCH600'!E12,'SCH602'!E12,'SCH604'!E12,'SCH606'!E12,'SCH608'!E12,'SCH700'!E12,'SCH702'!E12,'SCH704'!E12,'SCH706'!E12,SKH!E12,SNH!E12,SPR!E12,SSB!E12,SST!E12,SWI!E12,UFC!E12,VBH!E12,WIL!E12)","v":250},null,{"$f":"SUM(AOP!G12,ATO!G12,BAB!G12,BEV!G12,BSB!G12,CCH!G12,CFC!G12,CGU!G12,'CGV1'!G12,'CGV2'!G12,CPB!G12,CRH!G12,CTC!G12,DCH!G12,DZH!G12,ELC!G12,ENG!G12,FFH!G12,I2C!G12,IMF!G12,JRC!G12,KDH!G12,LIB!G12,MOR!G12,MSB!G12,NCH!G12,NUR!G12,OKT!G12,OPB!G12,PPB!G12,ROB!G12,'SCH600'!G12,'SCH602'!G12,'SCH604'!G12,'SCH606'!G12,'SCH608'!G12,'SCH700'!G12,'SCH702'!G12,'SCH704'!G12,'SCH706'!G12,SKH!G12,SNH!G12,SPR!G12,SSB!G12,SST!G12,SWI!G12,UFC!G12,VBH!G12,WIL!G12)","v":{"v":0,"d":"$0.00"}}]
[{"$nulls":3},"Kitchen Hood",{"$f":"SUM(AOP!E13,ATO!E13,BAB!E13,BEV!E13,BSB!E13,CCH!E13,CFC!E13,CGU!E13,'CGV1'!E13,'CGV2'!E13,CPB!E13,CRH!E13,CTC!E13,DCH!E13,DZH!E13,ELC!E13,ENG!E13,FFH!E13,I2C!E13,IMF!E13,JRC!E13,KDH!E13,LIB!E13,MOR!E13,MSB!E13,NCH!E13,NUR!E13,OKT!E13,OPB!E13,PPB!E13,ROB!E13,'SCH600'!E13,'SCH602'!E13,'SCH604'!E13,'SCH606'!E13,'SCH608'!E13,'SCH700'!E13,'SCH702'!E13,'SCH704'!E13,'SCH706'!E13,SKH!E13,SNH!E13,SPR!E13,SSB!E13,SST!E13,SWI!E13,UFC!E13,VBH!E13,WIL!E13)","v":22},null,{"$f":"SUM(AOP!G13,ATO!G13,BAB!G13,BEV!G13,BSB!G13,CCH!G13,CFC!G13,CGU!G13,'CGV1'!G13,'CGV2'!G13,CPB!G13,CRH!G13,CTC!G13,DCH!G13,DZH!G13,ELC!G13,ENG!G13,FFH!G13,I2C!G13,IMF!G13,JRC!G13,KDH!G13,LIB!G13,MOR!G13,MSB!G13,NCH!G13,NUR!G13,OKT!G13,OPB!G13,PPB!G13,ROB!G13,'SCH600'!G13,'SCH602'!G13,'SCH604'!G13,'SCH606'!G13,'SCH608'!G13,'SCH700'!G13,'SCH702'!G13,'SCH704'!G13,'SCH706'!G13,SKH!G13,SNH!G13,SPR!G13,SSB!G13,SST!G13,SWI!G13,UFC!G13,VBH!G13,WIL!G13)","v":{"v":0,"d":"$0.00"}}]
[{"$nulls":3},"Notification Appliances","49 Bld",null,{"$f":"SUM(AOP!G14,ATO!G14,BAB!G14,BEV!G14,BSB!G14,CCH!G14,CFC!G14,CGU!G14,'CGV1'!G14,'CGV2'!G14,CPB!G14,CRH!G14,CTC!G14,DCH!G14,DZH!G14,ELC!G14,ENG!G14,FFH!G14,I2C!G14,IMF!G14,JRC!G14,KDH!G14,LIB!G14,MOR!G14,MSB!G14,NCH!G14,NUR!G14,OKT!G14,OPB!G14,PPB!G14,ROB!G14,'SCH600'!G14,'SCH602'!G14,'SCH604'!G14,'SCH606'!G14,'SCH608'!G14,'SCH700'!G14,'SCH702'!G14,'SCH704'!G14,'SCH706'!G14,SKH!G14,SNH!G14,SPR!G14,SSB!G14,SST!G14,SWI!G14,UFC!G14,VBH!G14,WIL!G14)","v":{"v":0,"d":"$0.00"}}]
[{"$nulls":3},"Smoke Sensitivity Subtotal (Year 1/3/5)",{"$f":"SUM(E6+E8)","v":6315},null,{"$f":"SUM(AOP!G15,ATO!G15,BAB!G15,BEV!G15,BSB!G15,CCH!G15,CFC!G15,CGU!G15,'CGV1'!G15,'CGV2'!G15,CPB!G15,CRH!G15,CTC!G15,DCH!G15,DZH!G15,ELC!G15,ENG!G15,FFH!G15,I2C!G15,IMF!G15,JRC!G15,KDH!G15,LIB!G15,MOR!G15,MSB!G15,NCH!G15,NUR!G15,OKT!G15,OPB!G15,PPB!G15,ROB!G15,'SCH600'!G15,'SCH602'!G15,'SCH604'!G15,'SCH606'!G15,'SCH608'!G15,'SCH700'!G15,'SCH702'!G15,'SCH704'!G15,'SCH706'!G15,SKH!G15,SNH!G15,SPR!G15,SSB!G15,SST!G15,SWI!G15,UFC!G15,VBH!G15,WIL!G15)","v":{"v":0,"d":"$0.00"}}]
[{"$nulls":3},"FA Inspection - Non-Sensitivity Subtotal(Year 2/4)",null,null,{"$f":"SUM(AOP!G16,ATO!G16,BAB!G16,BEV!G16,BSB!G16,CCH!G16,CFC!G16,CGU!G16,'CGV1'!G16,'CGV2'!G16,CPB!G16,CRH!G16,CTC!G16,DCH!G16,DZH!G16,ELC!G16,ENG!G16,FFH!G16,I2C!G16,IMF!G16,JRC!G16,KDH!G16,LIB!G16,MOR!G16,MSB!G16,NCH!G16,NUR!G16,OKT!G16,OPB!G16,PPB!G16,ROB!G16,'SCH600'!G16,'SCH602'!G16,'SCH604'!G16,'SCH606'!G16,'SCH608'!G16,'SCH700'!G16,'SCH702'!G16,'SCH704'!G16,'SCH706'!G16,SKH!G16,SNH!G16,SPR!G16,SSB!G16,SST!G16,SWI!G16,UFC!G16,VBH!G16,WIL!G16)","v":{"v":0,"d":"$0.00"}}]
[]
[]
[2,"Mass Notification (Semi-Annual)"]
[]
[{"$nulls":3},"FA Signals received at UAHPD","49 Bld",null,{"$f":"SUM(AOP!G21,ATO!G21,BAB!G21,BEV!G21,BSB!G21,CCH!G21,CFC!G21,CGU!G21,'CGV1'!G21,'CGV2'!G21,CPB!G21,CRH!G21,CTC!G21,DCH!G21,DZH!G21,ELC!G21,ENG!G21,FFH!G21,I2C!G21,IMF!G21,JRC!G21,KDH!G21,LIB!G21,MOR!G21,MSB!G21,NCH!G21,NUR!G21,OKT!G21,OPB!G21,PPB!G21,ROB!G21,'SCH600'!G21,'SCH602'!G21,'SCH604'!G21,'SCH606'!G21,'SCH608'!G21,'SCH700'!G21,'SCH702'!G21,'SCH704'!G21,'SCH706'!G21,SKH!G21,SNH!G21,SPR!G21,SSB!G21,SST!G21,SWI!G21,UFC!G21,VBH!G21,WIL!G21)","v":{"v":0,"d":"$0.00"}}]
[null,"(7 msg x Bld w/MNS)",null,"All MNS messages received at Bld",161,null,{"$f":"SUM(AOP!G22,ATO!G22,BAB!G22,BEV!G22,BSB!G22,CCH!G22,CFC!G22,CGU!G22,'CGV1'!G22,'CGV2'!G22,CPB!G22,CRH!G22,CTC!G22,DCH!G22,DZH!G22,ELC!G22,ENG!G22,FFH!G22,I2C!G22,IMF!G22,JRC!G22,KDH!G22,LIB!G22,MOR!G22,MSB!G22,NCH!G22,NUR!G22,OKT!G22,OPB!G22,PPB!G22,ROB!G22,'SCH600'!G22,'SCH602'!G22,'SCH604'!G22,'SCH606'!G22,'SCH608'!G22,'SCH700'!G22,'SCH702'!G22,'SCH704'!G22,'SCH706'!G22,SKH!G22,SNH!G22,SPR!G22,SSB!G22,SST!G22,SWI!G22,UFC!G22,VBH!G22,WIL!G22)","v":{"v":0,"d":"$0.00"}}]
[null,"(7 msg x Bld w/MNS)",null,"All MNS messages restore at UAHPD",161,null,{"$f":"SUM(AOP!G23,ATO!G23,BAB!G23,BEV!G23,BSB!G23,CCH!G23,CFC!G23,CGU!G23,'CGV1'!G23,'CGV2'!G23,CPB!G23,CRH!G23,CTC!G23,DCH!G23,DZH!G23,ELC!G23,ENG!G23,FFH!G23,I2C!G23,IMF!G23,JRC!G23,KDH!G23,LIB!G23,MOR!G23,MSB!G23,NCH!G23,NUR!G23,OKT!G23,OPB!G23,PPB!G23,ROB!G23,'SCH600'!G23,'SCH602'!G23,'SCH604'!G23,'SCH606'!G23,'SCH608'!G23,'SCH700'!G23,'SCH702'!G23,'SCH704'!G23,'SCH706'!G23,SKH!G23,SNH!G23,SPR!G23,SSB!G23,SST!G23,SWI!G23,UFC!G23,VBH!G23,WIL!G23)","v":{"v":0,"d":"$0.00"}}]
[{"$nulls":3},"All Speakers Operational","23 Bld",null,{"$f":"SUM(AOP!G24,ATO!G24,BAB!G24,BEV!G24,BSB!G24,CCH!G24,CFC!G24,CGU!G24,'CGV1'!G24,'CGV2'!G24,CPB!G24,CRH!G24,CTC!G24,DCH!G24,DZH!G24,ELC!G24,ENG!G24,FFH!G24,I2C!G24,IMF!G24,JRC!G24,KDH!G24,LIB!G24,MOR!G24,MSB!G24,NCH!G24,NUR!G24,OKT!G24,OPB!G24,PPB!G24,ROB!G24,'SCH600'!G24,'SCH602'!G24,'SCH604'!G24,'SCH606'!G24,'SCH608'!G24,'SCH700'!G24,'SCH702'!G24,'SCH704'!G24,'SCH706'!G24,SKH!G24,SNH!G24,SPR!G24,SSB!G24,SST!G24,SWI!G24,UFC!G24,VBH!G24,WIL!G24)","v":{"v":0,"d":"$0.00"}}]
[{"$nulls":3},"All Amber Strobes Operational","23 Bld",null,{"$f":"SUM(AOP!G25,ATO!G25,BAB!G25,BEV!G25,BSB!G25,CCH!G25,CFC!G25,CGU!G25,'CGV1'!G25,'CGV2'!G25,CPB!G25,CRH!G25,CTC!G25,DCH!G25,DZH!G25,ELC!G25,ENG!G25,FFH!G25,I2C!G25,IMF!G25,JRC!G25,KDH!G25,LIB!G25,MOR!G25,MSB!G25,NCH!G25,NUR!G25,OKT!G25,OPB!G25,PPB!G25,ROB!G25,'SCH600'!G25,'SCH602'!G25,'SCH604'!G25,'SCH606'!G25,'SCH608'!G25,'SCH700'!G25,'SCH702'!G25,'SCH704'!G25,'SCH706'!G25,SKH!G25,SNH!G25,SPR!G25,SSB!G25,SST!G25,SWI!G25,UFC!G25,VBH!G25,WIL!G25)","v":{"v":0,"d":"$0.00"}}]
[{"$nulls":3},"Mass Notification Subtotal",null,null,{"$f":"SUM(AOP!G26,ATO!G26,BAB!G26,BEV!G26,BSB!G26,CCH!G26,CFC!G26,CGU!G26,'CGV1'!G26,'CGV2'!G26,CPB!G26,CRH!G26,CTC!G26,DCH!G26,DZH!G26,ELC!G26,ENG!G26,FFH!G26,I2C!G26,IMF!G26,JRC!G26,KDH!G26,LIB!G26,MOR!G26,MSB!G26,NCH!G26,NUR!G26,OKT!G26,OPB!G26,PPB!G26,ROB!G26,'SCH600'!G26,'SCH602'!G26,'SCH604'!G26,'SCH606'!G26,'SCH608'!G26,'SCH700'!G26,'SCH702'!G26,'SCH704'!G26,'SCH706'!G26,SKH!G26,SNH!G26,SPR!G26,SSB!G26,SST!G26,SWI!G26,UFC!G26,VBH!G26,WIL!G26)","v":{"v":0,"d":"$0.00"}}]
[]
[3,"Sprinkler System (Annual/Semi-Annual as noted)"]
[]
[null,"3a","Kitchen Hoods (Semi-Annual) - Price for 2 Inspections",null,{"$f":"SUM(AOP!E30,ATO!E30,BAB!E30,BEV!E30,BSB!E30,CCH!E30,CFC!E30,CGU!E30,'CGV1'!E30,'CGV2'!E30,CPB!E30,CRH!E30,CTC!E30,DCH!E30,DZH!E30,ELC!E30,ENG!E30,FFH!E30,I2C!E30,IMF!E30,JRC!E30,KDH!E30,LIB!E30,MOR!E30,MSB!E30,NCH!E30,NUR!E30,OKT!E30,OPB!E30,PPB!E30,ROB!E30,'SCH600'!E30,'SCH602'!E30,'SCH604'!E30,'SCH606'!E30,'SCH608'!E30,'SCH700'!E30,'SCH702'!E30,'SCH704'!E30,'SCH706'!E30,SKH!E30,SNH!E30,SPR!E30,SSB!E30,SST!E30,SWI!E30,UFC!E30,VBH!E30,WIL!E30)","v":24},null,{"$f":"SUM(AOP!G30,ATO!G30,BAB!G30,BEV!G30,BSB!G30,CCH!G30,CFC!G30,CGU!G30,'CGV1'!G30,'CGV2'!G30,CPB!G30,CRH!G30,CTC!G30,DCH!G30,DZH!G30,ELC!G30,ENG!G30,FFH!G30,I2C!G30,IMF!G30,JRC!G30,KDH!G30,LIB!G30,MOR!G30,MSB!G30,NCH!G30,NUR!G30,OKT!G30,OPB!G30,PPB!G30,ROB!G30,'SCH600'!G30,'SCH602'!G30,'SCH604'!G30,'SCH606'!G30,'SCH608'!G30,'SCH700'!G30,'SCH702'!G30,'SCH704'!G30,'SCH706'!G30,SKH!G30,SNH!G30,SPR!G30,SSB!G30,SST!G30,SWI!G30,UFC!G30,VBH!G30,WIL!G30)","v":{"v":0,"d":"$0.00"}}]
[null,"3b","Suppression Panels (S/A) Price for 2 Inspections - 1 to incl panel",null,{"$f":"SUM(AOP!E31,ATO!E31,BAB!E31,BEV!E31,BSB!E31,CCH!E31,CFC!E31,CGU!E31,'CGV1'!E31,'CGV2'!E31,CPB!E31,CRH!E31,CTC!E31,DCH!E31,DZH!E31,ELC!E31,ENG!E31,FFH!E31,I2C!E31,IMF!E31,JRC!E31,KDH!E31,LIB!E31,MOR!E31,MSB!E31,NCH!E31,NUR!E31,OKT!E31,OPB!E31,PPB!E31,ROB!E31,'SCH600'!E31,'SCH602'!E31,'SCH604'!E31,'SCH606'!E31,'SCH608'!E31,'SCH700'!E31,'SCH702'!E31,'SCH704'!E31,'SCH706'!E31,SKH!E31,SNH!E31,SPR!E31,SSB!E31,SST!E31,SWI!E31,UFC!E31,VBH!E31,WIL!E31)","v":10},null,{"$f":"SUM(AOP!G31,ATO!G31,BAB!G31,BEV!G31,BSB!G31,CCH!G31,CFC!G31,CGU!G31,'CGV1'!G31,'CGV2'!G31,CPB!G31,CRH!G31,CTC!G31,DCH!G31,DZH!G31,ELC!G31,ENG!G31,FFH!G31,I2C!G31,IMF!G31,JRC!G31,KDH!G31,LIB!G31,MOR!G31,MSB!G31,NCH!G31,NUR!G31,OKT!G31,OPB!G31,PPB!G31,ROB!G31,'SCH600'!G31,'SCH602'!G31,'SCH604'!G31,'SCH606'!G31,'SCH608'!G31,'SCH700'!G31,'SCH702'!G31,'SCH704'!G31,'SCH706'!G31,SKH!G31,SNH!G31,SPR!G31,SSB!G31,SST!G31,SWI!G31,UFC!G31,VBH!G31,WIL!G31)","v":{"v":0,"d":"$0.00"}}]
[null,"3c","Flow & Tamper Valves (Annual-separate from FA test)",null,{"$f":"SUM(AOP!E32,ATO!E32,BAB!E32,BEV!E32,BSB!E32,CCH!E32,CFC!E32,CGU!E32,'CGV1'!E32,'CGV2'!E32,CPB!E32,CRH!E32,CTC!E32,DCH!E32,DZH!E32,ELC!E32,ENG!E32,FFH!E32,I2C!E32,IMF!E32,JRC!E32,KDH!E32,LIB!E32,MOR!E32,MSB!E32,NCH!E32,NUR!E32,OKT!E32,OPB!E32,PPB!E32,ROB!E32,'SCH600'!E32,'SCH602'!E32,'SCH604'!E32,'SCH606'!E32,'SCH608'!E32,'SCH700'!E32,'SCH702'!E32,'SCH704'!E32,'SCH706'!E32,SKH!E32,SNH!E32,SPR!E32,SSB!E32,SST!E32,SWI!E32,UFC!E32,VBH!E32,WIL!E32)","v":185},null,{"$f":"SUM(AOP!G32,ATO!G32,BAB!G32,BEV!G32,BSB!G32,CCH!G32,CFC!G32,CGU!G32,'CGV1'!G32,'CGV2'!G32,CPB!G32,CRH!G32,CTC!G32,DCH!G32,DZH!G32,ELC!G32,ENG!G32,FFH!G32,I2C!G32,IMF!G32,JRC!G32,KDH!G32,LIB!G32,MOR!G32,MSB!G32,NCH!G32,NUR!G32,OKT!G32,OPB!G32,PPB!G32,ROB!G32,'SCH600'!G32,'SCH602'!G32,'SCH604'!G32,'SCH606'!G32,'SCH608'!G32,'SCH700'!G32,'SCH702'!G32,'SCH704'!G32,'SCH706'!G32,SKH!G32,SNH!G32,SPR!G32,SSB!G32,SST!G32,SWI!G32,UFC!G32,VBH!G32,WIL!G32)","v":{"v":0,"d":"$0.00"}}]
[null,"3d","Fire Pump ",null,{"$f":"SUM(AOP!E33,ATO!E33,BAB!E33,BEV!E33,BSB!E33,CCH!E33,CFC!E33,CGU!E33,'CGV1'!E33,'CGV2'!E33,CPB!E33,CRH!E33,CTC!E33,DCH!E33,DZH!E33,ELC!E33,ENG!E33,FFH!E33,I2C!E33,IMF!E33,JRC!E33,KDH!E33,LIB!E33,MOR!E33,MSB!E33,NCH!E33,NUR!E33,OKT!E33,OPB!E33,PPB!E33,ROB!E33,'SCH600'!E33,'SCH602'!E33,'SCH604'!E33,'SCH606'!E33,'SCH608'!E33,'SCH700'!E33,'SCH702'!E33,'SCH704'!E33,'SCH706'!E33,SKH!E33,SNH!E33,SPR!E33,SSB!E33,SST!E33,SWI!E33,UFC!E33,VBH!E33,WIL!E33)","v":7},null,{"$f":"SUM(AOP!G33,ATO!G33,BAB!G33,BEV!G33,BSB!G33,CCH!G33,CFC!G33,CGU!G33,'CGV1'!G33,'CGV2'!G33,CPB!G33,CRH!G33,CTC!G33,DCH!G33,DZH!G33,ELC!G33,ENG!G33,FFH!G33,I2C!G33,IMF!G33,JRC!G33,KDH!G33,LIB!G33,MOR!G33,MSB!G33,NCH!G33,NUR!G33,OKT!G33,OPB!G33,PPB!G33,ROB!G33,'SCH600'!G33,'SCH602'!G33,'SCH604'!G33,'SCH606'!G33,'SCH608'!G33,'SCH700'!G33,'SCH702'!G33,'SCH704'!G33,'SCH706'!G33,SKH!G33,SNH!G33,SPR!G33,SSB!G33,SST!G33,SWI!G33,UFC!G33,VBH!G33,WIL!G33)","v":{"v":0,"d":"$0.00"}}]
[null,"3e","Standpipe",null,{"$f":"SUM(AOP!E34,ATO!E34,BAB!E34,BEV!E34,BSB!E34,CCH!E34,CFC!E34,CGU!E34,'CGV1'!E34,'CGV2'!E34,CPB!E34,CRH!E34,CTC!E34,DCH!E34,DZH!E34,ELC!E34,ENG!E34,FFH!E34,I2C!E34,IMF!E34,JRC!E34,KDH!E34,LIB!E34,MOR!E34,MSB!E34,NCH!E34,NUR!E34,OKT!E34,OPB!E34,PPB!E34,ROB!E34,'SCH600'!E34,'SCH602'!E34,'SCH604'!E34,'SCH606'!E34,'SCH608'!E34,'SCH700'!E34,'SCH702'!E34,'SCH704'!E34,'SCH706'!E34,SKH!E34,SNH!E34,SPR!E34,SSB!E34,SST!E34,SWI!E34,UFC!E34,VBH!E34,WIL!E34)","v":17},null,{"$f":"SUM(AOP!G34,ATO!G34,BAB!G34,BEV!G34,BSB!G34,CCH!G34,CFC!G34,CGU!G34,'CGV1'!G34,'CGV2'!G34,CPB!G34,CRH!G34,CTC!G34,DCH!G34,DZH!G34,ELC!G34,ENG!G34,FFH!G34,I2C!G34,IMF!G34,JRC!G34,KDH!G34,LIB!G34,MOR!G34,MSB!G34,NCH!G34,NUR!G34,OKT!G34,OPB!G34,PPB!G34,ROB!G34,'SCH600'!G34,'SCH602'!G34,'SCH604'!G34,'SCH606'!G34,'SCH608'!G34,'SCH700'!G34,'SCH702'!G34,'SCH704'!G34,'SCH706'!G34,SKH!G34,SNH!G34,SPR!G34,SSB!G34,SST!G34,SWI!G34,UFC!G34,VBH!G34,WIL!G34)","v":{"v":0,"d":"$0.00"}}]
[null,"3f","Backflow",null,{"$f":"SUM(AOP!E35,ATO!E35,BAB!E35,BEV!E35,BSB!E35,CCH!E35,CFC!E35,CGU!E35,'CGV1'!E35,'CGV2'!E35,CPB!E35,CRH!E35,CTC!E35,DCH!E35,DZH!E35,ELC!E35,ENG!E35,FFH!E35,I2C!E35,IMF!E35,JRC!E35,KDH!E35,LIB!E35,MOR!E35,MSB!E35,NCH!E35,NUR!E35,OKT!E35,OPB!E35,PPB!E35,ROB!E35,'SCH600'!E35,'SCH602'!E35,'SCH604'!E35,'SCH606'!E35,'SCH608'!E35,'SCH700'!E35,'SCH702'!E35,'SCH704'!E35,'SCH706'!E35,SKH!E35,SNH!E35,SPR!E35,SSB!E35,SST!E35,SWI!E35,UFC!E35,VBH!E35,WIL!E35)","v":14},null,{"$f":"SUM(AOP!G35,ATO!G35,BAB!G35,BEV!G35,BSB!G35,CCH!G35,CFC!G35,CGU!G35,'CGV1'!G35,'CGV2'!G35,CPB!G35,CRH!G35,CTC!G35,DCH!G35,DZH!G35,ELC!G35,ENG!G35,FFH!G35,I2C!G35,IMF!G35,JRC!G35,KDH!G35,LIB!G35,MOR!G35,MSB!G35,NCH!G35,NUR!G35,OKT!G35,OPB!G35,PPB!G35,ROB!G35,'SCH600'!G35,'SCH602'!G35,'SCH604'!G35,'SCH606'!G35,'SCH608'!G35,'SCH700'!G35,'SCH702'!G35,'SCH704'!G35,'SCH706'!G35,SKH!G35,SNH!G35,SPR!G35,SSB!G35,SST!G35,SWI!G35,UFC!G35,VBH!G35,WIL!G35)","v":{"v":0,"d":"$0.00"}}]
[null,"3g","5th Year Internal Inspection (To be done Year 1)",null,{"$f":"SUM(AOP!E36,ATO!E36,BAB!E36,BEV!E36,BSB!E36,CCH!E36,CFC!E36,CGU!E36,'CGV1'!E36,'CGV2'!E36,CPB!E36,CRH!E36,CTC!E36,DCH!E36,DZH!E36,ELC!E36,ENG!E36,FFH!E36,I2C!E36,IMF!E36,JRC!E36,KDH!E36,LIB!E36,MOR!E36,MSB!E36,NCH!E36,NUR!E36,OKT!E36,OPB!E36,PPB!E36,ROB!E36,'SCH600'!E36,'SCH602'!E36,'SCH604'!E36,'SCH606'!E36,'SCH608'!E36,'SCH700'!E36,'SCH702'!E36,'SCH704'!E36,'SCH706'!E36,SKH!E36,SNH!E36,SPR!E36,SSB!E36,SST!E36,SWI!E36,UFC!E36,VBH!E36,WIL!E36)","v":17},null,{"$f":"SUM(AOP!G36,ATO!G36,BAB!G36,BEV!G36,BSB!G36,CCH!G36,CFC!G36,CGU!G36,'CGV1'!G36,'CGV2'!G36,CPB!G36,CRH!G36,CTC!G36,DCH!G36,DZH!G36,ELC!G36,ENG!G36,FFH!G36,I2C!G36,IMF!G36,JRC!G36,KDH!G36,LIB!G36,MOR!G36,MSB!G36,NCH!G36,NUR!G36,OKT!G36,OPB!G36,PPB!G36,ROB!G36,'SCH600'!G36,'SCH602'!G36,'SCH604'!G36,'SCH606'!G36,'SCH608'!G36,'SCH700'!G36,'SCH702'!G36,'SCH704'!G36,'SCH706'!G36,SKH!G36,SNH!G36,SPR!G36,SSB!G36,SST!G36,SWI!G36,UFC!G36,VBH!G36,WIL!G36)","v":{"v":0,"d":"$0.00"}}]
[{"$nulls":3},"Wet Systems Subtotal (Incl 5th Year Internal)",null,null,{"$f":"SUM(G30:G36)","v":{"v":0,"d":"$0.00"}}]
[{"$nulls":3},"Wet Systems Subtotal (No 5th Year Internal)",null,null,{"$f":"SUM(G30:G35)","v":{"v":0,"d":"$0.00"}}]
[]
[4,"Fire Extinguishers (Annual/3 Year/6 Year/12 Year)",null,null,{"$f":"SUM(123+AOP!E40,ATO!E40,BAB!E40,BEV!E40,BSB!E40,CCH!E40,CFC!E40,CGU!E40,'CGV1'!E40,'CGV2'!E40,CPB!E40,CRH!E40,CTC!E40,DCH!E39,DZH!E40,ELC!E40,ENG!E40,FFH!E40,I2C!E40,IMF!E40,JRC!E40,KDH!E40,LIB!E40,MOR!E40,MSB!E40,NCH!E40,NUR!E40,OKT!E40,OPB!E40,PPB!E40,ROB!E40,'SCH600'!E40,'SCH602'!E40,'SCH604'!E40,'SCH606'!E40,'SCH608'!E40,'SCH700'!E40,'SCH702'!E40,'SCH704'!E40,'SCH706'!E40,SKH!E40,SNH!E40,SPR!E40,SSB!E40,SST!E40,SWI!E40,UFC!E40,VBH!E40,WIL!E40)","v":1823},null,{"$f":"SUM(AOP!G40,ATO!G40,BAB!G40,BEV!G40,BSB!G40,CCH!G40,CFC!G40,CGU!G40,'CGV1'!G40,'CGV2'!G40,CPB!G40,CRH!G40,CTC!G40,DCH!G40,DZH!G40,ELC!G40,ENG!G40,FFH!G40,I2C!G40,IMF!G40,JRC!G40,KDH!G40,LIB!G40,MOR!G40,MSB!G40,NCH!G40,NUR!G40,OKT!G40,OPB!G40,PPB!G40,ROB!G40,'SCH600'!G40,'SCH602'!G40,'SCH604'!G40,'SCH606'!G40,'SCH608'!G40,'SCH700'!G40,'SCH702'!G40,'SCH704'!G40,'SCH706'!G40,SKH!G40,SNH!G40,SPR!G40,SSB!G40,SST!G40,SWI!G40,UFC!G40,VBH!G40,WIL!G40)","v":{"v":0,"d":"$0.00"}}]
[]
[5,"Emergency Exit Lights w/ Battery Backup (Annual)",null,null,{"$f":"SUM(Contents!E45,Contents!E55,AOP!E42,ATO!E42,BAB!E42,BEV!E42,BSB!E42,CCH!E42,CFC!E42,CGU!E42,'CGV1'!E42,'CGV2'!E42,CPB!E42,CRH!E42,CTC!E42,DCH!E41,DZH!E42,ELC!E42,ENG!E42,FFH!E42,I2C!E42,IMF!E41,JRC!E42,KDH!E42,LIB!E42,MOR!E42,MSB!E42,NCH!E42,NUR!E42,OKT!E42,OPB!E42,PPB!E42,ROB!E42,'SCH600'!E42,'SCH602'!E42,'SCH604'!E42,'SCH606'!E42,'SCH608'!E42,'SCH700'!E42,'SCH702'!E42,'SCH704'!E42,'SCH706'!E42,SKH!E42,SNH!E42,SPR!E42,SSB!E42,SST!E42,SWI!E42,UFC!E42,VBH!E42,WIL!E42)","v":434},null,{"$f":"SUM(AOP!G42,ATO!G42,BAB!G42,BEV!G42,BSB!G42,CCH!G42,CFC!G42,CGU!G42,'CGV1'!G42,'CGV2'!G42,CPB!G42,CRH!G42,CTC!G42,DCH!G42,DZH!G42,ELC!G42,ENG!G42,FFH!G42,I2C!G42,IMF!G42,JRC!G42,KDH!G42,LIB!G42,MOR!G42,MSB!G42,NCH!G42,NUR!G42,OKT!G42,OPB!G42,PPB!G42,ROB!G42,'SCH600'!G42,'SCH602'!G42,'SCH604'!G42,'SCH606'!G42,'SCH608'!G42,'SCH700'!G42,'SCH702'!G42,'SCH704'!G42,'SCH706'!G42,SKH!G42,SNH!G42,SPR!G42,SSB!G42,SST!G42,SWI!G42,UFC!G42,VBH!G42,WIL!G42)","v":{"v":0,"d":"$0.00"}}]
[null,"5a Emergency Egress Lights w/Battery Back-up",null,null,{"$f":"SUM(Contents!E46,Contents!E56,AOP!E43,ATO!E43,BAB!E43,BEV!E43,BSB!E43,CCH!E43,CFC!E43,CGU!E43,'CGV1'!E43,'CGV2'!E43,CPB!E43,CRH!E43,CTC!E43,DCH!E42,DZH!E43,ELC!E43,ENG!E43,FFH!E43,I2C!E43,IMF!E42,JRC!E43,KDH!E43,LIB!E43,MOR!E43,MSB!E43,NCH!E43,NUR!E43,OKT!E43,OPB!E43,PPB!E43,ROB!E43,'SCH600'!E43,'SCH602'!E43,'SCH604'!E43,'SCH606'!E43,'SCH608'!E43,'SCH700'!E43,'SCH702'!E43,'SCH704'!E43,'SCH706'!E43,SKH!E43,SNH!E43,SPR!E43,SSB!E43,SST!E43,SWI!E43,UFC!E43,VBH!E43,WIL!E43)","v":173},null,{"$f":"SUM(AOP!G43,ATO!G43,BAB!G43,BEV!G43,BSB!G43,CCH!G43,CFC!G43,CGU!G43,'CGV1'!G43,'CGV2'!G43,CPB!G43,CRH!G43,CTC!G43,DCH!G43,DZH!G43,ELC!G43,ENG!G43,FFH!G43,I2C!G43,IMF!G43,JRC!G43,KDH!G43,LIB!G43,MOR!G43,MSB!G43,NCH!G43,NUR!G43,OKT!G43,OPB!G43,PPB!G43,ROB!G43,'SCH600'!G43,'SCH602'!G43,'SCH604'!G43,'SCH606'!G43,'SCH608'!G43,'SCH700'!G43,'SCH702'!G43,'SCH704'!G43,'SCH706'!G43,SKH!G43,SNH!G43,SPR!G43,SSB!G43,SST!G43,SWI!G43,UFC!G43,VBH!G43,WIL!G43)","v":{"v":0,"d":"$0.00"}}]
[]
[6,"Fire Hydrants (Annual)",null,null,50,null,{"$f":"SUM(AOP!G45,ATO!G45,BAB!G45,BEV!G45,BSB!G45,CCH!G45,CFC!G45,CGU!G45,'CGV1'!G45,'CGV2'!G45,CPB!G45,CRH!G45,CTC!G45,DCH!G45,DZH!G45,ELC!G45,ENG!G45,FFH!G45,I2C!G45,IMF!G45,JRC!G45,KDH!G45,LIB!G45,MOR!G45,MSB!G45,NCH!G45,NUR!G45,OKT!G45,OPB!G45,PPB!G45,ROB!G45,'SCH600'!G45,'SCH602'!G45,'SCH604'!G45,'SCH606'!G45,'SCH608'!G45,'SCH700'!G45,'SCH702'!G45,'SCH704'!G45,'SCH706'!G45,SKH!G45,SNH!G45,SPR!G45,SSB!G45,SST!G45,SWI!G45,UFC!G45,VBH!G45,WIL!G45)","v":{"v":0,"d":"$0.00"}}]
[]
[{"$nulls":3},"Total - Campus w/Sensitivity and 5th Yr Internal (Year 1)",null,null,{"$f":"SUM(G15,G26,G37,G40,G42,G43,G45)","v":{"v":0,"d":"$0.00"}}]
[{"$nulls":3},"Total - Campus w/Sensitivity (Year 3/5)",null,null,{"$f":"SUM(G15,G43,G26,G38,G40,G42,G45)","v":{"v":0,"d":"$0.00"}}]
[{"$nulls":3},"Total - Campus without Sensitivity (Year 2/4)",null,null,{"$f":"SUM(G16,G26,G38,G40,G42,G43,G45)","v":{"v":0,"d":"$0.00"}}]

{"sheet":"AOP","index":2,"n_rows":47,"n_cols":7,"rows_kept":47}
[]
["Equipment to Bid for ITM - AOP - Alpha Omicron Pi",{"$nulls":3},"Back to Contents"]
[]
[1,"Fire Alarm (Annual)",{"$nulls":4},"Bid Price"]
[]
[null,"Device Counts",null,"Smoke Detectors",34,null,{"v":0,"d":"$0.00"}]
[{"$nulls":3},"Heat Detectors",12,null,{"v":0,"d":"$0.00"}]
[{"$nulls":3},"Duct Detectors",10,null,{"v":0,"d":"$0.00"}]
[{"$nulls":3},"Pull Stations",3,null,{"v":0,"d":"$0.00"}]
[{"$nulls":3},"Relay (Aux Control Functions)",4,null,{"v":0,"d":"$0.00"}]
[{"$nulls":3},"Waterflow",1,null,{"v":0,"d":"$0.00"}]
[{"$nulls":3},"Tamper Valves",1,null,{"v":0,"d":"$0.00"}]
[{"$nulls":3},"Kitchen Hood",1,null,{"v":0,"d":"$0.00"}]
[{"$nulls":3},"Notification Appliances","Bld",null,{"v":0,"d":"$0.00"}]
[{"$nulls":3},"FA Inspection with Sensitivity Subtotal (Year 1/3/5)",{"$f":"SUM(E6+E8)","v":44},null,{"$f":"SUM(G6:G14)","v":{"v":0,"d":"$0.00"}}]
[{"$nulls":3},"FA Inspection - Non-Sensitivity Subtotal(Year 2/4)",null,null,{"$f":"SUM(G15*0.7010980775)","v":{"v":0,"d":"$0.00"}}]
[]
[]
[2,"Mass Notification (Semi-Annual)"]
[]
[{"$nulls":3},"FA Signals received at UAHPD",1,null,{"v":0,"d":"$0.00"}]
[null,"(7 msg x Bld w/MNS)",null,"All MNS messages received at Bld",7,null,{"v":0,"d":"$0.00"}]
[null,"(7 msg x Bld w/MNS)",null,"All MNS messages restore at UAHPD",7,null,{"v":0,"d":"$0.00"}]
[{"$nulls":3},"All Speakers Operational","Bld",null,{"v":0,"d":"$0.00"}]
[{"$nulls":3},"All Amber Strobes Operational","Bld",null,{"v":0,"d":"$0.00"}]
[{"$nulls":3},"Mass Notification Subtotal",null,null,{"$f":"SUM(G21:G25)","v":{"v":0,"d":"$0.00"}}]
[]
[3,"Sprinkler System (Annual/Semi-Annual as noted)"]
[]
[null,"3a","Kitchen Hoods (Semi-Annual) - Price for 2 Inspections",null,1,null,{"v":0,"d":"$0.00"}]
[null,"3b","Suppression Panels (S/A) Price for 2 Inspections - 1 to incl panel",null,"N/A",null,{"v":0,"d":"$0.00"}]
[null,"3c","Flow & Tamper Valves (Annual-separate from FA test)",null,1,null,{"v":0,"d":"$0.00"}]
[null,"3d","Fire Pump ",null,"N/A",null,{"v":0,"d":"$0.00"}]
[null,"3e","Standpipe",null,"N/A",null,{"v":0,"d":"$0.00"}]
[null,"3f","Backflow",null,1,null,{"v":0,"d":"$0.00"}]
[null,"3g","5th Year Internal Inspection (To be done Year 1)",{"$nulls":3},{"v":0,"d":"$0.00"}]
[{"$nulls":3},"Wet Systems Subtotal (Incl 5th Year Internal)",null,null,{"$f":"SUM(G30:G36)","v":{"v":0,"d":"$0.00"}}]
[{"$nulls":3},"Wet Systems Subtotal (No 5th Year Internal)",null,null,{"$f":"SUM(G30:G35)","v":{"v":0,"d":"$0.00"}}]
[]
[4,"Fire Extinguishers (Annual/3 Year/6 Year/12 Year)",null,null,4,null,{"v":0,"d":"$0.00"}]
[]
[5,"Emergency Exit Lights w/ Battery Backup (Annual)",null,null,7,null,{"v":0,"d":"$0.00"}]
[null,"5a Emergency Egress Lights w/Battery Back-up",null,null,0,null,{"v":0,"d":"$0.00"}]
[]
[{"$nulls":3},"Building Subtotal Year 1 - Incl Sensitivity & 5th Year Internal",null,null,{"$f":"SUM(G15,G26,G37,G40,G42,G43)","v":{"v":0,"d":"$0.00"}}]
[{"$nulls":3},"Building Subtotal Years 3/5 - Incl Sensitivity",null,null,{"$f":"SUM(G15,G26,G38,G40,G42,G43)","v":{"v":0,"d":"$0.00"}}]
[{"$nulls":3},"Building Subtotal Years 2/4",null,null,{"$f":"SUM(G16,G26,G38,G40,G42,G43)","v":{"v":0,"d":"$0.00"}}]

{"sheet":"ATO","index":3,"n_rows":47,"n_cols":7,"rows_kept":47}
[]
["Equipment to Bid for ITM - ATO - Alpha Tau Omega",{"$nulls":3},"Back to Contents"]
[]
[1,"Fire Alarm (Annual)",{"$nulls":4},"Bid Price"]
[]
[null,"Device Counts",null,"Smoke Detectors",29,null,{"v":0,"d":"$0.00"}]
[{"$nulls":3},"Heat Detectors",5,null,{"v":0,"d":"$0.00"}]
[{"$nulls":3},"Duct Detectors",9,null,{"v":0,"d":"$0.00"}]
[{"$nulls":3},"Pull Stations",3,null,{"v":0,"d":"$0.00"}]
[{"$nulls":3},"Relay (Aux Control Functions)",2,null,{"v":0,"d":"$0.00"}]
[{"$nulls":3},"Waterflow",1,null,{"v":0,"d":"$0.00"}]
[{"$nulls":3},"Tamper Valves",1,null,{"v":0,"d":"$0.00"}]
[{"$nulls":3},"Kitchen Hood",1,null,{"v":0,"d":"$0.00"}]
[{"$nulls":3},"Notification Appliances","Bld",null,{"v":0,"d":"$0.00"}]
[{"$nulls":3},"Smoke Sensitivity Subtotal (Year 1/3/5)",{"$f":"SUM(E6+E8)","v":38},null,{"$f":"SUM(G6:G14)","v":{"v":0,"d":"$0.00"}}]
[{"$nulls":3},"FA Inspection - Non-Sensitivity Subtotal(Year 2/4)",null,null,{"$f":"SUM(G15*0.7010980775)","v":{"v":0,"d":"$0.00"}}]
[]
[]
[2,"Mass Notification (Semi-Annual)",null,null,"Currently No Mass Notification for this building"]
[]
[{"$nulls":3},"FA Signals received at UAHPD",1,null,{"v":0,"d":"$0.00"}]
[null,"(7 msg x Bld w/MNS)",null,"All MNS messages received at Bld","N/A",null,{"v":0,"d":"$0.00"}]
[null,"(7 msg x Bld w/MNS)",null,"All MNS messages restore at UAHPD","N/A",null,{"v":0,"d":"$0.00"}]
[{"$nulls":3},"All Speakers Operational","N/A",null,{"v":0,"d":"$0.00"}]
[{"$nulls":3},"All Amber Strobes Operational","N/A",null,{"v":0,"d":"$0.00"}]
[{"$nulls":3},"Mass Notification Subtotal",null,null,{"$f":"SUM(G21:G25)","v":{"v":0,"d":"$0.00"}}]
[]
[3,"Sprinkler System (Annual/Semi-Annual as noted)"]
[]
[null,"3a","Kitchen Hoods (Semi-Annual) - Price for 2 Inspections",null,1,null,{"v":0,"d":"$0.00"}]
[null,"3b","Suppression Panels (S/A) Price for 2 Inspections - 1 to incl panel",null,"N/A",null,{"v":0,"d":"$0.00"}]
[null,"3c","Flow & Tamper Valves (Annual-separate from FA test)",null,1,null,{"v":0,"d":"$0.00"}]
[null,"3d","Fire Pump ",null,"N/A",null,{"v":0,"d":"$0.00"}]
[null,"3e","Standpipe",null,"N/A",null,{"v":0,"d":"$0.00"}]
[null,"3f","Backflow",{"$nulls":3},{"v":0,"d":"$0.00"}]
[null,"3g","5th Year Internal Inspection (To be done Year 1)",{"$nulls":3},{"v":0,"d":"$0.00"}]
[{"$nulls":3},"Wet Systems Subtotal (Incl 5th Year Internal)",null,null,{"$f":"SUM(G30:G36)","v":{"v":0,"d":"$0.00"}}]
[{"$nulls":3},"Wet Systems Subtotal (No 5th Year Internal)",null,null,{"$f":"SUM(G30:G35)","v":{"v":0,"d":"$0.00"}}]
[]
[4,"Fire Extinguishers (Annual/3 Year/6 Year/12 Year)",null,null,4,null,{"v":0,"d":"$0.00"}]
[]
[5,"Emergency Exit Lights w/ Battery Backup (Annual)",null,null,9,null,{"v":0,"d":"$0.00"}]
[null,"5a Emergency Egress Lights w/Battery Back-up",null,null,0,null,{"v":0,"d":"$0.00"}]
[]
[{"$nulls":3},"Building Subtotal Year 1 - Incl Sensitivity & 5th Year Internal",null,null,{"$f":"SUM(G15,G26,G37,G40,G42,G43)","v":{"v":0,"d":"$0.00"}}]
[{"$nulls":3},"Building Subtotal Years 3/5 - Incl Sensitivity",null,null,{"$f":"SUM(G15,G26,G38,G40,G42,G43)","v":{"v":0,"d":"$0.00"}}]
[{"$nulls":3},"Building Subtotal Years 2/4",null,null,{"$f":"SUM(G16,G26,G38,G40,G42,G43)","v":{"v":0,"d":"$0.00"}}]

{"sheet":"BAB","index":4,"n_rows":47,"n_cols":7,"rows_kept":47}
[]
["Equipment to Bid for ITM - BAB - Business Administration Building",{"$nulls":3},"Back to Contents"]
[]
[1,"Fire Alarm (Annual)",{"$nulls":4},"Bid Price"]
[]
[null,"Device Counts",null,"Smoke Detectors",128,null,{"v":0,"d":"$0.00"}]
[{"$nulls":3},"Heat Detectors",11,null,{"v":0,"d":"$0.00"}]
[{"$nulls":3},"Duct Detectors",8,null,{"v":0,"d":"$0.00"}]
[{"$nulls":3},"Pull Stations",19,null,{"v":0,"d":"$0.00"}]
[{"$nulls":3},"Relay (Aux Control Functions)",9,null,{"v":0,"d":"$0.00"}]
[{"$nulls":3},"Waterflow",6,null,{"v":0,"d":"$0.00"}]
[{"$nulls":3},"Tamper Valves",2,null,{"v":0,"d":"$0.00"}]
[{"$nulls":3},"Kitchen Hood","N/A",null,{"v":0,"d":"$0.00"}]
[{"$nulls":3},"Notification Appliances","Bld",null,{"v":0,"d":"$0.00"}]
[{"$nulls":3},"Smoke Sensitivity Subtotal (Year 1/3/5)",{"$f":"SUM(E6+E8)","v":136},null,{"$f":"SUM(G6:G14)","v":{"v":0,"d":"$0.00"}}]
[{"$nulls":3},"FA Inspection - Non-Sensitivity Subtotal(Year 2/4)",null,null,{"$f":"SUM(G15*0.7010980775)","v":{"v":0,"d":"$0.00"}}]
[]
[]
[2,"Mass Notification (Semi-Annual)"]
[]
[{"$nulls":3},"FA Signals received at UAHPD",1,null,{"v":0,"d":"$0.00"}]
[null,"(7 msg x Bld w/MNS)",null,"All MNS messages received at Bld",7,null,{"v":0,"d":"$0.00"}]
[null,"(7 msg x Bld w/MNS)",null,"All MNS messages restore at UAHPD",7,null,{"v":0,"d":"$0.00"}]
[{"$nulls":3},"All Speakers Operational","Bld",null,{"v":0,"d":"$0.00"}]
[{"$nulls":3},"All Amber Strobes Operational","Bld",null,{"v":0,"d":"$0.00"}]
[{"$nulls":3},"Mass Notification Subtotal",null,null,{"$f":"SUM(G21:G25)","v":{"v":0,"d":"$0.00"}}]
[]
[3,"Sprinkler System (Annual/Semi-Annual as noted)"]
[]
[null,"3a","Kitchen Hoods (Semi-Annual)",null,"N/A",null,{"v":0,"d":"$0.00"}]
[null,"3b","Suppression Panels (S/A) Price for 2 Inspections - 1 to incl panel",null,"N/A",null,{"v":0,"d":"$0.00"}]
[null,"3c","Flow & Tamper Valves (Annual-separate from FA test)",null,6,null,{"v":0,"d":"$0.00"}]
[null,"3d","Fire Pump ",null,"N/A",null,{"v":0,"d":"$0.00"}]
[null,"3e","Standpipe",null,1,null,{"v":0,"d":"$0.00"}]
[null,"3f","Backflow",null,1,null,{"v":0,"d":"$0.00"}]
[null,"3g","5th Year Internal Inspection (To be done Year 1)",{"$nulls":3},{"v":0,"d":"$0.00"}]
[{"$nulls":3},"Wet Systems Subtotal (Incl 5th Year Internal)",null,null,{"$f":"SUM(G30:G36)","v":{"v":0,"d":"$0.00"}}]
[{"$nulls":3},"Wet Systems Subtotal (No 5th Year Internal)",null,null,{"$f":"SUM(G30:G35)","v":{"v":0,"d":"$0.00"}}]
[]
[4,"Fire Extinguishers (Annual/3 Year/6 Year/12 Year)",null,null,11,null,{"v":0,"d":"$0.00"}]
[]
[5,"Emergency Exit Lights w/ Battery Backup (Annual)",{"$nulls":4},{"v":0,"d":"$0.00"}]
[null,"5a Emergency Egress Lights w/Battery Back-up",{"$nulls":4},{"v":0,"d":"$0.00"}]
[]
[{"$nulls":3},"Building Subtotal Year 1 - Incl Sensitivity & 5th Year Internal",null,null,{"$f":"SUM(G15,G26,G37,G40,G42,G43)","v":{"v":0,"d":"$0.00"}}]
[{"$nulls":3},"Building Subtotal Years 3/5 - Incl Sensitivity",null,null,{"$f":"SUM(G15,G26,G38,G40,G42,G43)","v":{"v":0,"d":"$0.00"}}]
[{"$nulls":3},"Building Subtotal Years 2/4",null,null,{"$f":"SUM(G16,G26,G38,G40,G42,G43)","v":{"v":0,"d":"$0.00"}}]

{"sheet":"BEV","index":5,"n_rows":47,"n_cols":7,"rows_kept":47}
[]
["Equipment to Bid for ITM - BEV - Bevill Center",{"$nulls":3},"Back to Contents"]
[]
[1,"Fire Alarm (Annual)",{"$nulls":4},"Bid Price"]
[]
[null,"Device Counts",null,"Smoke Detectors",146,null,{"v":0,"d":"$0.00"}]
[{"$nulls":3},"Heat Detectors",1,null,{"v":0,"d":"$0.00"}]
[{"$nulls":3},"Duct Detectors",28,null,{"v":0,"d":"$0.00"}]
[{"$nulls":3},"Pull Stations",28,null,{"v":0,"d":"$0.00"}]
[{"$nulls":3},"Relay (Aux Control Functions)",0,null,{"v":0,"d":"$0.00"}]
[{"$nulls":3},"Waterflow",7,null,{"v":0,"d":"$0.00"}]
[{"$nulls":3},"Tamper Valves",2,null,{"v":0,"d":"$0.00"}]
[{"$nulls":3},"Kitchen Hood",1,null,{"v":0,"d":"$0.00"}]
[{"$nulls":3},"Notification Appliances","Bld",null,{"v":0,"d":"$0.00"}]
[{"$nulls":3},"Smoke Sensitivity Subtotal (Year 1/3/5)",{"$f":"SUM(E6+E8)","v":174},null,{"$f":"SUM(G6:G14)","v":{"v":0,"d":"$0.00"}}]
[{"$nulls":3},"FA Inspection - Non-Sensitivity Subtotal(Year 2/4)",null,null,{"$f":"SUM(G15*0.7010980775)","v":{"v":0,"d":"$0.00"}}]
[]
[]
[2,"Mass Notification (Semi-Annual)"]
[]
[{"$nulls":3},"FA Signals received at UAHPD",1,null,{"v":0,"d":"$0.00"}]
[null,"(7 msg x Bld w/MNS)",null,"All MNS messages received at Bld",7,null,{"v":0,"d":"$0.00"}]
[null,"(7 msg x Bld w/MNS)",null,"All MNS messages restore at UAHPD",7,null,{"v":0,"d":"$0.00"}]
[{"$nulls":3},"All Speakers Operational","Bld",null,{"v":0,"d":"$0.00"}]
[{"$nulls":3},"All Amber Strobes Operational","Bld",null,{"v":0,"d":"$0.00"}]
[{"$nulls":3},"Mass Notification Subtotal",null,null,{"$f":"SUM(G21:G25)","v":{"v":0,"d":"$0.00"}}]
[]
[3,"Sprinkler System (Annual/Semi-Annual as noted)"]
[]
[null,"3a","Kitchen Hoods (Semi-Annual) - Price for 2 Inspections",null,1,null,{"v":0,"d":"$0.00"}]
[null,"3b","Suppression Panels (S/A) Price for 2 Inspections - 1 to incl panel",null,"N/A",null,{"v":0,"d":"$0.00"}]
[null,"3c","Flow & Tamper Valves (Annual-separate from FA test)",null,7,null,{"v":0,"d":"$0.00"}]
[null,"3d","Fire Pump ",null,"N/A",null,{"v":0,"d":"$0.00"}]
[null,"3e","Standpipe",null,1,null,{"v":0,"d":"$0.00"}]
[null,"3f","Backflow",{"$nulls":3},{"v":0,"d":"$0.00"}]
[null,"3g","5th Year Internal Inspection (To be done Year 1)",null,1,null,{"v":0,"d":"$0.00"}]
[{"$nulls":3},"Wet Systems Subtotal (Incl 5th Year Internal)",null,null,{"$f":"SUM(G30:G36)","v":{"v":0,"d":"$0.00"}}]
[{"$nulls":3},"Wet Systems Subtotal (No 5th Year Internal)",null,null,{"$f":"SUM(G30:G35)","v":{"v":0,"d":"$0.00"}}]
[]
[4,"Fire Extinguishers (Annual/3 Year/6 Year/12 Year)",null,null,30,null,{"v":0,"d":"$0.00"}]
[]
[5,"Emergency Exit Lights w/ Battery Backup (Annual)",null,null,57,null,{"v":0,"d":"$0.00"}]
[null,"5a Emergency Egress Lights w/Battery Back-up",null,null,12,null,{"v":0,"d":"$0.00"}]
[]
[{"$nulls":3},"Building Subtotal Year 1 - Incl Sensitivity & 5th Year Internal",null,null,{"$f":"SUM(G15,G26,G37,G40,G42,G43)","v":{"v":0,"d":"$0.00"}}]
[{"$nulls":3},"Building Subtotal Years 3/5 - Incl Sensitivity",null,null,{"$f":"SUM(G15,G26,G38,G40,G42,G43)","v":{"v":0,"d":"$0.00"}}]
[{"$nulls":3},"Building Subtotal Years 2/4",null,null,{"$f":"SUM(G16,G26,G38,G40,G42,G43)","v":{"v":0,"d":"$0.00"}}]

{"sheet":"BSB","index":6,"n_rows":47,"n_cols":7,"rows_kept":47}
[]
["Equipment to Bid for ITM - BSB - Business Services Building",{"$nulls":3},"Back to Contents"]
[]
[1,"Fire Alarm (Annual)",{"$nulls":4},"Bid Price"]
[]
[null,"Device Counts",null,"Smoke Detectors",15,null,{"v":0,"d":"$0.00"}]
[{"$nulls":3},"Heat Detectors",0,null,{"v":0,"d":"$0.00"}]
[{"$nulls":3},"Duct Detectors",4,null,{"v":0,"d":"$0.00"}]
[{"$nulls":3},"Pull Stations",2,null,{"v":0,"d":"$0.00"}]
[{"$nulls":3},"Relay (Aux Control Functions)",0,null,{"v":0,"d":"$0.00"}]
[{"$nulls":3},"Waterflow",0,null,{"v":0,"d":"$0.00"}]
[{"$nulls":3},"Tamper Valves",0,null,{"v":0,"d":"$0.00"}]
[{"$nulls":3},"Kitchen Hood",0,null,{"v":0,"d":"$0.00"}]
[{"$nulls":3},"Notification Appliances","Bld",null,{"v":0,"d":"$0.00"}]
[{"$nulls":3},"Smoke Sensitivity Subtotal (Year 1/3/5)",{"$f":"SUM(E6+E8)","v":19},null,{"$f":"SUM(G6:G14)","v":{"v":0,"d":"$0.00"}}]
[{"$nulls":3},"FA Inspection - Non-Sensitivity Subtotal(Year 2/4)",null,null,{"$f":"SUM(G15*0.7010980775)","v":{"v":0,"d":"$0.00"}}]
[]
[]
[2,"Mass Notification (Semi-Annual)",null,null,"Currently No Mass Notification for this building"]
[]
[{"$nulls":3},"FA Signals received at UAHPD",1,null,{"v":0,"d":"$0.00"}]
[null,"(7 msg x Bld w/MNS)",null,"All MNS messages received at Bld","N/A",null,{"v":0,"d":"$0.00"}]
[null,"(7 msg x Bld w/MNS)",null,"All MNS messages restore at UAHPD","N/A",null,{"v":0,"d":"$0.00"}]
[{"$nulls":3},"All Speakers Operational","N/A",null,{"v":0,"d":"$0.00"}]
[{"$nulls":3},"All Amber Strobes Operational","N/A",null,{"v":0,"d":"$0.00"}]
[{"$nulls":3},"Mass Notification Subtotal",null,null,{"$f":"SUM(G21:G25)","v":{"v":0,"d":"$0.00"}}]
[]
[3,"Sprinkler System (Annual/Semi-Annual as noted)",null,null,"Currently No Sprinkler Systems for this building"]
[]
[null,"3a","Kitchen Hoods (Semi-Annual)",null,"N/A",null,{"v":0,"d":"$0.00"}]
[null,"3b","Suppression Panels (S/A) Price for 2 Inspections - 1 to incl panel",null,"N/A",null,{"v":0,"d":"$0.00"}]
[null,"3c","Flow & Tamper Valves (Annual-separate from FA test)",null,"N/A",null,{"v":0,"d":"$0.00"}]
[null,"3d","Fire Pump ",null,"N/A",null,{"v":0,"d":"$0.00"}]
[null,"3e","Standpipe",null,"N/A",null,{"v":0,"d":"$0.00"}]
[null,"3f","Backflow",{"$nulls":3},{"v":0,"d":"$0.00"}]
[null,"3g","5th Year Internal Inspection (To be done Year 1)",{"$nulls":3},{"v":0,"d":"$0.00"}]
[{"$nulls":3},"Wet Systems Subtotal (Incl 5th Year Internal)",null,null,{"$f":"SUM(G30:G36)","v":{"v":0,"d":"$0.00"}}]
[{"$nulls":3},"Wet Systems Subtotal (No 5th Year Internal)",null,null,{"$f":"SUM(G30:G35)","v":{"v":0,"d":"$0.00"}}]
[]
[4,"Fire Extinguishers (Annual/3 Year/6 Year/12 Year)",null,null,5,null,{"v":0,"d":"$0.00"}]
[]
[5,"Emergency Exit Lights w/ Battery Backup (Annual)",{"$nulls":4},{"v":0,"d":"$0.00"}]
[null,"5a Emergency Egress Lights w/Battery Back-up",null,null,1,null,{"v":0,"d":"$0.00"}]
[]
[{"$nulls":3},"Building Subtotal Year 1 - Incl Sensitivity & 5th Year Internal",null,null,{"$f":"SUM(G15,G26,G37,G40,G42,G43)","v":{"v":0,"d":"$0.00"}}]
[{"$nulls":3},"Building Subtotal Years 3/5 - Incl Sensitivity",null,null,{"$f":"SUM(G15,G26,G38,G40,G42,G43)","v":{"v":0,"d":"$0.00"}}]
[{"$nulls":3},"Building Subtotal Years 2/4",null,null,{"$f":"SUM(G16,G26,G38,G40,G42,G43)","v":{"v":0,"d":"$0.00"}}]

{"sheet":"CCH","index":7,"n_rows":47,"n_cols":7,"rows_kept":47}
[]
["Equipment to Bid for ITM - CCH - Central Campus Housing",{"$nulls":3},"Back to Contents"]
[]
[1,"Fire Alarm (Annual)",{"$nulls":4},"Bid Price"]
[]
[null,"Device Counts",null,"Smoke Detectors",660,null,{"v":0,"d":"$0.00"}]
[{"$nulls":3},"Heat Detectors",1,null,{"v":0,"d":"$0.00"}]
[{"$nulls":3},"Duct Detectors",6,null,{"v":0,"d":"$0.00"}]
[{"$nulls":3},"Pull Stations",30,null,{"v":0,"d":"$0.00"}]
[{"$nulls":3},"Relay (Aux Control Functions)",0,null,{"v":0,"d":"$0.00"}]
[{"$nulls":3},"Waterflow",8,null,{"v":0,"d":"$0.00"}]
[{"$nulls":3},"Tamper Valves",12,null,{"v":0,"d":"$0.00"}]
[{"$nulls":3},"Kitchen Hood",0,null,{"v":0,"d":"$0.00"}]
[{"$nulls":3},"Notification Appliances","Bld",null,{"v":0,"d":"$0.00"}]
[{"$nulls":3},"Smoke Sensitivity Subtotal (Year 1/3/5)",{"$f":"SUM(E6+E8)","v":666},null,{"$f":"SUM(G6:G14)","v":{"v":0,"d":"$0.00"}}]
[{"$nulls":3},"FA Inspection - Non-Sensitivity Subtotal(Year 2/4)",null,null,{"$f":"SUM(G15*0.7010980775)","v":{"v":0,"d":"$0.00"}}]
[]
[]
[2,"Mass Notification (Semi-Annual)"]
[]
[{"$nulls":3},"FA Signals received at UAHPD",1,null,{"v":0,"d":"$0.00"}]
[null,"(7 msg x Bld w/MNS)",null,"All MNS messages received at Bld",7,null,{"v":0,"d":"$0.00"}]
[null,"(7 msg x Bld w/MNS)",null,"All MNS messages restore at UAHPD",7,null,{"v":0,"d":"$0.00"}]
[{"$nulls":3},"All Speakers Operational","Bld",null,{"v":0,"d":"$0.00"}]
[{"$nulls":3},"All Amber Strobes Operational","N/A",null,{"v":0,"d":"$0.00"}]
[{"$nulls":3},"Mass Notification Subtotal",null,null,{"$f":"SUM(G21:G25)","v":{"v":0,"d":"$0.00"}}]
[]
[3,"Sprinkler System (Annual/Semi-Annual as noted)"]
[]
[null,"3a","Kitchen Hoods (Semi-Annual)",null,"N/A",null,{"v":0,"d":"$0.00"}]
[null,"3b","Suppression Panels (S/A) Price for 2 Inspections - 1 to incl panel",null,"N/A",null,{"v":0,"d":"$0.00"}]
[null,"3c","Flow & Tamper Valves (Annual-separate from FA test)",null,8,null,{"v":0,"d":"$0.00"}]
[null,"3d","Fire Pump ",null,1,null,{"v":0,"d":"$0.00"}]
[null,"3e","Standpipe",null,1,null,{"v":0,"d":"$0.00"}]
[null,"3f","Backflow",{"$nulls":3},{"v":0,"d":"$0.00"}]
[null,"3g","5th Year Internal Inspection (To be done Year 1)",null,1,null,{"v":0,"d":"$0.00"}]
[{"$nulls":3},"Wet Systems Subtotal (Incl 5th Year Internal)",null,null,{"$f":"SUM(G30:G36)","v":{"v":0,"d":"$0.00"}}]
[{"$nulls":3},"Wet Systems Subtotal (No 5th Year Internal)",null,null,{"$f":"SUM(G30:G35)","v":{"v":0,"d":"$0.00"}}]
[]
[4,"Fire Extinguishers (Annual/3 Year/6 Year/12 Year)",null,null,130,null,{"v":0,"d":"$0.00"}]
[]
[5,"Emergency Exit Lights w/ Battery Backup (Annual)",null,null,45,null,{"v":0,"d":"$0.00"}]
[null,"5a Emergency Egress Lights w/Battery Back-up",null,null,20,null,{"v":0,"d":"$0.00"}]
[]
[{"$nulls":3},"Building Subtotal Year 1 - Incl Sensitivity & 5th Year Internal",null,null,{"$f":"SUM(G15,G26,G37,G40,G42,G43)","v":{"v":0,"d":"$0.00"}}]
[{"$nulls":3},"Building Subtotal Years 3/5 - Incl Sensitivity",null,null,{"$f":"SUM(G15,G26,G38,G40,G42,G43)","v":{"v":0,"d":"$0.00"}}]
[{"$nulls":3},"Building Subtotal Years 2/4",null,null,{"$f":"SUM(G16,G26,G38,G40,G42,G43)","v":{"v":0,"d":"$0.00"}}]

{"sheet":"CFC","index":8,"n_rows":47,"n_cols":7,"rows_kept":47}
[]
["Equipment to Bid for ITM - CFC - Charger Food Court",{"$nulls":3},"Back to Contents"]
[]
[1,"Fire Alarm (Annual)",{"$nulls":4},"Bid Price"]
[]
[null,"Device Counts",null,"Smoke Detectors",3,null,{"v":0,"d":"$0.00"}]
[{"$nulls":3},"Heat Detectors",0,null,{"v":0,"d":"$0.00"}]
[{"$nulls":3},"Duct Detectors",6,null,{"v":0,"d":"$0.00"}]
[{"$nulls":3},"Pull Stations",7,null,{"v":0,"d":"$0.00"}]
[{"$nulls":3},"Relay (Aux Control Functions)",2,null,{"v":0,"d":"$0.00"}]
[{"$nulls":3},"Waterflow",1,null,{"v":0,"d":"$0.00"}]
[{"$nulls":3},"Tamper Valves",7,null,{"v":0,"d":"$0.00"}]
[{"$nulls":3},"Kitchen Hood",3,null,{"v":0,"d":"$0.00"}]
[{"$nulls":3},"Notification Appliances","Bld",null,{"v":0,"d":"$0.00"}]
[{"$nulls":3},"Smoke Sensitivity Subtotal (Year 1/3/5)",{"$f":"SUM(E6+E8)","v":9},null,{"$f":"SUM(G6:G14)","v":{"v":0,"d":"$0.00"}}]
[{"$nulls":3},"FA Inspection - Non-Sensitivity Subtotal(Year 2/4)",null,null,{"$f":"SUM(G15*0.7010980775)","v":{"v":0,"d":"$0.00"}}]
[]
[]
[2,"Mass Notification (Semi-Annual)",null,null,"Currently No Mass Notification for this building"]
[]
[{"$nulls":3},"FA Signals received at UAHPD",1,null,{"v":0,"d":"$0.00"}]
[null,"(7 msg x Bld w/MNS)",null,"All MNS messages received at Bld","N/A",null,{"v":0,"d":"$0.00"}]
[null,"(7 msg x Bld w/MNS)",null,"All MNS messages restore at UAHPD","N/A",null,{"v":0,"d":"$0.00"}]
[{"$nulls":3},"All Speakers Operational","N/A",null,{"v":0,"d":"$0.00"}]
[{"$nulls":3},"All Amber Strobes Operational","N/A",null,{"v":0,"d":"$0.00"}]
[{"$nulls":3},"Mass Notification Subtotal",null,null,{"$f":"SUM(G21:G25)","v":{"v":0,"d":"$0.00"}}]
[]
[3,"Sprinkler System (Annual/Semi-Annual as noted)"]
[]
[null,"3a","Kitchen Hoods (Semi-Annual) - Price for 2 Inspections",null,3,null,{"v":0,"d":"$0.00"}]
[null,"3b","Suppression Panels (S/A) Price for 2 Inspections - 1 to incl panel",null,"N/A",null,{"v":0,"d":"$0.00"}]
[null,"3c","Flow & Tamper Valves (Annual-separate from FA test)",null,1,null,{"v":0,"d":"$0.00"}]
[null,"3d","Fire Pump ",null,"N/A",null,{"v":0,"d":"$0.00"}]
[null,"3e","Standpipe",null,"N/A",null,{"v":0,"d":"$0.00"}]
[null,"3f","Backflow",null,1,null,{"v":0,"d":"$0.00"}]
[null,"3g","5th Year Internal Inspection (To be done Year 1)",null,1,null,{"v":0,"d":"$0.00"}]
[{"$nulls":3},"Wet Systems Subtotal (Incl 5th Year Internal)",null,null,{"$f":"SUM(G30:G36)","v":{"v":0,"d":"$0.00"}}]
[{"$nulls":3},"Wet Systems Subtotal (No 5th Year Internal)",null,null,{"$f":"SUM(G30:G35)","v":{"v":0,"d":"$0.00"}}]
[]
[4,"Fire Extinguishers (Annual/3 Year/6 Year/12 Year)",null,null,6,null,{"v":0,"d":"$0.00"}]
[]
[5,"Emergency Exit Lights w/ Battery Backup (Annual)",{"$nulls":4},{"v":0,"d":"$0.00"}]
[null,"5a Emergency Egress Lights w/Battery Back-up",{"$nulls":4},{"v":0,"d":"$0.00"}]
[]
[{"$nulls":3},"Building Subtotal Year 1 - Incl Sensitivity & 5th Year Internal",null,null,{"$f":"SUM(G15,G26,G37,G40,G42,G43)","v":{"v":0,"d":"$0.00"}}]
[{"$nulls":3},"Building Subtotal Years 3/5 - Incl Sensitivity",null,null,{"$f":"SUM(G15,G26,G38,G40,G42,G43)","v":{"v":0,"d":"$0.00"}}]
[{"$nulls":3},"Building Subtotal Years 2/4",null,null,{"$f":"SUM(G16,G26,G38,G40,G42,G43)","v":{"v":0,"d":"$0.00"}}]

{"sheet":"CGU","index":9,"n_rows":47,"n_cols":7,"rows_kept":47}
[]
["Equipment to Bid for ITM - CGU - Charger Union",{"$nulls":3},"Back to Contents"]
[]
[1,"Fire Alarm (Annual)",{"$nulls":4},"Bid Price"]
[]
[null,"Device Counts",null,"Smoke Detectors",41,null,{"v":0,"d":"$0.00"}]
[{"$nulls":3},"Heat Detectors",34,null,{"v":0,"d":"$0.00"}]
[{"$nulls":3},"Duct Detectors",16,null,{"v":0,"d":"$0.00"}]
[{"$nulls":3},"Pull Stations",9,null,{"v":0,"d":"$0.00"}]
[{"$nulls":3},"Relay (Aux Control Functions)",41,null,{"v":0,"d":"$0.00"}]
[{"$nulls":3},"Waterflow",7,null,{"v":0,"d":"$0.00"}]
[{"$nulls":3},"Tamper Valves",7,null,{"v":0,"d":"$0.00"}]
[{"$nulls":3},"Kitchen Hood",2,null,{"v":0,"d":"$0.00"}]
[{"$nulls":3},"Notification Appliances","Bld",null,{"v":0,"d":"$0.00"}]
[{"$nulls":3},"Smoke Sensitivity Subtotal (Year 1/3/5)",{"$f":"SUM(E6+E8)","v":57},null,{"$f":"SUM(G6:G14)","v":{"v":0,"d":"$0.00"}}]
[{"$nulls":3},"FA Inspection - Non-Sensitivity Subtotal(Year 2/4)",null,null,{"$f":"SUM(G15*0.7010980775)","v":{"v":0,"d":"$0.00"}}]
[]
[]
[2,"Mass Notification (Semi-Annual)"]
[]
[{"$nulls":3},"FA Signals received at UAHPD",1,null,{"v":0,"d":"$0.00"}]
[null,"(7 msg x Bld w/MNS)",null,"All MNS messages received at Bld",7,null,{"v":0,"d":"$0.00"}]
[null,"(7 msg x Bld w/MNS)",null,"All MNS messages restore at UAHPD",7,null,{"v":0,"d":"$0.00"}]
[{"$nulls":3},"All Speakers Operational","Bld",null,{"v":0,"d":"$0.00"}]
[{"$nulls":3},"All Amber Strobes Operational","Bld",null,{"v":0,"d":"$0.00"}]
[{"$nulls":3},"Mass Notification Subtotal",null,null,{"$f":"SUM(G21:G25)","v":{"v":0,"d":"$0.00"}}]
[]
[3,"Sprinkler System (Annual/Semi-Annual as noted)"]
[]
[null,"3a","Kitchen Hoods (Semi-Annual) - Price for 2 Inspections",null,2,null,{"v":0,"d":"$0.00"}]
[null,"3b","Suppression Panels (S/A) Price for 2 Inspections - 1 to incl panel",null,6,null,{"v":0,"d":"$0.00"}]
[null,"3c","Flow & Tamper Valves (Annual-separate from FA test)",null,7,null,{"v":0,"d":"$0.00"}]
[null,"3d","Fire Pump ",null,"N/A",null,{"v":0,"d":"$0.00"}]
[null,"3e","Standpipe",null,"N/A",null,{"v":0,"d":"$0.00"}]
[null,"3f","Backflow",null,1,null,{"v":0,"d":"$0.00"}]
[null,"3g","5th Year Internal Inspection (To be done Year 1)",null,1,null,{"v":0,"d":"$0.00"}]
[{"$nulls":3},"Wet Systems Subtotal (Incl 5th Year Internal)",null,null,{"$f":"SUM(G30:G36)","v":{"v":0,"d":"$0.00"}}]
[{"$nulls":3},"Wet Systems Subtotal (No 5th Year Internal)",null,null,{"$f":"SUM(G30:G35)","v":{"v":0,"d":"$0.00"}}]
[]
[4,"Fire Extinguishers (Annual/3 Year/6 Year/12 Year)",null,null,16,null,{"v":0,"d":"$0.00"}]
[]
[5,"Emergency Exit Lights w/ Battery Backup (Annual)",{"$nulls":4},{"v":0,"d":"$0.00"}]
[null,"5a Emergency Egress Lights w/Battery Back-up",{"$nulls":4},{"v":0,"d":"$0.00"}]
[]
[{"$nulls":3},"Building Subtotal Year 1 - Incl Sensitivity & 5th Year Internal",null,null,{"$f":"SUM(G15,G26,G37,G40,G42,G43)","v":{"v":0,"d":"$0.00"}}]
[{"$nulls":3},"Building Subtotal Years 3/5 - Incl Sensitivity",null,null,{"$f":"SUM(G15,G26,G38,G40,G42,G43)","v":{"v":0,"d":"$0.00"}}]
[{"$nulls":3},"Building Subtotal Years 2/4",null,null,{"$f":"SUM(G16,G26,G38,G40,G42,G43)","v":{"v":0,"d":"$0.00"}}]

{"sheet":"CGV1","index":10,"n_rows":47,"n_cols":7,"rows_kept":47}
[]
["Equipment to Bid for ITM - CGV1 - Charger Village I",{"$nulls":3},"Back to Contents"]
[]
[1,"Fire Alarm (Annual)",{"$nulls":4},"Bid Price"]
[]
[null,"Device Counts",null,"Smoke Detectors",917,null,{"v":0,"d":"$0.00"}]
[{"$nulls":3},"Heat Detectors",16,null,{"v":0,"d":"$0.00"}]
[{"$nulls":3},"Duct Detectors",109,null,{"v":0,"d":"$0.00"}]
[{"$nulls":3},"Pull Stations",22,null,{"v":0,"d":"$0.00"}]
[{"$nulls":3},"Relay (Aux Control Functions)",22,null,{"v":0,"d":"$0.00"}]
[{"$nulls":3},"Waterflow",7,null,{"v":0,"d":"$0.00"}]
[{"$nulls":3},"Tamper Valves",10,null,{"v":0,"d":"$0.00"}]
[{"$nulls":3},"Kitchen Hood",0,null,{"v":0,"d":"$0.00"}]
[{"$nulls":3},"Notification Appliances","Bld",null,{"v":0,"d":"$0.00"}]
[{"$nulls":3},"Smoke Sensitivity Subtotal (Year 1/3/5)",{"$f":"SUM(E6+E8)","v":1026},null,{"$f":"SUM(G6:G14)","v":{"v":0,"d":"$0.00"}}]
[{"$nulls":3},"FA Inspection - Non-Sensitivity Subtotal(Year 2/4)",null,null,{"$f":"SUM(G15*0.7010980775)","v":{"v":0,"d":"$0.00"}}]
[]
[]
[2,"Mass Notification (Semi-Annual)"]
[]
[{"$nulls":3},"FA Signals received at UAHPD",1,null,{"v":0,"d":"$0.00"}]
[null,"(7 msg x Bld w/MNS)",null,"All MNS messages received at Bld",7,null,{"v":0,"d":"$0.00"}]
[null,"(7 msg x Bld w/MNS)",null,"All MNS messages restore at UAHPD",7,null,{"v":0,"d":"$0.00"}]
[{"$nulls":3},"All Speakers Operational","Bld",null,{"v":0,"d":"$0.00"}]
[{"$nulls":3},"All Amber Strobes Operational","Bld",null,{"v":0,"d":"$0.00"}]
[{"$nulls":3},"Mass Notification Subtotal",null,null,{"$f":"SUM(G21:G25)","v":{"v":0,"d":"$0.00"}}]
[]
[3,"Sprinkler System (Annual/Semi-Annual as noted)"]
[]
[null,"3a","Kitchen Hoods (Semi-Annual)",null,"N/A",null,{"v":0,"d":"$0.00"}]
[null,"3b","Suppression Panels (S/A) Price for 2 Inspections - 1 to incl panel",null,"N/A",null,{"v":0,"d":"$0.00"}]
[null,"3c","Flow & Tamper Valves (Annual-separate from FA test)",null,7,null,{"v":0,"d":"$0.00"}]
[null,"3d","Fire Pump ",null,"N/A",null,{"v":0,"d":"$0.00"}]
[null,"3e","Standpipe",null,1,null,{"v":0,"d":"$0.00"}]
[null,"3f","Backflow",null,1,null,{"v":0,"d":"$0.00"}]
[null,"3g","5th Year Internal Inspection (To be done Year 1)",null,1,null,{"v":0,"d":"$0.00"}]
[{"$nulls":3},"Wet Systems Subtotal (Incl 5th Year Internal)",null,null,{"$f":"SUM(G30:G36)","v":{"v":0,"d":"$0.00"}}]
[{"$nulls":3},"Wet Systems Subtotal (No 5th Year Internal)",null,null,{"$f":"SUM(G30:G35)","v":{"v":0,"d":"$0.00"}}]
[]
[4,"Fire Extinguishers (Annual/3 Year/6 Year/12 Year)",null,null,111,null,{"v":0,"d":"$0.00"}]
[]
[5,"Emergency Exit Lights w/ Battery Backup (Annual)",{"$nulls":4},{"v":0,"d":"$0.00"}]
[null,"5a Emergency Egress Lights w/Battery Back-up",{"$nulls":4},{"v":0,"d":"$0.00"}]
[]
[{"$nulls":3},"Building Subtotal Year 1 - Incl Sensitivity & 5th Year Internal",null,null,{"$f":"SUM(G15,G26,G37,G40,G42,G43)","v":{"v":0,"d":"$0.00"}}]
[{"$nulls":3},"Building Subtotal Years 3/5 - Incl Sensitivity",null,null,{"$f":"SUM(G15,G26,G38,G40,G42,G43)","v":{"v":0,"d":"$0.00"}}]
[{"$nulls":3},"Building Subtotal Years 2/4",null,null,{"$f":"SUM(G16,G26,G38,G40,G42,G43)","v":{"v":0,"d":"$0.00"}}]

{"sheet":"CGV2","index":11,"n_rows":47,"n_cols":7,"rows_kept":47}
[]
["Equipment to Bid for ITM - CGV2 - Charger Village II",{"$nulls":3},"Back to Contents"]
[]
[1,"Fire Alarm (Annual)",{"$nulls":4},"Bid Price"]
[]
[null,"Device Counts",null,"Smoke Detectors",392,null,{"v":0,"d":"$0.00"}]
[{"$nulls":3},"Heat Detectors",75,null,{"v":0,"d":"$0.00"}]
[{"$nulls":3},"Duct Detectors",65,null,{"v":0,"d":"$0.00"}]
[{"$nulls":3},"Pull Stations",35,null,{"v":0,"d":"$0.00"}]
[{"$nulls":3},"Relay (Aux Control Functions)",135,null,{"v":0,"d":"$0.00"}]
[{"$nulls":3},"Waterflow",11,null,{"v":0,"d":"$0.00"}]
[{"$nulls":3},"Tamper Valves",16,null,{"v":0,"d":"$0.00"}]
[{"$nulls":3},"Kitchen Hood",6,null,{"v":0,"d":"$0.00"}]
[{"$nulls":3},"Notification Appliances","Bld",null,{"v":0,"d":"$0.00"}]
[{"$nulls":3},"Smoke Sensitivity Subtotal (Year 1/3/5)",{"$f":"SUM(E6+E8)","v":457},null,{"$f":"SUM(G6:G14)","v":{"v":0,"d":"$0.00"}}]
[{"$nulls":3},"FA Inspection - Non-Sensitivity Subtotal(Year 2/4)",null,null,{"$f":"SUM(G15*0.7010980775)","v":{"v":0,"d":"$0.00"}}]
[]
[]
[2,"Mass Notification (Semi-Annual)"]
[]
[{"$nulls":3},"FA Signals received at UAHPD",1,null,{"v":0,"d":"$0.00"}]
[null,"(7 msg x Bld w/MNS)",null,"All MNS messages received at Bld",7,null,{"v":0,"d":"$0.00"}]
[null,"(7 msg x Bld w/MNS)",null,"All MNS messages restore at UAHPD",7,null,{"v":0,"d":"$0.00"}]
[{"$nulls":3},"All Speakers Operational","Bld",null,{"v":0,"d":"$0.00"}]
[{"$nulls":3},"All Amber Strobes Operational","Bld",null,{"v":0,"d":"$0.00"}]
[{"$nulls":3},"Mass Notification Subtotal",null,null,{"$f":"SUM(G21:G25)","v":{"v":0,"d":"$0.00"}}]
[]
[3,"Sprinkler System (Annual/Semi-Annual as noted)"]
[]
[null,"3a","Kitchen Hoods (Semi-Annual) - Price for 2 Inspections",null,7,null,{"v":0,"d":"$0.00"}]
[null,"3b","Suppression Panels (S/A) Price for 2 Inspections - 1 to incl panel",null,"N/A",null,{"v":0,"d":"$0.00"}]
[null,"3c","Flow & Tamper Valves (Annual-separate from FA test)",null,11,null,{"v":0,"d":"$0.00"}]
[null,"3d","Fire Pump ",null,"N/A",null,{"v":0,"d":"$0.00"}]
[null,"3e","Standpipe",null,"N/A",null,{"v":0,"d":"$0.00"}]
[null,"3f","Backflow",{"$nulls":3},{"v":0,"d":"$0.00"}]
[null,"3g","5th Year Internal Inspection (To be done Year 1)",{"$nulls":3},{"v":0,"d":"$0.00"}]
[{"$nulls":3},"Wet Systems Subtotal (Incl 5th Year Internal)",null,null,{"$f":"SUM(G30:G36)","v":{"v":0,"d":"$0.00"}}]
[{"$nulls":3},"Wet Systems Subtotal (No 5th Year Internal)",null,null,{"$f":"SUM(G30:G35)","v":{"v":0,"d":"$0.00"}}]
[]
[4,"Fire Extinguishers (Annual/3 Year/6 Year/12 Year)",null,null,90,null,{"v":0,"d":"$0.00"}]
[]
[5,"Emergency Exit Lights w/ Battery Backup (Annual)",{"$nulls":4},{"v":0,"d":"$0.00"}]
[null,"5a Emergency Egress Lights w/Battery Back-up",{"$nulls":4},{"v":0,"d":"$0.00"}]
[]
[{"$nulls":3},"Building Subtotal Year 1 - Incl Sensitivity & 5th Year Internal",null,null,{"$f":"SUM(G15,G26,G37,G40,G42,G43)","v":{"v":0,"d":"$0.00"}}]
[{"$nulls":3},"Building Subtotal Years 3/5 - Incl Sensitivity",null,null,{"$f":"SUM(G15,G26,G38,G40,G42,G43)","v":{"v":0,"d":"$0.00"}}]
[{"$nulls":3},"Building Subtotal Years 2/4",null,null,{"$f":"SUM(G16,G26,G38,G40,G42,G43)","v":{"v":0,"d":"$0.00"}}]

{"sheet":"CPB","index":12,"n_rows":47,"n_cols":7,"rows_kept":47}
[]
["Equipment to Bid for ITM - CPB - Central Plant Building",{"$nulls":3},"Back to Contents"]
[]
[1,"Fire Alarm (Annual)",{"$nulls":4},"Bid Price"]
[]
[null,"Device Counts",null,"Smoke Detectors",2,null,{"v":0,"d":"$0.00"}]
[{"$nulls":3},"Heat Detectors",12,null,{"v":0,"d":"$0.00"}]
[{"$nulls":3},"Duct Detectors",0,null,{"v":0,"d":"$0.00"}]
[{"$nulls":3},"Pull Stations",5,null,{"v":0,"d":"$0.00"}]
[{"$nulls":3},"Relay (Aux Control Functions)",0,null,{"v":0,"d":"$0.00"}]
[{"$nulls":3},"Waterflow",3,null,{"v":0,"d":"$0.00"}]
[{"$nulls":3},"Tamper Valves",3,null,{"v":0,"d":"$0.00"}]
[{"$nulls":3},"Kitchen Hood",0,null,{"v":0,"d":"$0.00"}]
[{"$nulls":3},"Notification Appliances","Bld",null,{"v":0,"d":"$0.00"}]
[{"$nulls":3},"Smoke Sensitivity Subtotal (Year 1/3/5)",{"$f":"SUM(E6+E8)","v":2},null,{"$f":"SUM(G6:G14)","v":{"v":0,"d":"$0.00"}}]
[{"$nulls":3},"FA Inspection - Non-Sensitivity Subtotal(Year 2/4)",null,null,{"$f":"SUM(G15*0.7010980775)","v":{"v":0,"d":"$0.00"}}]
[]
[]
[2,"Mass Notification (Semi-Annual)",null,null,"Currently No Mass Notification for this building"]
[]
[{"$nulls":3},"FA Signals received at UAHPD",1,null,{"v":0,"d":"$0.00"}]
[null,"(7 msg x Bld w/MNS)",null,"All MNS messages received at Bld","N/A",null,{"v":0,"d":"$0.00"}]
[null,"(7 msg x Bld w/MNS)",null,"All MNS messages restore at UAHPD","N/A",null,{"v":0,"d":"$0.00"}]
[{"$nulls":3},"All Speakers Operational","N/A",null,{"v":0,"d":"$0.00"}]
[{"$nulls":3},"All Amber Strobes Operational","N/A",null,{"v":0,"d":"$0.00"}]
[{"$nulls":3},"Mass Notification Subtotal",null,null,{"$f":"SUM(G21:G25)","v":{"v":0,"d":"$0.00"}}]
[]
[3,"Sprinkler System (Annual/Semi-Annual as noted)"]
[]
[null,"3a","Kitchen Hoods (Semi-Annual)",null,"N/A",null,{"v":0,"d":"$0.00"}]
[null,"3b","Suppression Panels (S/A) Price for 2 Inspections - 1 to incl panel",null,"N/A",null,{"v":0,"d":"$0.00"}]
[null,"3c","Flow & Tamper Valves (Annual-separate from FA test)",null,3,null,{"v":0,"d":"$0.00"}]
[null,"3d","Fire Pump ",null,1,null,{"v":0,"d":"$0.00"}]
[null,"3e","Standpipe",null,"N/A",null,{"v":0,"d":"$0.00"}]
[null,"3f","Backflow",null,1,null,{"v":0,"d":"$0.00"}]
[null,"3g","5th Year Internal Inspection (To be done Year 1)",{"$nulls":3},{"v":0,"d":"$0.00"}]
[{"$nulls":3},"Wet Systems Subtotal (Incl 5th Year Internal)",null,null,{"$f":"SUM(G30:G36)","v":{"v":0,"d":"$0.00"}}]
[{"$nulls":3},"Wet Systems Subtotal (No 5th Year Internal)",null,null,{"$f":"SUM(G30:G35)","v":{"v":0,"d":"$0.00"}}]
[]
[4,"Fire Extinguishers (Annual/3 Year/6 Year/12 Year)",null,null,6,null,{"v":0,"d":"$0.00"}]
[]
[5,"Emergency Exit Lights w/ Battery Backup (Annual)",{"$nulls":4},{"v":0,"d":"$0.00"}]
[null,"5a Emergency Egress Lights w/Battery Back-up",{"$nulls":4},{"v":0,"d":"$0.00"}]
[]
[{"$nulls":3},"Building Subtotal Year 1 - Incl Sensitivity & 5th Year Internal",null,null,{"$f":"SUM(G15,G26,G37,G40,G42,G43)","v":{"v":0,"d":"$0.00"}}]
[{"$nulls":3},"Building Subtotal Years 3/5 - Incl Sensitivity",null,null,{"$f":"SUM(G15,G26,G38,G40,G42,G43)","v":{"v":0,"d":"$0.00"}}]
[{"$nulls":3},"Building Subtotal Years 2/4",null,null,{"$f":"SUM(G16,G26,G38,G40,G42,G43)","v":{"v":0,"d":"$0.00"}}]

{"sheet":"CRH","index":13,"n_rows":47,"n_cols":7,"rows_kept":47}
[]
["Equipment to Bid for ITM - CRH - Cramer Hall",{"$nulls":3},"Back to Contents"]
[]
[1,"Fire Alarm (Annual)",{"$nulls":4},"Bid Price"]
[]
[null,"Device Counts",null,"Smoke Detectors",236,null,{"v":0,"d":"$0.00"}]
[{"$nulls":3},"Heat Detectors",57,null,{"v":0,"d":"$0.00"}]
[{"$nulls":3},"Duct Detectors",74,null,{"v":0,"d":"$0.00"}]
[{"$nulls":3},"Pull Stations",33,null,{"v":0,"d":"$0.00"}]
[{"$nulls":3},"Relay (Aux Control Functions)",0,null,{"v":0,"d":"$0.00"}]
[{"$nulls":3},"Waterflow",8,null,{"v":0,"d":"$0.00"}]
[{"$nulls":3},"Tamper Valves",16,null,{"v":0,"d":"$0.00"}]
[{"$nulls":3},"Kitchen Hood",0,null,{"v":0,"d":"$0.00"}]
[{"$nulls":3},"Notification Appliances","Bld",null,{"v":0,"d":"$0.00"}]
[{"$nulls":3},"Smoke Sensitivity Subtotal (Year 1/3/5)",{"$f":"SUM(E6+E8)","v":310},null,{"$f":"SUM(G6:G14)","v":{"v":0,"d":"$0.00"}}]
[{"$nulls":3},"FA Inspection - Non-Sensitivity Subtotal(Year 2/4)",null,null,{"$f":"SUM(G15*0.7010980775)","v":{"v":0,"d":"$0.00"}}]
[]
[]
[2,"Mass Notification (Semi-Annual)",null,null,"Currently No Mass Notification for this building"]
[]
[{"$nulls":3},"FA Signals received at UAHPD",1,null,{"v":0,"d":"$0.00"}]
[null,"(7 msg x Bld w/MNS)",null,"All MNS messages received at Bld","N/A",null,{"v":0,"d":"$0.00"}]
[null,"(7 msg x Bld w/MNS)",null,"All MNS messages restore at UAHPD","N/A",null,{"v":0,"d":"$0.00"}]
[{"$nulls":3},"All Speakers Operational","N/A",null,{"v":0,"d":"$0.00"}]
[{"$nulls":3},"All Amber Strobes Operational","N/A",null,{"v":0,"d":"$0.00"}]
[{"$nulls":3},"Mass Notification Subtotal",null,null,{"$f":"SUM(G21:G25)","v":{"v":0,"d":"$0.00"}}]
[]
[3,"Sprinkler System (Annual/Semi-Annual as noted)"]
[]
[null,"3a","Kitchen Hoods (Semi-Annual)",null,"N/A",null,{"v":0,"d":"$0.00"}]
[null,"3b","Suppression Panels (S/A) Price for 2 Inspections - 1 to incl panel",null,"N/A",null,{"v":0,"d":"$0.00"}]
[null,"3c","Flow & Tamper Valves (Annual-separate from FA test)",null,8,null,{"v":0,"d":"$0.00"}]
[null,"3d","Fire Pump ",null,1,null,{"v":0,"d":"$0.00"}]
[null,"3e","Standpipe",null,1,null,{"v":0,"d":"$0.00"}]
[null,"3f","Backflow",null,1,null,{"v":0,"d":"$0.00"}]
[null,"3g","5th Year Internal Inspection (To be done Year 1)",null,1,null,{"v":0,"d":"$0.00"}]
[{"$nulls":3},"Wet Systems Subtotal (Incl 5th Year Internal)",null,null,{"$f":"SUM(G30:G36)","v":{"v":0,"d":"$0.00"}}]
[{"$nulls":3},"Wet Systems Subtotal (No 5th Year Internal)",null,null,{"$f":"SUM(G30:G35)","v":{"v":0,"d":"$0.00"}}]
[]
[4,"Fire Extinguishers (Annual/3 Year/6 Year/12 Year)",null,null,95,null,{"v":0,"d":"$0.00"}]
[]
[5,"Emergency Exit Lights w/ Battery Backup (Annual)",{"$nulls":4},{"v":0,"d":"$0.00"}]
[null,"5a Emergency Egress Lights w/Battery Back-up",null,null,9,null,{"v":0,"d":"$0.00"}]
[]
[{"$nulls":3},"Building Subtotal Year 1 - Incl Sensitivity & 5th Year Internal",null,null,{"$f":"SUM(G15,G26,G37,G40,G42,G43)","v":{"v":0,"d":"$0.00"}}]
[{"$nulls":3},"Building Subtotal Years 3/5 - Incl Sensitivity",null,null,{"$f":"SUM(G15,G26,G38,G40,G42,G43)","v":{"v":0,"d":"$0.00"}}]
[{"$nulls":3},"Building Subtotal Years 2/4",null,null,{"$f":"SUM(G16,G26,G38,G40,G42,G43)","v":{"v":0,"d":"$0.00"}}]

{"sheet":"CTC","index":14,"n_rows":47,"n_cols":7,"rows_kept":47}
[]
["Equipment to Bid for ITM - CTC - Conference &Training Center",{"$nulls":3},"Back to Contents"]
[]
[1,"Fire Alarm (Annual)",{"$nulls":4},"Bid Price"]
[]
[null,"Device Counts",null,"Smoke Detectors",32,null,{"v":0,"d":"$0.00"}]
[{"$nulls":3},"Heat Detectors",2,null,{"v":0,"d":"$0.00"}]
[{"$nulls":3},"Duct Detectors",18,null,{"v":0,"d":"$0.00"}]
[{"$nulls":3},"Pull Stations",7,null,{"v":0,"d":"$0.00"}]
[{"$nulls":3},"Relay (Aux Control Functions)",73,null,{"v":0,"d":"$0.00"}]
[{"$nulls":3},"Waterflow",8,null,{"v":0,"d":"$0.00"}]
[{"$nulls":3},"Tamper Valves",8,null,{"v":0,"d":"$0.00"}]
[{"$nulls":3},"Kitchen Hood",2,null,{"v":0,"d":"$0.00"}]
[{"$nulls":3},"Notification Appliances","Bld",null,{"v":0,"d":"$0.00"}]
[{"$nulls":3},"Smoke Sensitivity Subtotal (Year 1/3/5)",{"$f":"SUM(E6+E8)","v":50},null,{"$f":"SUM(G6:G14)","v":{"v":0,"d":"$0.00"}}]
[{"$nulls":3},"FA Inspection - Non-Sensitivity Subtotal(Year 2/4)",null,null,{"$f":"SUM(G15*0.7010980775)","v":{"v":0,"d":"$0.00"}}]
[]
[]
[2,"Mass Notification (Semi-Annual)"]
[]
[{"$nulls":3},"FA Signals received at UAHPD",1,null,{"v":0,"d":"$0.00"}]
[null,"(7 msg x Bld w/MNS)",null,"All MNS messages received at Bld",7,null,{"v":0,"d":"$0.00"}]
[null,"(7 msg x Bld w/MNS)",null,"All MNS messages restore at UAHPD",7,null,{"v":0,"d":"$0.00"}]
[{"$nulls":3},"All Speakers Operational","Bld",null,{"v":0,"d":"$0.00"}]
[{"$nulls":3},"All Amber Strobes Operational","Bld",null,{"v":0,"d":"$0.00"}]
[{"$nulls":3},"Mass Notification Subtotal",null,null,{"$f":"SUM(G21:G25)","v":{"v":0,"d":"$0.00"}}]
[]
[3,"Sprinkler System (Annual/Semi-Annual as noted)"]
[]
[null,"3a","Kitchen Hoods (Semi-Annual) - Price for 2 Inspections",null,3,null,{"v":0,"d":"$0.00"}]
[null,"3b","Suppression Panels (S/A) Price for 2 Inspections - 1 to incl panel",null,"N/A",null,{"v":0,"d":"$0.00"}]
[null,"3c","Flow & Tamper Valves (Annual-separate from FA test)",null,8,null,{"v":0,"d":"$0.00"}]
[null,"3d","Fire Pump ",null,"N/A",null,{"v":0,"d":"$0.00"}]
[null,"3e","Standpipe",null,"N/A",null,{"v":0,"d":"$0.00"}]
[null,"3f","Backflow",{"$nulls":3},{"v":0,"d":"$0.00"}]
[null,"3g","5th Year Internal Inspection (To be done Year 1)",{"$nulls":3},{"v":0,"d":"$0.00"}]
[{"$nulls":3},"Wet Systems Subtotal (Incl 5th Year Internal)",null,null,{"$f":"SUM(G30:G36)","v":{"v":0,"d":"$0.00"}}]
[{"$nulls":3},"Wet Systems Subtotal (No 5th Year Internal)",null,null,{"$f":"SUM(G30:G35)","v":{"v":0,"d":"$0.00"}}]
[]
[4,"Fire Extinguishers (Annual/3 Year/6 Year/12 Year)",null,null,44,null,{"v":0,"d":"$0.00"}]
[]
[5,"Emergency Exit Lights w/ Battery Backup (Annual)",{"$nulls":4},{"v":0,"d":"$0.00"}]
[null,"5a Emergency Egress Lights w/Battery Back-up",{"$nulls":4},{"v":0,"d":"$0.00"}]
[]
[{"$nulls":3},"Building Subtotal Year 1 - Incl Sensitivity & 5th Year Internal",null,null,{"$f":"SUM(G15,G26,G37,G40,G42,G43)","v":{"v":0,"d":"$0.00"}}]
[{"$nulls":3},"Building Subtotal Years 3/5 - Incl Sensitivity",null,null,{"$f":"SUM(G15,G26,G38,G40,G42,G43)","v":{"v":0,"d":"$0.00"}}]
[{"$nulls":3},"Building Subtotal Years 2/4",null,null,{"$f":"SUM(G16,G26,G38,G40,G42,G43)","v":{"v":0,"d":"$0.00"}}]

{"sheet":"DCH","index":15,"n_rows":47,"n_cols":7,"rows_kept":47}
[]
["Equipment to Bid for ITM - DCH - Delta Chi House",{"$nulls":3},"Back to Contents"]
[]
[1,"Fire Alarm (Annual)",{"$nulls":4},"Bid Price"]
[]
[null,"Device Counts",null,"Smoke Detectors",27,null,{"v":0,"d":"$0.00"}]
[{"$nulls":3},"Heat Detectors",4,null,{"v":0,"d":"$0.00"}]
[{"$nulls":3},"Duct Detectors",11,null,{"v":0,"d":"$0.00"}]
[{"$nulls":3},"Pull Stations",4,null,{"v":0,"d":"$0.00"}]
[{"$nulls":3},"Relay (Aux Control Functions)",3,null,{"v":0,"d":"$0.00"}]
[{"$nulls":3},"Waterflow",1,null,{"v":0,"d":"$0.00"}]
[{"$nulls":3},"Tamper Valves",1,null,{"v":0,"d":"$0.00"}]
[{"$nulls":3},"Kitchen Hood",1,null,{"v":0,"d":"$0.00"}]
[{"$nulls":3},"Notification Appliances","Bld",null,{"v":0,"d":"$0.00"}]
[{"$nulls":3},"Smoke Sensitivity Subtotal (Year 1/3/5)",{"$f":"SUM(E6+E8)","v":38},null,{"$f":"SUM(G6:G14)","v":{"v":0,"d":"$0.00"}}]
[{"$nulls":3},"FA Inspection - Non-Sensitivity Subtotal(Year 2/4)",null,null,{"$f":"SUM(G15*0.7010980775)","v":{"v":0,"d":"$0.00"}}]
[]
[]
[2,"Mass Notification (Semi-Annual)",null,null,"Currently No Mass Notification for this building"]
[]
[{"$nulls":3},"FA Signals received at UAHPD",1,null,{"v":0,"d":"$0.00"}]
[null,"(7 msg x Bld w/MNS)",null,"All MNS messages received at Bld","N/A",null,{"v":0,"d":"$0.00"}]
[null,"(7 msg x Bld w/MNS)",null,"All MNS messages restore at UAHPD","N/A",null,{"v":0,"d":"$0.00"}]
[{"$nulls":3},"All Speakers Operational","N/A",null,{"v":0,"d":"$0.00"}]
[{"$nulls":3},"All Amber Strobes Operational","N/A",null,{"v":0,"d":"$0.00"}]
[{"$nulls":3},"Mass Notification Subtotal",null,null,{"$f":"SUM(G21:G25)","v":{"v":0,"d":"$0.00"}}]
[]
[3,"Sprinkler System (Annual/Semi-Annual as noted)"]
[]
[null,"3a","Kitchen Hoods (Semi-Annual) - Price for 2 Inspections",null,1,null,{"v":0,"d":"$0.00"}]
[null,"3b","Suppression Panels (S/A) Price for 2 Inspections - 1 to incl panel",null,"N/A",null,{"v":0,"d":"$0.00"}]
[null,"3c","Flow & Tamper Valves (Annual-separate from FA test)",null,1,null,{"v":0,"d":"$0.00"}]
[null,"3d","Fire Pump ",null,"N/A",null,{"v":0,"d":"$0.00"}]
[null,"3e","Standpipe",null,"N/A",null,{"v":0,"d":"$0.00"}]
[null,"3f","Backflow",{"$nulls":3},{"v":0,"d":"$0.00"}]
[null,"3g","5th Year Internal Inspection (To be done Year 1)",{"$nulls":3},{"v":0,"d":"$0.00"}]
[{"$nulls":3},"Wet Systems Subtotal (Incl 5th Year Internal)",null,null,{"$f":"SUM(G30:G36)","v":{"v":0,"d":"$0.00"}}]
[{"$nulls":3},"Wet Systems Subtotal (No 5th Year Internal)",null,null,{"$f":"SUM(G30:G35)","v":{"v":0,"d":"$0.00"}}]
[]
[4,"Fire Extinguishers (Annual/3 Year/6 Year/12 Year)",null,null,4,null,{"v":0,"d":"$0.00"}]
[]
[5,"Emergency Exit Lights w/ Battery Backup (Annual)",null,null,9,null,{"v":0,"d":"$0.00"}]
[null,"5a Emergency Egress Lights w/Battery Back-up",null,null,0,null,{"v":0,"d":"$0.00"}]
[]
[{"$nulls":3},"Building Subtotal Year 1 - Incl Sensitivity & 5th Year Internal",null,null,{"$f":"SUM(G15,G26,G37,G40,G42,G43)","v":{"v":0,"d":"$0.00"}}]
[{"$nulls":3},"Building Subtotal Years 3/5 - Incl Sensitivity",null,null,{"$f":"SUM(G15,G26,G38,G40,G42,G43)","v":{"v":0,"d":"$0.00"}}]
[{"$nulls":3},"Building Subtotal Years 2/4",null,null,{"$f":"SUM(G16,G26,G38,G40,G42,G43)","v":{"v":0,"d":"$0.00"}}]

{"sheet":"DZH","index":16,"n_rows":47,"n_cols":7,"rows_kept":47}
[]
["Equipment to Bid for ITM - DZH - Delta Zeta House",{"$nulls":3},"Back to Contents"]
[]
[1,"Fire Alarm (Annual)",{"$nulls":4},"Bid Price"]
[]
[null,"Device Counts",null,"Smoke Detectors",28,null,{"v":0,"d":"$0.00"}]
[{"$nulls":3},"Heat Detectors",4,null,{"v":0,"d":"$0.00"}]
[{"$nulls":3},"Duct Detectors",9,null,{"v":0,"d":"$0.00"}]
[{"$nulls":3},"Pull Stations",4,null,{"v":0,"d":"$0.00"}]
[{"$nulls":3},"Relay (Aux Control Functions)",3,null,{"v":0,"d":"$0.00"}]
[{"$nulls":3},"Waterflow",1,null,{"v":0,"d":"$0.00"}]
[{"$nulls":3},"Tamper Valves",1,null,{"v":0,"d":"$0.00"}]
[{"$nulls":3},"Kitchen Hood",1,null,{"v":0,"d":"$0.00"}]
[{"$nulls":3},"Notification Appliances","Bld",null,{"v":0,"d":"$0.00"}]
[{"$nulls":3},"Smoke Sensitivity Subtotal (Year 1/3/5)",{"$f":"SUM(E6+E8)","v":37},null,{"$f":"SUM(G6:G14)","v":{"v":0,"d":"$0.00"}}]
[{"$nulls":3},"FA Inspection - Non-Sensitivity Subtotal(Year 2/4)",null,null,{"$f":"SUM(G15*0.7010980775)","v":{"v":0,"d":"$0.00"}}]
[]
[]
[2,"Mass Notification (Semi-Annual)",null,null,"Currently No Mass Notification for this building"]
[]
[{"$nulls":3},"FA Signals received at UAHPD",1,null,{"v":0,"d":"$0.00"}]
[null,"(7 msg x Bld w/MNS)",null,"All MNS messages received at Bld","N/A",null,{"v":0,"d":"$0.00"}]
[null,"(7 msg x Bld w/MNS)",null,"All MNS messages restore at UAHPD","N/A",null,{"v":0,"d":"$0.00"}]
[{"$nulls":3},"All Speakers Operational","N/A",null,{"v":0,"d":"$0.00"}]
[{"$nulls":3},"All Amber Strobes Operational","N/A",null,{"v":0,"d":"$0.00"}]
[{"$nulls":3},"Mass Notification Subtotal",null,null,{"$f":"SUM(G21:G25)","v":{"v":0,"d":"$0.00"}}]
[]
[3,"Sprinkler System (Annual/Semi-Annual as noted)"]
[]
[null,"3a","Kitchen Hoods (Semi-Annual) - Price for 2 Inspections",null,1,null,{"v":0,"d":"$0.00"}]
[null,"3b","Suppression Panels (S/A) Price for 2 Inspections - 1 to incl panel",null,"N/A",null,{"v":0,"d":"$0.00"}]
[null,"3c","Flow & Tamper Valves (Annual-separate from FA test)",null,1,null,{"v":0,"d":"$0.00"}]
[null,"3d","Fire Pump ",null,"N/A",null,{"v":0,"d":"$0.00"}]
[null,"3e","Standpipe",null,"N/A",null,{"v":0,"d":"$0.00"}]
[null,"3f","Backflow",{"$nulls":3},{"v":0,"d":"$0.00"}]
[null,"3g","5th Year Internal Inspection (To be done Year 1)",{"$nulls":3},{"v":0,"d":"$0.00"}]
[{"$nulls":3},"Wet Systems Subtotal (Incl 5th Year Internal)",null,null,{"$f":"SUM(G30:G36)","v":{"v":0,"d":"$0.00"}}]
[{"$nulls":3},"Wet Systems Subtotal (No 5th Year Internal)",null,null,{"$f":"SUM(G30:G35)","v":{"v":0,"d":"$0.00"}}]
[]
[4,"Fire Extinguishers (Annual/3 Year/6 Year/12 Year)",null,null,4,null,{"v":0,"d":"$0.00"}]
[]
[5,"Emergency Exit Lights w/ Battery Backup (Annual)",null,null,9,null,{"v":0,"d":"$0.00"}]
[null,"5a Emergency Egress Lights w/Battery Back-up",null,null,0,null,{"v":0,"d":"$0.00"}]
[]
[{"$nulls":3},"Building Subtotal Year 1 - Incl Sensitivity & 5th Year Internal",null,null,{"$f":"SUM(G15,G26,G37,G40,G42,G43)","v":{"v":0,"d":"$0.00"}}]
[{"$nulls":3},"Building Subtotal Years 3/5 - Incl Sensitivity",null,null,{"$f":"SUM(G15,G26,G38,G40,G42,G43)","v":{"v":0,"d":"$0.00"}}]
[{"$nulls":3},"Building Subtotal Years 2/4",null,null,{"$f":"SUM(G16,G26,G38,G40,G42,G43)","v":{"v":0,"d":"$0.00"}}]

{"sheet":"ELC","index":17,"n_rows":47,"n_cols":7,"rows_kept":47}
[]
["Equipment to Bid for ITM - ELC - Early Learning Center",{"$nulls":3},"Back to Contents"]
[]
[1,"Fire Alarm (Annual)",{"$nulls":4},"Bid Price"]
[]
[null,"Device Counts",null,"Smoke Detectors",103,null,{"v":0,"d":"$0.00"}]
[{"$nulls":3},"Heat Detectors",10,null,{"v":0,"d":"$0.00"}]
[{"$nulls":3},"Duct Detectors",4,null,{"v":0,"d":"$0.00"}]
[{"$nulls":3},"Pull Stations",16,null,{"v":0,"d":"$0.00"}]
[{"$nulls":3},"Relay (Aux Control Functions)",32,null,{"v":0,"d":"$0.00"}]
[{"$nulls":3},"Waterflow",3,null,{"v":0,"d":"$0.00"}]
[{"$nulls":3},"Tamper Valves",3,null,{"v":0,"d":"$0.00"}]
[{"$nulls":3},"Kitchen Hood",1,null,{"v":0,"d":"$0.00"}]
[{"$nulls":3},"Notification Appliances","Bld",null,{"v":0,"d":"$0.00"}]
[{"$nulls":3},"Smoke Sensitivity Subtotal (Year 1/3/5)",{"$f":"SUM(E6+E8)","v":107},null,{"$f":"SUM(G6:G14)","v":{"v":0,"d":"$0.00"}}]
[{"$nulls":3},"FA Inspection - Non-Sensitivity Subtotal(Year 2/4)",null,null,{"$f":"SUM(G15*0.7010980775)","v":{"v":0,"d":"$0.00"}}]
[]
[]
[2,"Mass Notification (Semi-Annual)"]
[]
[{"$nulls":3},"FA Signals received at UAHPD",1,null,{"v":0,"d":"$0.00"}]
[null,"(7 msg x Bld w/MNS)",null,"All MNS messages received at Bld",7,null,{"v":0,"d":"$0.00"}]
[null,"(7 msg x Bld w/MNS)",null,"All MNS messages restore at UAHPD",7,null,{"v":0,"d":"$0.00"}]
[{"$nulls":3},"All Speakers Operational","Bld",null,{"v":0,"d":"$0.00"}]
[{"$nulls":3},"All Amber Strobes Operational","Bld",null,{"v":0,"d":"$0.00"}]
[{"$nulls":3},"Mass Notification Subtotal",null,null,{"$f":"SUM(G21:G25)","v":{"v":0,"d":"$0.00"}}]
[]
[3,"Sprinkler System (Annual/Semi-Annual as noted)"]
[]
[null,"3a","Kitchen Hoods (Semi-Annual) - Price for 2 Inspections",null,1,null,{"v":0,"d":"$0.00"}]
[null,"3b","Suppression Panels (S/A) Price for 2 Inspections - 1 to incl panel",null,"N/A",null,{"v":0,"d":"$0.00"}]
[null,"3c","Flow & Tamper Valves (Annual-separate from FA test)",null,3,null,{"v":0,"d":"$0.00"}]
[null,"3d","Fire Pump ",null,"N/A",null,{"v":0,"d":"$0.00"}]
[null,"3e","Standpipe",null,"N/A",null,{"v":0,"d":"$0.00"}]
[null,"3f","Backflow",{"$nulls":3},{"v":0,"d":"$0.00"}]
[null,"3g","5th Year Internal Inspection (To be done Year 1)",{"$nulls":3},{"v":0,"d":"$0.00"}]
[{"$nulls":3},"Wet Systems Subtotal (Incl 5th Year Internal)",null,null,{"$f":"SUM(G30:G36)","v":{"v":0,"d":"$0.00"}}]
[{"$nulls":3},"Wet Systems Subtotal (No 5th Year Internal)",null,null,{"$f":"SUM(G30:G35)","v":{"v":0,"d":"$0.00"}}]
[]
[4,"Fire Extinguishers (Annual/3 Year/6 Year/12 Year)",null,null,21,null,{"v":0,"d":"$0.00"}]
[]
[5,"Emergency Exit Lights w/ Battery Backup (Annual)",{"$nulls":4},{"v":0,"d":"$0.00"}]
[null,"5a Emergency Egress Lights w/Battery Back-up",{"$nulls":4},{"v":0,"d":"$0.00"}]
[]
[{"$nulls":3},"Building Subtotal Year 1 - Incl Sensitivity & 5th Year Internal",null,null,{"$f":"SUM(G15,G26,G37,G40,G42,G43)","v":{"v":0,"d":"$0.00"}}]
[{"$nulls":3},"Building Subtotal Years 3/5 - Incl Sensitivity",null,null,{"$f":"SUM(G15,G26,G38,G40,G42,G43)","v":{"v":0,"d":"$0.00"}}]
[{"$nulls":3},"Building Subtotal Years 2/4",null,null,{"$f":"SUM(G16,G26,G38,G40,G42,G43)","v":{"v":0,"d":"$0.00"}}]

{"sheet":"ENG","index":18,"n_rows":47,"n_cols":7,"rows_kept":47}
[]
["Equipment to Bid for ITM - ENG - Engineering Building",{"$nulls":3},"Back to Contents"]
[]
[1,"Fire Alarm (Annual)",{"$nulls":4},"Bid Price"]
[]
[null,"Device Counts",null,"Smoke Detectors",105,null,{"v":0,"d":"$0.00"}]
[{"$nulls":3},"Heat Detectors",6,null,{"v":0,"d":"$0.00"}]
[{"$nulls":3},"Duct Detectors",8,null,{"v":0,"d":"$0.00"}]
[{"$nulls":3},"Pull Stations",14,null,{"v":0,"d":"$0.00"}]
[{"$nulls":3},"Relay (Aux Control Functions)",0,null,{"v":0,"d":"$0.00"}]
[{"$nulls":3},"Waterflow",0,null,{"v":0,"d":"$0.00"}]
[{"$nulls":3},"Tamper Valves",0,null,{"v":0,"d":"$0.00"}]
[{"$nulls":3},"Kitchen Hood","N/A",null,{"v":0,"d":"$0.00"}]
[{"$nulls":3},"Notification Appliances","Bld",null,{"v":0,"d":"$0.00"}]
[{"$nulls":3},"Smoke Sensitivity Subtotal (Year 1/3/5)",{"$f":"SUM(E6+E8)","v":113},null,{"$f":"SUM(G6:G14)","v":{"v":0,"d":"$0.00"}}]
[{"$nulls":3},"FA Inspection - Non-Sensitivity Subtotal(Year 2/4)",null,null,{"$f":"SUM(G15*0.7010980775)","v":{"v":0,"d":"$0.00"}}]
[]
[]
[2,"Mass Notification (Semi-Annual)",null,null,"Currently No Mass Notification for this building"]
[]
[{"$nulls":3},"FA Signals received at UAHPD",1,null,{"v":0,"d":"$0.00"}]
[null,"(7 msg x Bld w/MNS)",null,"All MNS messages received at Bld","N/A",null,{"v":0,"d":"$0.00"}]
[null,"(7 msg x Bld w/MNS)",null,"All MNS messages restore at UAHPD","N/A",null,{"v":0,"d":"$0.00"}]
[{"$nulls":3},"All Speakers Operational","N/A",null,{"v":0,"d":"$0.00"}]
[{"$nulls":3},"All Amber Strobes Operational","N/A",null,{"v":0,"d":"$0.00"}]
[{"$nulls":3},"Mass Notification Subtotal",null,null,{"$f":"SUM(G21:G25)","v":{"v":0,"d":"$0.00"}}]
[]
[3,"Sprinkler System (Annual/Semi-Annual as noted)"]
[]
[null,"3a","Kitchen Hoods (Semi-Annual)",null,"N/A",null,{"v":0,"d":"$0.00"}]
[null,"3b","Suppression Panels (S/A) Price for 2 Inspections - 1 to incl panel",null,"N/A",null,{"v":0,"d":"$0.00"}]
[null,"3c","Flow & Tamper Valves (Annual-separate from FA test)",null,"N/A",null,{"v":0,"d":"$0.00"}]
[null,"3d","Fire Pump ",null,"N/A",null,{"v":0,"d":"$0.00"}]
[null,"3e","Standpipe",null,"N/A",null,{"v":0,"d":"$0.00"}]
[null,"3f","Backflow",{"$nulls":3},{"v":0,"d":"$0.00"}]
[null,"3g","5th Year Internal Inspection (To be done Year 1)",{"$nulls":3},{"v":0,"d":"$0.00"}]
[{"$nulls":3},"Wet Systems Subtotal (Incl 5th Year Internal)",null,null,{"$f":"SUM(G30:G36)","v":{"v":0,"d":"$0.00"}}]
[{"$nulls":3},"Wet Systems Subtotal (No 5th Year Internal)",null,null,{"$f":"SUM(G30:G35)","v":{"v":0,"d":"$0.00"}}]
[]
[4,"Fire Extinguishers (Annual/3 Year/6 Year/12 Year)",null,null,66,null,{"v":0,"d":"$0.00"}]
[]
[5,"Emergency Exit Lights w/ Battery Backup (Annual)",null,null,41,null,{"v":0,"d":"$0.00"}]
[null,"5a Emergency Egress Lights w/Battery Back-up",{"$nulls":4},{"v":0,"d":"$0.00"}]
[]
[{"$nulls":3},"Building Subtotal Year 1 - Incl Sensitivity & 5th Year Internal",null,null,{"$f":"SUM(G15,G26,G37,G40,G42,G43)","v":{"v":0,"d":"$0.00"}}]
[{"$nulls":3},"Building Subtotal Years 3/5 - Incl Sensitivity",null,null,{"$f":"SUM(G15,G26,G38,G40,G42,G43)","v":{"v":0,"d":"$0.00"}}]
[{"$nulls":3},"Building Subtotal Years 2/4",null,null,{"$f":"SUM(G16,G26,G38,G40,G42,G43)","v":{"v":0,"d":"$0.00"}}]

{"sheet":"FFH","index":19,"n_rows":47,"n_cols":7,"rows_kept":47}
[]
["Equipment to Bid for ITM - FFH - Frank Franz Hall",{"$nulls":3},"Back to Contents"]
[]
[1,"Fire Alarm (Annual)",{"$nulls":4},"Bid Price"]
[]
[null,"Device Counts",null,"Smoke Detectors",275,null,{"v":0,"d":"$0.00"}]
[{"$nulls":3},"Heat Detectors",6,null,{"v":0,"d":"$0.00"}]
[{"$nulls":3},"Duct Detectors",2,null,{"v":0,"d":"$0.00"}]
[{"$nulls":3},"Pull Stations",18,null,{"v":0,"d":"$0.00"}]
[{"$nulls":3},"Relay (Aux Control Functions)",0,null,{"v":0,"d":"$0.00"}]
[{"$nulls":3},"Waterflow",1,null,{"v":0,"d":"$0.00"}]
[{"$nulls":3},"Tamper Valves",1,null,{"v":0,"d":"$0.00"}]
[{"$nulls":3},"Kitchen Hood","N/A",null,{"v":0,"d":"$0.00"}]
[{"$nulls":3},"Notification Appliances","Bld",null,{"v":0,"d":"$0.00"}]
[{"$nulls":3},"Smoke Sensitivity Subtotal (Year 1/3/5)",{"$f":"SUM(E6+E8)","v":277},null,{"$f":"SUM(G6:G14)","v":{"v":0,"d":"$0.00"}}]
[{"$nulls":3},"FA Inspection - Non-Sensitivity Subtotal(Year 2/4)",null,null,{"$f":"SUM(G15*0.7010980775)","v":{"v":0,"d":"$0.00"}}]
[]
[]
[2,"Mass Notification (Semi-Annual)"]
[]
[{"$nulls":3},"FA Signals received at UAHPD",1,null,{"v":0,"d":"$0.00"}]
[null,"(7 msg x Bld w/MNS)",null,"All MNS messages received at Bld",7,null,{"v":0,"d":"$0.00"}]
[null,"(7 msg x Bld w/MNS)",null,"All MNS messages restore at UAHPD",7,null,{"v":0,"d":"$0.00"}]
[{"$nulls":3},"All Speakers Operational","Bld",null,{"v":0,"d":"$0.00"}]
[{"$nulls":3},"All Amber Strobes Operational","Bld",null,{"v":0,"d":"$0.00"}]
[{"$nulls":3},"Mass Notification Subtotal",null,null,{"$f":"SUM(G21:G25)","v":{"v":0,"d":"$0.00"}}]
[]
[3,"Sprinkler System (Annual/Semi-Annual as noted)",null,null,"(13 Sprinkler Systems listed on Fire Pro Invoice)"]
[]
[null,"3a","Kitchen Hoods (Semi-Annual)",null,"N/A",null,{"v":0,"d":"$0.00"}]
[null,"3b","Suppression Panels (S/A) Price for 2 Inspections - 1 to incl panel",null,1,null,{"v":0,"d":"$0.00"}]
[null,"3c","Flow & Tamper Valves (Annual-separate from FA test)",null,13,null,{"v":0,"d":"$0.00"}]
[null,"3d","Fire Pump ",null,1,null,{"v":0,"d":"$0.00"}]
[null,"3e","Standpipe",null,1,null,{"v":0,"d":"$0.00"}]
[null,"3f","Backflow",{"$nulls":3},{"v":0,"d":"$0.00"}]
[null,"3g","5th Year Internal Inspection (To be done Year 1)",null,1,null,{"v":0,"d":"$0.00"}]
[{"$nulls":3},"Wet Systems Subtotal (Incl 5th Year Internal)",null,null,{"$f":"SUM(G30:G36)","v":{"v":0,"d":"$0.00"}}]
[{"$nulls":3},"Wet Systems Subtotal (No 5th Year Internal)",null,null,{"$f":"SUM(G30:G35)","v":{"v":0,"d":"$0.00"}}]
[]
[4,"Fire Extinguishers (Annual/3 Year/6 Year/12 Year)",null,null,94,null,{"v":0,"d":"$0.00"}]
[]
[5,"Emergency Exit Lights w/ Battery Backup (Annual)",{"$nulls":4},{"v":0,"d":"$0.00"}]
[null,"5a Emergency Egress Lights w/Battery Back-up",{"$nulls":4},{"v":0,"d":"$0.00"}]
[]
[{"$nulls":3},"Building Subtotal Year 1 - Incl Sensitivity & 5th Year Internal",null,null,{"$f":"SUM(G15,G26,G37,G40,G42,G43)","v":{"v":0,"d":"$0.00"}}]
[{"$nulls":3},"Building Subtotal Years 3/5 - Incl Sensitivity",null,null,{"$f":"SUM(G15,G26,G38,G40,G42,G43)","v":{"v":0,"d":"$0.00"}}]
[{"$nulls":3},"Building Subtotal Years 2/4",null,null,{"$f":"SUM(G16,G26,G38,G40,G42,G43)","v":{"v":0,"d":"$0.00"}}]

{"sheet":"I2C","index":20,"n_rows":47,"n_cols":7,"rows_kept":47}
[]
["Equipment to Bid for ITM - I2C - Innovation to Creation",{"$nulls":3},"Back to Contents"]
[]
[1,"Fire Alarm (Annual)",{"$nulls":4},"Bid Price"]
[]
[null,"Device Counts",null,"Smoke Detectors",9,null,{"v":0,"d":"$0.00"}]
[{"$nulls":3},"Heat Detectors",7,null,{"v":0,"d":"$0.00"}]
[{"$nulls":3},"Duct Detectors",15,null,{"v":0,"d":"$0.00"}]
[{"$nulls":3},"Pull Stations",16,null,{"v":0,"d":"$0.00"}]
[{"$nulls":3},"Relay (Aux Control Functions)",16,null,{"v":0,"d":"$0.00"}]
[{"$nulls":3},"Waterflow",6,null,{"v":0,"d":"$0.00"}]
[{"$nulls":3},"Tamper Valves",8,null,{"v":0,"d":"$0.00"}]
[{"$nulls":3},"Kitchen Hood","N/A",null,{"v":0,"d":"$0.00"}]
[{"$nulls":3},"Notification Appliances","Bld",null,{"v":0,"d":"$0.00"}]
[{"$nulls":3},"Smoke Sensitivity Subtotal (Year 1/3/5)",{"$f":"SUM(E6+E8)","v":24},null,{"$f":"SUM(G6:G14)","v":{"v":0,"d":"$0.00"}}]
[{"$nulls":3},"FA Inspection - Non-Sensitivity Subtotal(Year 2/4)",null,null,{"$f":"SUM(G15*0.7010980775)","v":{"v":0,"d":"$0.00"}}]
[]
[]
[2,"Mass Notification (Semi-Annual)"]
[]
[{"$nulls":3},"FA Signals received at UAHPD",1,null,{"v":0,"d":"$0.00"}]
[null,"(7 msg x Bld w/MNS)",null,"All MNS messages received at Bld",7,null,{"v":0,"d":"$0.00"}]
[null,"(7 msg x Bld w/MNS)",null,"All MNS messages restore at UAHPD",7,null,{"v":0,"d":"$0.00"}]
[{"$nulls":3},"All Speakers Operational","Bld",null,{"v":0,"d":"$0.00"}]
[{"$nulls":3},"All Amber Strobes Operational","Bld",null,{"v":0,"d":"$0.00"}]
[{"$nulls":3},"Mass Notification Subtotal",null,null,{"$f":"SUM(G21:G25)","v":{"v":0,"d":"$0.00"}}]
[]
[3,"Sprinkler System (Annual/Semi-Annual as noted)"]
[]
[null,"3a","Kitchen Hoods (Semi-Annual)",null,"N/A",null,{"v":0,"d":"$0.00"}]
[null,"3b","Suppression Panels (S/A) Price for 2 Inspections - 1 to incl panel",null,"N/A",null,{"v":0,"d":"$0.00"}]
[null,"3c","Flow & Tamper Valves (Annual-separate from FA test)",null,6,null,{"v":0,"d":"$0.00"}]
[null,"3d","Fire Pump ",null,"N/A",null,{"v":0,"d":"$0.00"}]
[null,"3e","Standpipe",null,1,null,{"v":0,"d":"$0.00"}]
[null,"3f","Backflow",{"$nulls":3},{"v":0,"d":"$0.00"}]
[null,"3g","5th Year Internal Inspection (To be done Year 1)",{"$nulls":3},{"v":0,"d":"$0.00"}]
[{"$nulls":3},"Wet Systems Subtotal (Incl 5th Year Internal)",null,null,{"$f":"SUM(G30:G36)","v":{"v":0,"d":"$0.00"}}]
[{"$nulls":3},"Wet Systems Subtotal (No 5th Year Internal)",null,null,{"$f":"SUM(G30:G35)","v":{"v":0,"d":"$0.00"}}]
[]
[4,"Fire Extinguishers (Annual/3 Year/6 Year/12 Year)",null,null,10,null,{"v":0,"d":"$0.00"}]
[]
[5,"Emergency Exit Lights w/ Battery Backup (Annual)",{"$nulls":4},{"v":0,"d":"$0.00"}]
[null,"5a Emergency Egress Lights w/Battery Back-up",{"$nulls":4},{"v":0,"d":"$0.00"}]
[]
[{"$nulls":3},"Building Subtotal Year 1 - Incl Sensitivity & 5th Year Internal",null,null,{"$f":"SUM(G15,G26,G37,G40,G42,G43)","v":{"v":0,"d":"$0.00"}}]
[{"$nulls":3},"Building Subtotal Years 3/5 - Incl Sensitivity",null,null,{"$f":"SUM(G15,G26,G38,G40,G42,G43)","v":{"v":0,"d":"$0.00"}}]
[{"$nulls":3},"Building Subtotal Years 2/4",null,null,{"$f":"SUM(G16,G26,G38,G40,G42,G43)","v":{"v":0,"d":"$0.00"}}]

{"sheet":"IMF","index":21,"n_rows":47,"n_cols":7,"rows_kept":47}
[]
["Equipment to Bid for ITM - IMF - Intermodal Facility",{"$nulls":3},"Back to Contents"]
[]
[1,"Fire Alarm (Annual)",{"$nulls":4},"Bid Price"]
[]
[null,"Device Counts",null,"Smoke Detectors",24,null,{"v":0,"d":"$0.00"}]
[{"$nulls":3},"Heat Detectors",13,null,{"v":0,"d":"$0.00"}]
[{"$nulls":3},"Duct Detectors",4,null,{"v":0,"d":"$0.00"}]
[{"$nulls":3},"Pull Stations",15,null,{"v":0,"d":"$0.00"}]
[{"$nulls":3},"Relay (Aux Control Functions)",9,null,{"v":0,"d":"$0.00"}]
[{"$nulls":3},"Waterflow",2,null,{"v":0,"d":"$0.00"}]
[{"$nulls":3},"Tamper Valves",3,null,{"v":0,"d":"$0.00"}]
[{"$nulls":3},"Kitchen Hood","N/A",null,{"v":0,"d":"$0.00"}]
[{"$nulls":3},"Notification Appliances","Bld",null,{"v":0,"d":"$0.00"}]
[{"$nulls":3},"Smoke Sensitivity Subtotal (Year 1/3/5)",{"$f":"SUM(E6+E8)","v":28},null,{"$f":"SUM(G6:G14)","v":{"v":0,"d":"$0.00"}}]
[{"$nulls":3},"FA Inspection - Non-Sensitivity Subtotal(Year 2/4)",null,null,{"$f":"SUM(G15*0.7010980775)","v":{"v":0,"d":"$0.00"}}]
[]
[]
[2,"Mass Notification (Semi-Annual)"]
[]
[{"$nulls":3},"FA Signals received at UAHPD",1,null,{"v":0,"d":"$0.00"}]
[null,"(7 msg x Bld w/MNS)",null,"All MNS messages received at Bld",7,null,{"v":0,"d":"$0.00"}]
[null,"(7 msg x Bld w/MNS)",null,"All MNS messages restore at UAHPD",7,null,{"v":0,"d":"$0.00"}]
[{"$nulls":3},"All Speakers Operational","Bld",null,{"v":0,"d":"$0.00"}]
[{"$nulls":3},"All Amber Strobes Operational","Bld",null,{"v":0,"d":"$0.00"}]
[{"$nulls":3},"Mass Notification Subtotal",null,null,{"$f":"SUM(G21:G25)","v":{"v":0,"d":"$0.00"}}]
[]
[3,"Sprinkler System (Annual/Semi-Annual as noted)"]
[]
[null,"3a","Kitchen Hoods (Semi-Annual)",null,"N/A",null,{"v":0,"d":"$0.00"}]
[null,"3b","Suppression Panels (S/A) Price for 2 Inspections - 1 to incl panel",null,"N/A",null,{"v":0,"d":"$0.00"}]
[null,"3c","Flow & Tamper Valves (Annual-separate from FA test)",null,2,null,{"v":0,"d":"$0.00"}]
[null,"3d","Fire Pump ",null,"N/A",null,{"v":0,"d":"$0.00"}]
[null,"3e","Standpipe",null,"N/A",null,{"v":0,"d":"$0.00"}]
[null,"3f","Backflow",null,1,null,{"v":0,"d":"$0.00"}]
[null,"3g","5th Year Internal Inspection (To be done Year 1)",null,1,null,{"v":0,"d":"$0.00"}]
[{"$nulls":3},"Wet Systems Subtotal (Incl 5th Year Internal)",null,null,{"$f":"SUM(G30:G36)","v":{"v":0,"d":"$0.00"}}]
[{"$nulls":3},"Wet Systems Subtotal (No 5th Year Internal)",null,null,{"$f":"SUM(G30:G35)","v":{"v":0,"d":"$0.00"}}]
[]
[4,"Fire Extinguishers (Annual/3 Year/6 Year/12 Year)",null,null,28,null,{"v":0,"d":"$0.00"}]
[]
[5,"Emergency Exit Lights w/ Battery Backup (Annual)",{"$nulls":4},{"v":0,"d":"$0.00"}]
[null,"5a Emergency Egress Lights w/Battery Back-up",{"$nulls":4},{"v":0,"d":"$0.00"}]
[]
[{"$nulls":3},"Building Subtotal Year 1 - Incl Sensitivity & 5th Year Internal",null,null,{"$f":"SUM(G15,G26,G37,G40,G42,G43)","v":{"v":0,"d":"$0.00"}}]
[{"$nulls":3},"Building Subtotal Years 3/5 - Incl Sensitivity",null,null,{"$f":"SUM(G15,G26,G38,G40,G42,G43)","v":{"v":0,"d":"$0.00"}}]
[{"$nulls":3},"Building Subtotal Years 2/4",null,null,{"$f":"SUM(G16,G26,G38,G40,G42,G43)","v":{"v":0,"d":"$0.00"}}]

{"sheet":"JRC","index":22,"n_rows":47,"n_cols":7,"rows_kept":47}
[]
["Equipment to Bid for ITM - JRC - Johnson Research Center",{"$nulls":3},"Back to Contents"]
[]
[1,"Fire Alarm (Annual)",{"$nulls":4},"Bid Price"]
[]
[null,"Device Counts",null,"Smoke Detectors",19,null,{"v":0,"d":"$0.00"}]
[{"$nulls":3},"Heat Detectors",3,null,{"v":0,"d":"$0.00"}]
[{"$nulls":3},"Duct Detectors",8,null,{"v":0,"d":"$0.00"}]
[{"$nulls":3},"Pull Stations",6,null,{"v":0,"d":"$0.00"}]
[{"$nulls":3},"Relay (Aux Control Functions)",0,null,{"v":0,"d":"$0.00"}]
[{"$nulls":3},"Waterflow",0,null,{"v":0,"d":"$0.00"}]
[{"$nulls":3},"Tamper Valves",0,null,{"v":0,"d":"$0.00"}]
[{"$nulls":3},"Kitchen Hood",0,null,{"v":0,"d":"$0.00"}]
[{"$nulls":3},"Notification Appliances","Bld",null,{"v":0,"d":"$0.00"}]
[{"$nulls":3},"Smoke Sensitivity Subtotal (Year 1/3/5)",{"$f":"SUM(E6+E8)","v":27},null,{"$f":"SUM(G6:G14)","v":{"v":0,"d":"$0.00"}}]
[{"$nulls":3},"FA Inspection - Non-Sensitivity Subtotal(Year 2/4)",null,null,{"$f":"SUM(G15*0.7010980775)","v":{"v":0,"d":"$0.00"}}]
[]
[]
[2,"Mass Notification (Semi-Annual)",null,null,"Currently No Mass Notification for this building"]
[]
[{"$nulls":3},"FA Signals received at UAHPD",1,null,{"v":0,"d":"$0.00"}]
[null,"(7 msg x Bld w/MNS)",null,"All MNS messages received at Bld","N/A",null,{"v":0,"d":"$0.00"}]
[null,"(7 msg x Bld w/MNS)",null,"All MNS messages restore at UAHPD","N/A",null,{"v":0,"d":"$0.00"}]
[{"$nulls":3},"All Speakers Operational","N/A",null,{"v":0,"d":"$0.00"}]
[{"$nulls":3},"All Amber Strobes Operational","N/A",null,{"v":0,"d":"$0.00"}]
[{"$nulls":3},"Mass Notification Subtotal",null,null,{"$f":"SUM(G21:G25)","v":{"v":0,"d":"$0.00"}}]
[]
[3,"Sprinkler System (Annual/Semi-Annual as noted)"]
[]
[null,"3a","Kitchen Hoods (Semi-Annual)",null,"N/A",null,{"v":0,"d":"$0.00"}]
[null,"3b","Suppression Panels (S/A) Price for 2 Inspections - 1 to incl panel",null,"N/A",null,{"v":0,"d":"$0.00"}]
[null,"3c","Flow & Tamper Valves (Annual-separate from FA test)",null,"N/A",null,{"v":0,"d":"$0.00"}]
[null,"3d","Fire Pump ",null,"N/A",null,{"v":0,"d":"$0.00"}]
[null,"3e","Standpipe",null,"N/A",null,{"v":0,"d":"$0.00"}]
[null,"3f","Backflow",{"$nulls":3},{"v":0,"d":"$0.00"}]
[null,"3g","5th Year Internal Inspection (To be done Year 1)",{"$nulls":3},{"v":0,"d":"$0.00"}]
[{"$nulls":3},"Wet Systems Subtotal (Incl 5th Year Internal)",null,null,{"$f":"SUM(G30:G36)","v":{"v":0,"d":"$0.00"}}]
[{"$nulls":3},"Wet Systems Subtotal (No 5th Year Internal)",null,null,{"$f":"SUM(G30:G35)","v":{"v":0,"d":"$0.00"}}]
[]
[4,"Fire Extinguishers (Annual/3 Year/6 Year/12 Year)",null,null,23,null,{"v":0,"d":"$0.00"}]
[]
[5,"Emergency Exit Lights w/ Battery Backup (Annual)",null,null,13,null,{"v":0,"d":"$0.00"}]
[null,"5a Emergency Egress Lights w/Battery Back-up",null,null,19,null,{"v":0,"d":"$0.00"}]
[]
[{"$nulls":3},"Building Subtotal Year 1 - Incl Sensitivity & 5th Year Internal",null,null,{"$f":"SUM(G15,G26,G37,G40,G42,G43)","v":{"v":0,"d":"$0.00"}}]
[{"$nulls":3},"Building Subtotal Years 3/5 - Incl Sensitivity",null,null,{"$f":"SUM(G15,G26,G38,G40,G42,G43)","v":{"v":0,"d":"$0.00"}}]
[{"$nulls":3},"Building Subtotal Years 2/4",null,null,{"$f":"SUM(G16,G26,G38,G40,G42,G43)","v":{"v":0,"d":"$0.00"}}]

{"sheet":"KDH","index":23,"n_rows":47,"n_cols":7,"rows_kept":47}
[]
["Equipment to Bid for ITM - KDH - Kappa Delta House",{"$nulls":3},"Back to Contents"]
[]
[1,"Fire Alarm (Annual)",{"$nulls":4},"Bid Price"]
[]
[null,"Device Counts",null,"Smoke Detectors",29,null,{"v":0,"d":"$0.00"}]
[{"$nulls":3},"Heat Detectors",3,null,{"v":0,"d":"$0.00"}]
[{"$nulls":3},"Duct Detectors",10,null,{"v":0,"d":"$0.00"}]
[{"$nulls":3},"Pull Stations",3,null,{"v":0,"d":"$0.00"}]
[{"$nulls":3},"Relay (Aux Control Functions)",0,null,{"v":0,"d":"$0.00"}]
[{"$nulls":3},"Waterflow",1,null,{"v":0,"d":"$0.00"}]
[{"$nulls":3},"Tamper Valves",1,null,{"v":0,"d":"$0.00"}]
[{"$nulls":3},"Kitchen Hood",1,null,{"v":0,"d":"$0.00"}]
[{"$nulls":3},"Notification Appliances","Bld",null,{"v":0,"d":"$0.00"}]
[{"$nulls":3},"Smoke Sensitivity Subtotal (Year 1/3/5)",{"$f":"SUM(E6+E8)","v":39},null,{"$f":"SUM(G6:G14)","v":{"v":0,"d":"$0.00"}}]
[{"$nulls":3},"FA Inspection - Non-Sensitivity Subtotal(Year 2/4)",null,null,{"$f":"SUM(G15*0.7010980775)","v":{"v":0,"d":"$0.00"}}]
[]
[]
[2,"Mass Notification (Semi-Annual)",null,null,"Currently No Mass Notification for this building"]
[]
[{"$nulls":3},"FA Signals received at UAHPD",1,null,{"v":0,"d":"$0.00"}]
[null,"(7 msg x Bld w/MNS)",null,"All MNS messages received at Bld","N/A",null,{"v":0,"d":"$0.00"}]
[null,"(7 msg x Bld w/MNS)",null,"All MNS messages restore at UAHPD","N/A",null,{"v":0,"d":"$0.00"}]
[{"$nulls":3},"All Speakers Operational","N/A",null,{"v":0,"d":"$0.00"}]
[{"$nulls":3},"All Amber Strobes Operational","N/A",null,{"v":0,"d":"$0.00"}]
[{"$nulls":3},"Mass Notification Subtotal",null,null,{"$f":"SUM(G21:G25)","v":{"v":0,"d":"$0.00"}}]
[]
[3,"Sprinkler System (Annual/Semi-Annual as noted)"]
[]
[null,"3a","Kitchen Hoods (Semi-Annual) - Price for 2 Inspections",null,1,null,{"v":0,"d":"$0.00"}]
[null,"3b","Suppression Panels (S/A) Price for 2 Inspections - 1 to incl panel",null,"N/A",null,{"v":0,"d":"$0.00"}]
[null,"3c","Flow & Tamper Valves (Annual-separate from FA test)",null,1,null,{"v":0,"d":"$0.00"}]
[null,"3d","Fire Pump ",null,"N/A",null,{"v":0,"d":"$0.00"}]
[null,"3e","Standpipe",null,"N/A",null,{"v":0,"d":"$0.00"}]
[null,"3f","Backflow",{"$nulls":3},{"v":0,"d":"$0.00"}]
[null,"3g","5th Year Internal Inspection (To be done Year 1)",{"$nulls":3},{"v":0,"d":"$0.00"}]
[{"$nulls":3},"Wet Systems Subtotal (Incl 5th Year Internal)",null,null,{"$f":"SUM(G30:G36)","v":{"v":0,"d":"$0.00"}}]
[{"$nulls":3},"Wet Systems Subtotal (No 5th Year Internal)",null,null,{"$f":"SUM(G30:G35)","v":{"v":0,"d":"$0.00"}}]
[]
[4,"Fire Extinguishers (Annual/3 Year/6 Year/12 Year)",null,null,4,null,{"v":0,"d":"$0.00"}]
[]
[5,"Emergency Exit Lights w/ Battery Backup (Annual)",null,null,9,null,{"v":0,"d":"$0.00"}]
[null,"5a Emergency Egress Lights w/Battery Back-up",null,null,0,null,{"v":0,"d":"$0.00"}]
[]
[{"$nulls":3},"Building Subtotal Year 1 - Incl Sensitivity & 5th Year Internal",null,null,{"$f":"SUM(G15,G26,G37,G40,G42,G43)","v":{"v":0,"d":"$0.00"}}]
[{"$nulls":3},"Building Subtotal Years 3/5 - Incl Sensitivity",null,null,{"$f":"SUM(G15,G26,G38,G40,G42,G43)","v":{"v":0,"d":"$0.00"}}]
[{"$nulls":3},"Building Subtotal Years 2/4",null,null,{"$f":"SUM(G16,G26,G38,G40,G42,G43)","v":{"v":0,"d":"$0.00"}}]

{"sheet":"LIB","index":24,"n_rows":47,"n_cols":7,"rows_kept":47}
[]
["Equipment to Bid for ITM - LIB - Salmon Library",{"$nulls":3},"Back to Contents"]
[]
[1,"Fire Alarm (Annual)",{"$nulls":4},"Bid Price"]
[]
[null,"Device Counts",null,"Smoke Detectors",207,null,{"v":0,"d":"$0.00"}]
[{"$nulls":3},"Heat Detectors",16,null,{"v":0,"d":"$0.00"}]
[{"$nulls":3},"Duct Detectors",10,null,{"v":0,"d":"$0.00"}]
[{"$nulls":3},"Pull Stations",32,null,{"v":0,"d":"$0.00"}]
[{"$nulls":3},"Relay (Aux Control Functions)",9,null,{"v":0,"d":"$0.00"}]
[{"$nulls":3},"Waterflow",3,null,{"v":0,"d":"$0.00"}]
[{"$nulls":3},"Tamper Valves",4,null,{"v":0,"d":"$0.00"}]
[{"$nulls":3},"Kitchen Hood","N/A",null,{"v":0,"d":"$0.00"}]
[{"$nulls":3},"Notification Appliances","Bld",null,{"v":0,"d":"$0.00"}]
[{"$nulls":3},"Smoke Sensitivity Subtotal (Year 1/3/5)",{"$f":"SUM(E6+E8)","v":217},null,{"$f":"SUM(G6:G14)","v":{"v":0,"d":"$0.00"}}]
[{"$nulls":3},"FA Inspection - Non-Sensitivity Subtotal(Year 2/4)",null,null,{"$f":"SUM(G15*0.7010980775)","v":{"v":0,"d":"$0.00"}}]
[]
[]
[2,"Mass Notification (Semi-Annual)"]
[]
[{"$nulls":3},"FA Signals received at UAHPD",1,null,{"v":0,"d":"$0.00"}]
[null,"(7 msg x Bld w/MNS)",null,"All MNS messages received at Bld",7,null,{"v":0,"d":"$0.00"}]
[null,"(7 msg x Bld w/MNS)",null,"All MNS messages restore at UAHPD",7,null,{"v":0,"d":"$0.00"}]
[{"$nulls":3},"All Speakers Operational","Bld",null,{"v":0,"d":"$0.00"}]
[{"$nulls":3},"All Amber Strobes Operational","Bld",null,{"v":0,"d":"$0.00"}]
[{"$nulls":3},"Mass Notification Subtotal",null,null,{"$f":"SUM(G21:G25)","v":{"v":0,"d":"$0.00"}}]
[]
[3,"Sprinkler System (Annual/Semi-Annual as noted)"]
[]
[null,"3a","Kitchen Hoods (Semi-Annual)",null,"N/A",null,{"v":0,"d":"$0.00"}]
[null,"3b","Suppression Panels (S/A) Price for 2 Inspections - 1 to incl panel",null,"N/A",null,{"v":0,"d":"$0.00"}]
[null,"3c","Flow & Tamper Valves (Annual-separate from FA test)",null,3,null,{"v":0,"d":"$0.00"}]
[null,"3d","Fire Pump ",null,"N/A",null,{"v":0,"d":"$0.00"}]
[null,"3e","Standpipe",null,"N/A",null,{"v":0,"d":"$0.00"}]
[null,"3f","Backflow",{"$nulls":3},{"v":0,"d":"$0.00"}]
[null,"3g","5th Year Internal Inspection (To be done Year 1)",null,1,null,{"v":0,"d":"$0.00"}]
[{"$nulls":3},"Wet Systems Subtotal (Incl 5th Year Internal)",null,null,{"$f":"SUM(G30:G36)","v":{"v":0,"d":"$0.00"}}]
[{"$nulls":3},"Wet Systems Subtotal (No 5th Year Internal)",null,null,{"$f":"SUM(G30:G35)","v":{"v":0,"d":"$0.00"}}]
[]
[4,"Fire Extinguishers (Annual/3 Year/6 Year/12 Year)",null,null,37,null,{"v":0,"d":"$0.00"}]
[]
[5,"Emergency Exit Lights w/ Battery Backup (Annual)",null,null,46,null,{"v":0,"d":"$0.00"}]
[null,"5a Emergency Egress Lights w/Battery Back-up",{"$nulls":4},{"v":0,"d":"$0.00"}]
[]
[{"$nulls":3},"Building Subtotal Year 1 - Incl Sensitivity & 5th Year Internal",null,null,{"$f":"SUM(G15,G26,G37,G40,G42,G43)","v":{"v":0,"d":"$0.00"}}]
[{"$nulls":3},"Building Subtotal Years 3/5 - Incl Sensitivity",null,null,{"$f":"SUM(G15,G26,G38,G40,G42,G43)","v":{"v":0,"d":"$0.00"}}]
[{"$nulls":3},"Building Subtotal Years 2/4",null,null,{"$f":"SUM(G16,G26,G38,G40,G42,G43)","v":{"v":0,"d":"$0.00"}}]

{"sheet":"MOR","index":25,"n_rows":47,"n_cols":7,"rows_kept":47}
[]
["Equipment to Bid for ITM - MOR - Morton Hall",{"$nulls":3},"Back to Contents"]
[]
[1,"Fire Alarm (Annual)",{"$nulls":4},"Bid Price"]
[]
[null,"Device Counts",null,"Smoke Detectors",106,null,{"v":0,"d":"$0.00"}]
[{"$nulls":3},"Heat Detectors",45,null,{"v":0,"d":"$0.00"}]
[{"$nulls":3},"Duct Detectors",39,null,{"v":0,"d":"$0.00"}]
[{"$nulls":3},"Pull Stations",11,null,{"v":0,"d":"$0.00"}]
[{"$nulls":3},"Relay (Aux Control Functions)",41,null,{"v":0,"d":"$0.00"}]
[{"$nulls":3},"Waterflow",12,null,{"v":0,"d":"$0.00"}]
[{"$nulls":3},"Tamper Valves",16,null,{"v":0,"d":"$0.00"}]
[{"$nulls":3},"Kitchen Hood","N/A",null,{"v":0,"d":"$0.00"}]
[{"$nulls":3},"Notification Appliances","Bld",null,{"v":0,"d":"$0.00"}]
[{"$nulls":3},"Smoke Sensitivity Subtotal (Year 1/3/5)",{"$f":"SUM(E6+E8)","v":145},null,{"$f":"SUM(G6:G14)","v":{"v":0,"d":"$0.00"}}]
[{"$nulls":3},"FA Inspection - Non-Sensitivity Subtotal(Year 2/4)",null,null,{"$f":"SUM(G15*0.7010980775)","v":{"v":0,"d":"$0.00"}}]
[]
[]
[2,"Mass Notification (Semi-Annual)"]
[]
[{"$nulls":3},"FA Signals received at UAHPD",1,null,{"v":0,"d":"$0.00"}]
[null,"(7 msg x Bld w/MNS)",null,"All MNS messages received at Bld",7,null,{"v":0,"d":"$0.00"}]
[null,"(7 msg x Bld w/MNS)",null,"All MNS messages restore at UAHPD",7,null,{"v":0,"d":"$0.00"}]
[{"$nulls":3},"All Speakers Operational","Bld",null,{"v":0,"d":"$0.00"}]
[{"$nulls":3},"All Amber Strobes Operational","Bld",null,{"v":0,"d":"$0.00"}]
[{"$nulls":3},"Mass Notification Subtotal",null,null,{"$f":"SUM(G21:G25)","v":{"v":0,"d":"$0.00"}}]
[]
[3,"Sprinkler System (Annual/Semi-Annual as noted)"]
[]
[null,"3a","Kitchen Hoods (Semi-Annual)",null,"N/A",null,{"v":0,"d":"$0.00"}]
[null,"3b","Suppression Panels (S/A) Price for 2 Inspections - 1 to incl panel",null,"N/A",null,{"v":0,"d":"$0.00"}]
[null,"3c","Flow & Tamper Valves (Annual-separate from FA test)",null,12,null,{"v":0,"d":"$0.00"}]
[null,"3d","Fire Pump ",null,"N/A",null,{"v":0,"d":"$0.00"}]
[null,"3e","Standpipe",null,1,null,{"v":0,"d":"$0.00"}]
[null,"3f","Backflow",{"$nulls":3},{"v":0,"d":"$0.00"}]
[null,"3g","5th Year Internal Inspection (To be done Year 1)",{"$nulls":3},{"v":0,"d":"$0.00"}]
[{"$nulls":3},"Wet Systems Subtotal (Incl 5th Year Internal)",null,null,{"$f":"SUM(G30:G36)","v":{"v":0,"d":"$0.00"}}]
[{"$nulls":3},"Wet Systems Subtotal (No 5th Year Internal)",null,null,{"$f":"SUM(G30:G35)","v":{"v":0,"d":"$0.00"}}]
[]
[4,"Fire Extinguishers (Annual/3 Year/6 Year/12 Year)",null,null,36,null,{"v":0,"d":"$0.00"}]
[]
[5,"Emergency Exit Lights w/ Battery Backup (Annual)",{"$nulls":4},{"v":0,"d":"$0.00"}]
[null,"5a Emergency Egress Lights w/Battery Back-up",{"$nulls":4},{"v":0,"d":"$0.00"}]
[]
[{"$nulls":3},"Building Subtotal Year 1 - Incl Sensitivity & 5th Year Internal",null,null,{"$f":"SUM(G15,G26,G37,G40,G42,G43)","v":{"v":0,"d":"$0.00"}}]
[{"$nulls":3},"Building Subtotal Years 3/5 - Incl Sensitivity",null,null,{"$f":"SUM(G15,G26,G38,G40,G42,G43)","v":{"v":0,"d":"$0.00"}}]
[{"$nulls":3},"Building Subtotal Years 2/4",null,null,{"$f":"SUM(G16,G26,G38,G40,G42,G43)","v":{"v":0,"d":"$0.00"}}]

{"sheet":"MSB","index":26,"n_rows":47,"n_cols":7,"rows_kept":47}
[]
["Equipment to Bid for ITM - MSB - Material Science Building",{"$nulls":3},"Back to Contents"]
[]
[1,"Fire Alarm (Annual)",{"$nulls":4},"Bid Price"]
[]
[null,"Device Counts",null,"Smoke Detectors",109,null,{"v":0,"d":"$0.00"}]
[{"$nulls":3},"Heat Detectors",7,null,{"v":0,"d":"$0.00"}]
[{"$nulls":3},"Duct Detectors",29,null,{"v":0,"d":"$0.00"}]
[{"$nulls":3},"Pull Stations",25,null,{"v":0,"d":"$0.00"}]
[{"$nulls":3},"Relay (Aux Control Functions)",33,null,{"v":0,"d":"$0.00"}]
[{"$nulls":3},"Waterflow",5,null,{"v":0,"d":"$0.00"}]
[{"$nulls":3},"Tamper Valves",9,null,{"v":0,"d":"$0.00"}]
[{"$nulls":3},"Kitchen Hood","N/A",null,{"v":0,"d":"$0.00"}]
[{"$nulls":3},"Notification Appliances","Bld",null,{"v":0,"d":"$0.00"}]
[{"$nulls":3},"Smoke Sensitivity Subtotal (Year 1/3/5)",{"$f":"SUM(E6+E8)","v":138},null,{"$f":"SUM(G6:G14)","v":{"v":0,"d":"$0.00"}}]
[{"$nulls":3},"FA Inspection - Non-Sensitivity Subtotal(Year 2/4)",null,null,{"$f":"SUM(G15*0.7010980775)","v":{"v":0,"d":"$0.00"}}]
[]
[]
[2,"Mass Notification (Semi-Annual)"]
[]
[{"$nulls":3},"FA Signals received at UAHPD",1,null,{"v":0,"d":"$0.00"}]
[null,"(7 msg x Bld w/MNS)",null,"All MNS messages received at Bld",7,null,{"v":0,"d":"$0.00"}]
[null,"(7 msg x Bld w/MNS)",null,"All MNS messages restore at UAHPD",7,null,{"v":0,"d":"$0.00"}]
[{"$nulls":3},"All Speakers Operational","Bld",null,{"v":0,"d":"$0.00"}]
[{"$nulls":3},"All Amber Strobes Operational","Bld",null,{"v":0,"d":"$0.00"}]
[{"$nulls":3},"Mass Notification Subtotal",null,null,{"$f":"SUM(G21:G25)","v":{"v":0,"d":"$0.00"}}]
[]
[3,"Sprinkler System (Annual/Semi-Annual as noted)"]
[]
[null,"3a","Kitchen Hoods (Semi-Annual)",null,"N/A",null,{"v":0,"d":"$0.00"}]
[null,"3b","Suppression Panels (S/A) Price for 2 Inspections - 1 to incl panel",null,"N/A",null,{"v":0,"d":"$0.00"}]
[null,"3c","Flow & Tamper Valves (Annual-separate from FA test)",null,5,null,{"v":0,"d":"$0.00"}]
[null,"3d","Fire Pump ",null,"N/A",null,{"v":0,"d":"$0.00"}]
[null,"3e","Standpipe",null,1,null,{"v":0,"d":"$0.00"}]
[null,"3f","Backflow",{"$nulls":3},{"v":0,"d":"$0.00"}]
[null,"3g","5th Year Internal Inspection (To be done Year 1)",{"$nulls":3},{"v":0,"d":"$0.00"}]
[{"$nulls":3},"Wet Systems Subtotal (Incl 5th Year Internal)",null,null,{"$f":"SUM(G30:G36)","v":{"v":0,"d":"$0.00"}}]
[{"$nulls":3},"Wet Systems Subtotal (No 5th Year Internal)",null,null,{"$f":"SUM(G30:G35)","v":{"v":0,"d":"$0.00"}}]
[]
[4,"Fire Extinguishers (Annual/3 Year/6 Year/12 Year)",null,null,90,null,{"v":0,"d":"$0.00"}]
[]
[5,"Emergency Exit Lights w/ Battery Backup (Annual)",{"$nulls":4},{"v":0,"d":"$0.00"}]
[null,"5a Emergency Egress Lights w/Battery Back-up",{"$nulls":4},{"v":0,"d":"$0.00"}]
[]
[{"$nulls":3},"Building Subtotal Year 1 - Incl Sensitivity & 5th Year Internal",null,null,{"$f":"SUM(G15,G26,G37,G40,G42,G43)","v":{"v":0,"d":"$0.00"}}]
[{"$nulls":3},"Building Subtotal Years 3/5 - Incl Sensitivity",null,null,{"$f":"SUM(G15,G26,G38,G40,G42,G43)","v":{"v":0,"d":"$0.00"}}]
[{"$nulls":3},"Building Subtotal Years 2/4",null,null,{"$f":"SUM(G16,G26,G38,G40,G42,G43)","v":{"v":0,"d":"$0.00"}}]

{"sheet":"NCH","index":27,"n_rows":47,"n_cols":7,"rows_kept":47}
[]
["Equipment to Bid for ITM - NCH - North Campus Housing",{"$nulls":3},"Back to Contents"]
[]
[1,"Fire Alarm (Annual)",{"$nulls":4},"Bid Price"]
[]
[null,"Device Counts",null,"Smoke Detectors",486,null,{"v":0,"d":"$0.00"}]
[{"$nulls":3},"Heat Detectors",32,null,{"v":0,"d":"$0.00"}]
[{"$nulls":3},"Duct Detectors",0,null,{"v":0,"d":"$0.00"}]
[{"$nulls":3},"Pull Stations",27,null,{"v":0,"d":"$0.00"}]
[{"$nulls":3},"Relay (Aux Control Functions)",97,null,{"v":0,"d":"$0.00"}]
[{"$nulls":3},"Waterflow",17,null,{"v":0,"d":"$0.00"}]
[{"$nulls":3},"Tamper Valves",30,null,{"v":0,"d":"$0.00"}]
[{"$nulls":3},"Kitchen Hood","N/A",null,{"v":0,"d":"$0.00"}]
[{"$nulls":3},"Notification Appliances","Bld",null,{"v":0,"d":"$0.00"}]
[{"$nulls":3},"Smoke Sensitivity Subtotal (Year 1/3/5)",{"$f":"SUM(E6+E8)","v":486},null,{"$f":"SUM(G6:G14)","v":{"v":0,"d":"$0.00"}}]
[{"$nulls":3},"FA Inspection - Non-Sensitivity Subtotal(Year 2/4)",null,null,{"$f":"SUM(G15*0.7010980775)","v":{"v":0,"d":"$0.00"}}]
[]
[]
[2,"Mass Notification (Semi-Annual)"]
[]
[{"$nulls":3},"FA Signals received at UAHPD",1,null,{"v":0,"d":"$0.00"}]
[null,"(7 msg x Bld w/MNS)",null,"All MNS messages received at Bld",7,null,{"v":0,"d":"$0.00"}]
[null,"(7 msg x Bld w/MNS)",null,"All MNS messages restore at UAHPD",7,null,{"v":0,"d":"$0.00"}]
[{"$nulls":3},"All Speakers Operational","Bld",null,{"v":0,"d":"$0.00"}]
[{"$nulls":3},"All Amber Strobes Operational","Bld",null,{"v":0,"d":"$0.00"}]
[{"$nulls":3},"Mass Notification Subtotal",null,null,{"$f":"SUM(G21:G25)","v":{"v":0,"d":"$0.00"}}]
[]
[3,"Sprinkler System (Annual/Semi-Annual as noted)"]
[]
[null,"3a","Kitchen Hoods (Semi-Annual)",null,"N/A",null,{"v":0,"d":"$0.00"}]
[null,"3b","Suppression Panels (S/A) Price for 2 Inspections - 1 to incl panel",null,"N/A",null,{"v":0,"d":"$0.00"}]
[null,"3c","Flow & Tamper Valves (Annual-separate from FA test)",null,17,null,{"v":0,"d":"$0.00"}]
[null,"3d","Fire Pump ",null,1,null,{"v":0,"d":"$0.00"}]
[null,"3e","Standpipe",null,1,null,{"v":0,"d":"$0.00"}]
[null,"3f","Backflow",null,2,null,{"v":0,"d":"$0.00"}]
[null,"3g","5th Year Internal Inspection (To be done Year 1)",null,1,null,{"v":0,"d":"$0.00"}]
[{"$nulls":3},"Wet Systems Subtotal (Incl 5th Year Internal)",null,null,{"$f":"SUM(G30:G36)","v":{"v":0,"d":"$0.00"}}]
[{"$nulls":3},"Wet Systems Subtotal (No 5th Year Internal)",null,null,{"$f":"SUM(G30:G35)","v":{"v":0,"d":"$0.00"}}]
[]
[4,"Fire Extinguishers (Annual/3 Year/6 Year/12 Year)",null,null,138,null,{"v":0,"d":"$0.00"}]
[]
[5,"Emergency Exit Lights w/ Battery Backup (Annual)",{"$nulls":4},{"v":0,"d":"$0.00"}]
[null,"5a Emergency Egress Lights w/Battery Back-up",{"$nulls":4},{"v":0,"d":"$0.00"}]
[]
[{"$nulls":3},"Building Subtotal Year 1 - Incl Sensitivity & 5th Year Internal",null,null,{"$f":"SUM(G15,G26,G37,G40,G42,G43)","v":{"v":0,"d":"$0.00"}}]
[{"$nulls":3},"Building Subtotal Years 3/5 - Incl Sensitivity",null,null,{"$f":"SUM(G15,G26,G38,G40,G42,G43)","v":{"v":0,"d":"$0.00"}}]
[{"$nulls":3},"Building Subtotal Years 2/4",null,null,{"$f":"SUM(G16,G26,G38,G40,G42,G43)","v":{"v":0,"d":"$0.00"}}]

{"sheet":"NUR","index":28,"n_rows":47,"n_cols":7,"rows_kept":47}
[]
["Equipment to Bid for ITM - NUR - Nursing Building",{"$nulls":3},"Back to Contents"]
[]
[1,"Fire Alarm (Annual)",{"$nulls":4},"Bid Price"]
[]
[null,"Device Counts",null,"Smoke Detectors",42,null,{"v":0,"d":"$0.00"}]
[{"$nulls":3},"Heat Detectors",8,null,{"v":0,"d":"$0.00"}]
[{"$nulls":3},"Duct Detectors",15,null,{"v":0,"d":"$0.00"}]
[{"$nulls":3},"Pull Stations",31,null,{"v":0,"d":"$0.00"}]
[{"$nulls":3},"Relay (Aux Control Functions)",33,null,{"v":0,"d":"$0.00"}]
[{"$nulls":3},"Waterflow",13,null,{"v":0,"d":"$0.00"}]
[{"$nulls":3},"Tamper Valves",31,null,{"v":0,"d":"$0.00"}]
[{"$nulls":3},"Kitchen Hood","N/A",null,{"v":0,"d":"$0.00"}]
[{"$nulls":3},"Notification Appliances","Bld",null,{"v":0,"d":"$0.00"}]
[{"$nulls":3},"Smoke Sensitivity Subtotal (Year 1/3/5)",{"$f":"SUM(E6+E8)","v":57},null,{"$f":"SUM(G6:G14)","v":{"v":0,"d":"$0.00"}}]
[{"$nulls":3},"FA Inspection - Non-Sensitivity Subtotal(Year 2/4)",null,null,{"$f":"SUM(G15*0.7010980775)","v":{"v":0,"d":"$0.00"}}]
[]
[]
[2,"Mass Notification (Semi-Annual)"]
[]
[{"$nulls":3},"FA Signals received at UAHPD",1,null,{"v":0,"d":"$0.00"}]
[null,"(7 msg x Bld w/MNS)",null,"All MNS messages received at Bld",7,null,{"v":0,"d":"$0.00"}]
[null,"(7 msg x Bld w/MNS)",null,"All MNS messages restore at UAHPD",7,null,{"v":0,"d":"$0.00"}]
[{"$nulls":3},"All Speakers Operational","Bld",null,{"v":0,"d":"$0.00"}]
[{"$nulls":3},"All Amber Strobes Operational","Bld",null,{"v":0,"d":"$0.00"}]
[{"$nulls":3},"Mass Notification Subtotal",null,null,{"$f":"SUM(G21:G25)","v":{"v":0,"d":"$0.00"}}]
[]
[3,"Sprinkler System (Annual/Semi-Annual as noted)"]
[]
[null,"3a","Kitchen Hoods (Semi-Annual)",null,"N/A",null,{"v":0,"d":"$0.00"}]
[null,"3b","Suppression Panels (S/A) Price for 2 Inspections - 1 to incl panel",null,"N/A",null,{"v":0,"d":"$0.00"}]
[null,"3c","Flow & Tamper Valves (Annual-separate from FA test)",null,13,null,{"v":0,"d":"$0.00"}]
[null,"3d","Fire Pump ",null,1,null,{"v":0,"d":"$0.00"}]
[null,"3e","Standpipe",null,1,null,{"v":0,"d":"$0.00"}]
[null,"3f","Backflow",null,1,null,{"v":0,"d":"$0.00"}]
[null,"3g","5th Year Internal Inspection (To be done Year 1)",null,1,null,{"v":0,"d":"$0.00"}]
[{"$nulls":3},"Wet Systems Subtotal (Incl 5th Year Internal)",null,null,{"$f":"SUM(G30:G36)","v":{"v":0,"d":"$0.00"}}]
[{"$nulls":3},"Wet Systems Subtotal (No 5th Year Internal)",null,null,{"$f":"SUM(G30:G35)","v":{"v":0,"d":"$0.00"}}]
[]
[4,"Fire Extinguishers (Annual/3 Year/6 Year/12 Year)",null,null,39,null,{"v":0,"d":"$0.00"}]
[]
[5,"Emergency Exit Lights w/ Battery Backup (Annual)",{"$nulls":4},{"v":0,"d":"$0.00"}]
[null,"5a Emergency Egress Lights w/Battery Back-up",{"$nulls":4},{"v":0,"d":"$0.00"}]
[]
[{"$nulls":3},"Building Subtotal Year 1 - Incl Sensitivity & 5th Year Internal",null,null,{"$f":"SUM(G15,G26,G37,G40,G42,G43)","v":{"v":0,"d":"$0.00"}}]
[{"$nulls":3},"Building Subtotal Years 3/5 - Incl Sensitivity",null,null,{"$f":"SUM(G15,G26,G38,G40,G42,G43)","v":{"v":0,"d":"$0.00"}}]
[{"$nulls":3},"Building Subtotal Years 2/4",null,null,{"$f":"SUM(G16,G26,G38,G40,G42,G43)","v":{"v":0,"d":"$0.00"}}]

{"sheet":"OKT","index":29,"n_rows":47,"n_cols":7,"rows_kept":47}
[]
["Equipment to Bid for ITM - OKT - Olin King Technology Hall",{"$nulls":3},"Back to Contents"]
[]
[1,"Fire Alarm (Annual)",{"$nulls":4},"Bid Price"]
[]
[null,"Device Counts",null,"Smoke Detectors",301,null,{"v":0,"d":"$0.00"}]
[{"$nulls":3},"Heat Detectors",37,null,{"v":0,"d":"$0.00"}]
[{"$nulls":3},"Duct Detectors",6,null,{"v":0,"d":"$0.00"}]
[{"$nulls":3},"Pull Stations",20,null,{"v":0,"d":"$0.00"}]
[{"$nulls":3},"Relay (Aux Control Functions)",5,null,{"v":0,"d":"$0.00"}]
[{"$nulls":3},"Waterflow",2,null,{"v":0,"d":"$0.00"}]
[{"$nulls":3},"Tamper Valves",2,null,{"v":0,"d":"$0.00"}]
[{"$nulls":3},"Kitchen Hood","N/A",null,{"v":0,"d":"$0.00"}]
[{"$nulls":3},"Notification Appliances","Bld",null,{"v":0,"d":"$0.00"}]
[{"$nulls":3},"Smoke Sensitivity Subtotal (Year 1/3/5)",{"$f":"SUM(E6+E8)","v":307},null,{"$f":"SUM(G6:G14)","v":{"v":0,"d":"$0.00"}}]
[{"$nulls":3},"FA Inspection - Non-Sensitivity Subtotal(Year 2/4)",null,null,{"$f":"SUM(G15*0.7010980775)","v":{"v":0,"d":"$0.00"}}]
[]
[]
[2,"Mass Notification (Semi-Annual)",null,null,"Currently No Mass Notification for this building"]
[]
[{"$nulls":3},"FA Signals received at UAHPD",1,null,{"v":0,"d":"$0.00"}]
[null,"(7 msg x Bld w/MNS)",null,"All MNS messages received at Bld","N/A",null,{"v":0,"d":"$0.00"}]
[null,"(7 msg x Bld w/MNS)",null,"All MNS messages restore at UAHPD","N/A",null,{"v":0,"d":"$0.00"}]
[{"$nulls":3},"All Speakers Operational","Bld",null,{"v":0,"d":"$0.00"}]
[{"$nulls":3},"All Amber Strobes Operational","Bld",null,{"v":0,"d":"$0.00"}]
[{"$nulls":3},"Mass Notification Subtotal",null,null,{"$f":"SUM(G21:G25)","v":{"v":0,"d":"$0.00"}}]
[]
[3,"Sprinkler System (Annual/Semi-Annual as noted)"]
[]
[null,"3a","Kitchen Hoods (Semi-Annual)",null,"N/A",null,{"v":0,"d":"$0.00"}]
[null,"3b","Suppression Panels (S/A) Price for 2 Inspections - 1 to incl panel",null,"N/A",null,{"v":0,"d":"$0.00"}]
[null,"3c","Flow & Tamper Valves (Annual-separate from FA test)",null,2,null,{"v":0,"d":"$0.00"}]
[null,"3d","Fire Pump ",null,"N/A",null,{"v":0,"d":"$0.00"}]
[null,"3e","Standpipe",null,"N/A",null,{"v":0,"d":"$0.00"}]
[null,"3f","Backflow",{"$nulls":3},{"v":0,"d":"$0.00"}]
[null,"3g","5th Year Internal Inspection (To be done Year 1)",null,1,null,{"v":0,"d":"$0.00"}]
[{"$nulls":3},"Wet Systems Subtotal (Incl 5th Year Internal)",null,null,{"$f":"SUM(G30:G36)","v":{"v":0,"d":"$0.00"}}]
[{"$nulls":3},"Wet Systems Subtotal (No 5th Year Internal)",null,null,{"$f":"SUM(G30:G35)","v":{"v":0,"d":"$0.00"}}]
[]
[4,"Fire Extinguishers (Annual/3 Year/6 Year/12 Year)",null,null,61,null,{"v":0,"d":"$0.00"}]
[]
[5,"Emergency Exit Lights w/ Battery Backup (Annual)",{"$nulls":4},{"v":0,"d":"$0.00"}]
[null,"5a Emergency Egress Lights w/Battery Back-up",null,null,25,null,{"v":0,"d":"$0.00"}]
[]
[{"$nulls":3},"Building Subtotal Year 1 - Incl Sensitivity & 5th Year Internal",null,null,{"$f":"SUM(G15,G26,G37,G40,G42,G43)","v":{"v":0,"d":"$0.00"}}]
[{"$nulls":3},"Building Subtotal Years 3/5 - Incl Sensitivity",null,null,{"$f":"SUM(G15,G26,G38,G40,G42,G43)","v":{"v":0,"d":"$0.00"}}]
[{"$nulls":3},"Building Subtotal Years 2/4",null,null,{"$f":"SUM(G16,G26,G38,G40,G42,G43)","v":{"v":0,"d":"$0.00"}}]

{"sheet":"OPB","index":30,"n_rows":47,"n_cols":7,"rows_kept":47}
[]
["Equipment to Bid for ITM - OPB - Optics Building",{"$nulls":3},"Back to Contents"]
[]
[1,"Fire Alarm (Annual)",{"$nulls":4},"Bid Price"]
[]
[null,"Device Counts",null,"Smoke Detectors",181,null,{"v":0,"d":"$0.00"}]
[{"$nulls":3},"Heat Detectors",32,null,{"v":0,"d":"$0.00"}]
[{"$nulls":3},"Duct Detectors",3,null,{"v":0,"d":"$0.00"}]
[{"$nulls":3},"Pull Stations",15,null,{"v":0,"d":"$0.00"}]
[{"$nulls":3},"Relay (Aux Control Functions)",34,null,{"v":0,"d":"$0.00"}]
[{"$nulls":3},"Waterflow",3,null,{"v":0,"d":"$0.00"}]
[{"$nulls":3},"Tamper Valves",3,null,{"v":0,"d":"$0.00"}]
[{"$nulls":3},"Kitchen Hood","N/A",null,{"v":0,"d":"$0.00"}]
[{"$nulls":3},"Notification Appliances","Bld",null,{"v":0,"d":"$0.00"}]
[{"$nulls":3},"Smoke Sensitivity Subtotal (Year 1/3/5)",{"$f":"SUM(E6+E8)","v":184},null,{"$f":"SUM(G6:G14)","v":{"v":0,"d":"$0.00"}}]
[{"$nulls":3},"FA Inspection - Non-Sensitivity Subtotal(Year 2/4)",null,null,{"$f":"SUM(G15*0.7010980775)","v":{"v":0,"d":"$0.00"}}]
[]
[]
[2,"Mass Notification (Semi-Annual)",null,null,"Currently No Mass Notification for this building"]
[]
[{"$nulls":3},"FA Signals received at UAHPD",1,null,{"v":0,"d":"$0.00"}]
[null,"(7 msg x Bld w/MNS)",null,"All MNS messages received at Bld","N/A",null,{"v":0,"d":"$0.00"}]
[null,"(7 msg x Bld w/MNS)",null,"All MNS messages restore at UAHPD","N/A",null,{"v":0,"d":"$0.00"}]
[{"$nulls":3},"All Speakers Operational","N/A",null,{"v":0,"d":"$0.00"}]
[{"$nulls":3},"All Amber Strobes Operational","N/A",null,{"v":0,"d":"$0.00"}]
[{"$nulls":3},"Mass Notification Subtotal",null,null,{"$f":"SUM(G21:G25)","v":{"v":0,"d":"$0.00"}}]
[]
[3,"Sprinkler System (Annual/Semi-Annual as noted)"]
[]
[null,"3a","Kitchen Hoods (Semi-Annual)",null,"N/A",null,{"v":0,"d":"$0.00"}]
[null,"3b","Suppression Panels (S/A) Price for 2 Inspections - 1 to incl panel",null,"N/A",null,{"v":0,"d":"$0.00"}]
[null,"3c","Flow & Tamper Valves (Annual-separate from FA test)",null,3,null,{"v":0,"d":"$0.00"}]
[null,"3d","Fire Pump ",null,"N/A",null,{"v":0,"d":"$0.00"}]
[null,"3e","Standpipe",null,1,null,{"v":0,"d":"$0.00"}]
[null,"3f","Backflow",{"$nulls":3},{"v":0,"d":"$0.00"}]
[null,"3g","5th Year Internal Inspection (To be done Year 1)",null,1,null,{"v":0,"d":"$0.00"}]
[{"$nulls":3},"Wet Systems Subtotal (Incl 5th Year Internal)",null,null,{"$f":"SUM(G30:G36)","v":{"v":0,"d":"$0.00"}}]
[{"$nulls":3},"Wet Systems Subtotal (No 5th Year Internal)",null,null,{"$f":"SUM(G30:G35)","v":{"v":0,"d":"$0.00"}}]
[]
[4,"Fire Extinguishers (Annual/3 Year/6 Year/12 Year)",null,null,39,null,{"v":0,"d":"$0.00"}]
[]
[5,"Emergency Exit Lights w/ Battery Backup (Annual)",{"$nulls":4},{"v":0,"d":"$0.00"}]
[null,"5a Emergency Egress Lights w/Battery Back-up",{"$nulls":4},{"v":0,"d":"$0.00"}]
[]
[{"$nulls":3},"Building Subtotal Year 1 - Incl Sensitivity & 5th Year Internal",null,null,{"$f":"SUM(G15,G26,G37,G40,G42,G43)","v":{"v":0,"d":"$0.00"}}]
[{"$nulls":3},"Building Subtotal Years 3/5 - Incl Sensitivity",null,null,{"$f":"SUM(G15,G26,G38,G40,G42,G43)","v":{"v":0,"d":"$0.00"}}]
[{"$nulls":3},"Building Subtotal Years 2/4",null,null,{"$f":"SUM(G16,G26,G38,G40,G42,G43)","v":{"v":0,"d":"$0.00"}}]

{"sheet":"PPB","index":31,"n_rows":47,"n_cols":7,"rows_kept":47}
[]
["Equipment to Bid for ITM - PPB - Physical Plant Building",{"$nulls":3},"Back to Contents"]
[]
[1,"Fire Alarm (Annual)",{"$nulls":4},"Bid Price"]
[]
[null,"Device Counts",null,"Smoke Detectors",7,null,{"v":0,"d":"$0.00"}]
[{"$nulls":3},"Heat Detectors",23,null,{"v":0,"d":"$0.00"}]
[{"$nulls":3},"Duct Detectors",12,null,{"v":0,"d":"$0.00"}]
[{"$nulls":3},"Pull Stations",10,null,{"v":0,"d":"$0.00"}]
[{"$nulls":3},"Relay (Aux Control Functions)",7,null,{"v":0,"d":"$0.00"}]
[{"$nulls":3},"Waterflow",0,null,{"v":0,"d":"$0.00"}]
[{"$nulls":3},"Tamper Valves",0,null,{"v":0,"d":"$0.00"}]
[{"$nulls":3},"Kitchen Hood","N/A",null,{"v":0,"d":"$0.00"}]
[{"$nulls":3},"Notification Appliances","Bld",null,{"v":0,"d":"$0.00"}]
[{"$nulls":3},"Smoke Sensitivity Subtotal (Year 1/3/5)",{"$f":"SUM(E6+E8)","v":19},null,{"$f":"SUM(G6:G14)","v":{"v":0,"d":"$0.00"}}]
[{"$nulls":3},"FA Inspection - Non-Sensitivity Subtotal(Year 2/4)",null,null,{"$f":"SUM(G15*0.7010980775)","v":{"v":0,"d":"$0.00"}}]
[]
[]
[2,"Mass Notification (Semi-Annual)",null,null,"Currently No Mass Notification for this building"]
[]
[{"$nulls":3},"FA Signals received at UAHPD",1,null,{"v":0,"d":"$0.00"}]
[null,"(7 msg x Bld w/MNS)",null,"All MNS messages received at Bld","N/A",null,{"v":0,"d":"$0.00"}]
[null,"(7 msg x Bld w/MNS)",null,"All MNS messages restore at UAHPD","N/A",null,{"v":0,"d":"$0.00"}]
[{"$nulls":3},"All Speakers Operational","N/A",null,{"v":0,"d":"$0.00"}]
[{"$nulls":3},"All Amber Strobes Operational","N/A",null,{"v":0,"d":"$0.00"}]
[{"$nulls":3},"Mass Notification Subtotal",null,null,{"$f":"SUM(G21:G25)","v":{"v":0,"d":"$0.00"}}]
[]
[3,"Sprinkler System (Annual/Semi-Annual as noted)"]
[]
[null,"3a","Kitchen Hoods (Semi-Annual)",null,"N/A",null,{"v":0,"d":"$0.00"}]
[null,"3b","Suppression Panels (S/A) Price for 2 Inspections - 1 to incl panel",null,"N/A",null,{"v":0,"d":"$0.00"}]
[null,"3c","Flow & Tamper Valves (Annual-separate from FA test)",null,"N/A",null,{"v":0,"d":"$0.00"}]
[null,"3d","Fire Pump ",null,"N/A",null,{"v":0,"d":"$0.00"}]
[null,"3e","Standpipe",null,"N/A",null,{"v":0,"d":"$0.00"}]
[null,"3f","Backflow",{"$nulls":3},{"v":0,"d":"$0.00"}]
[null,"3g","5th Year Internal Inspection (To be done Year 1)",{"$nulls":3},{"v":0,"d":"$0.00"}]
[{"$nulls":3},"Wet Systems Subtotal (Incl 5th Year Internal)",null,null,{"$f":"SUM(G30:G36)","v":{"v":0,"d":"$0.00"}}]
[{"$nulls":3},"Wet Systems Subtotal (No 5th Year Internal)",null,null,{"$f":"SUM(G30:G35)","v":{"v":0,"d":"$0.00"}}]
[]
[4,"Fire Extinguishers (Annual/3 Year/6 Year/12 Year)",null,null,14,null,{"v":0,"d":"$0.00"}]
[]
[5,"Emergency Exit Lights w/ Battery Backup (Annual)",{"$nulls":4},{"v":0,"d":"$0.00"}]
[null,"5a Emergency Egress Lights w/Battery Back-up",{"$nulls":4},{"v":0,"d":"$0.00"}]
[]
[{"$nulls":3},"Building Subtotal Year 1 - Incl Sensitivity & 5th Year Internal",null,null,{"$f":"SUM(G15,G26,G37,G40,G42,G43)","v":{"v":0,"d":"$0.00"}}]
[{"$nulls":3},"Building Subtotal Years 3/5 - Incl Sensitivity",null,null,{"$f":"SUM(G15,G26,G38,G40,G42,G43)","v":{"v":0,"d":"$0.00"}}]
[{"$nulls":3},"Building Subtotal Years 2/4",null,null,{"$f":"SUM(G16,G26,G38,G40,G42,G43)","v":{"v":0,"d":"$0.00"}}]

{"sheet":"ROB","index":32,"n_rows":47,"n_cols":7,"rows_kept":47}
[]
["Equipment to Bid for ITM - ROB - Roberts Hall",{"$nulls":3},"Back to Contents"]
[]
[1,"Fire Alarm (Annual)",{"$nulls":4},"Bid Price"]
[]
[null,"Device Counts",null,"Smoke Detectors",88,null,{"v":0,"d":"$0.00"}]
[{"$nulls":3},"Heat Detectors",31,null,{"v":0,"d":"$0.00"}]
[{"$nulls":3},"Duct Detectors",13,null,{"v":0,"d":"$0.00"}]
[{"$nulls":3},"Pull Stations",25,null,{"v":0,"d":"$0.00"}]
[{"$nulls":3},"Relay (Aux Control Functions)",4,null,{"v":0,"d":"$0.00"}]
[{"$nulls":3},"Waterflow",0,null,{"v":0,"d":"$0.00"}]
[{"$nulls":3},"Tamper Valves",0,null,{"v":0,"d":"$0.00"}]
[{"$nulls":3},"Kitchen Hood","N/A",null,{"v":0,"d":"$0.00"}]
[{"$nulls":3},"Notification Appliances","Bld",null,{"v":0,"d":"$0.00"}]
[{"$nulls":3},"Smoke Sensitivity Subtotal (Year 1/3/5)",{"$f":"SUM(E6+E8)","v":101},null,{"$f":"SUM(G6:G14)","v":{"v":0,"d":"$0.00"}}]
[{"$nulls":3},"FA Inspection - Non-Sensitivity Subtotal(Year 2/4)",null,null,{"$f":"SUM(G15*0.7010980775)","v":{"v":0,"d":"$0.00"}}]
[]
[]
[2,"Mass Notification (Semi-Annual)"]
[]
[{"$nulls":3},"FA Signals received at UAHPD",1,null,{"v":0,"d":"$0.00"}]
[null,"(7 msg x Bld w/MNS)",null,"All MNS messages received at Bld",7,null,{"v":0,"d":"$0.00"}]
[null,"(7 msg x Bld w/MNS)",null,"All MNS messages restore at UAHPD",7,null,{"v":0,"d":"$0.00"}]
[{"$nulls":3},"All Speakers Operational","Bld",null,{"v":0,"d":"$0.00"}]
[{"$nulls":3},"All Amber Strobes Operational","Bld",null,{"v":0,"d":"$0.00"}]
[{"$nulls":3},"Mass Notification Subtotal",null,null,{"$f":"SUM(G21:G25)","v":{"v":0,"d":"$0.00"}}]
[]
[3,"Sprinkler System (Annual/Semi-Annual as noted)"]
[]
[null,"3a","Kitchen Hoods (Semi-Annual)",null,"N/A",null,{"v":0,"d":"$0.00"}]
[null,"3b","Suppression Panels (S/A) Price for 2 Inspections - 1 to incl panel",null,"N/A",null,{"v":0,"d":"$0.00"}]
[null,"3c","Flow & Tamper Valves (Annual-separate from FA test)",null,"N/A",null,{"v":0,"d":"$0.00"}]
[null,"3d","Fire Pump",null,"N/A",null,{"v":0,"d":"$0.00"}]
[null,"3e","Standpipe",null,1,null,{"v":0,"d":"$0.00"}]
[null,"3f","Backflow",{"$nulls":3},{"v":0,"d":"$0.00"}]
[null,"3g","5th Year Internal Inspection (To be done Year 1)",{"$nulls":3},{"v":0,"d":"$0.00"}]
[{"$nulls":3},"Wet Systems Subtotal (Incl 5th Year Internal)",null,null,{"$f":"SUM(G30:G36)","v":{"v":0,"d":"$0.00"}}]
[{"$nulls":3},"Wet Systems Subtotal (No 5th Year Internal)",null,null,{"$f":"SUM(G30:G35)","v":{"v":0,"d":"$0.00"}}]
[]
[4,"Fire Extinguishers (Annual/3 Year/6 Year/12 Year)",null,null,24,null,{"v":0,"d":"$0.00"}]
[]
[5,"Emergency Exit Lights w/ Battery Backup (Annual)",null,null,34,null,{"v":0,"d":"$0.00"}]
[null,"5a Emergency Egress Lights w/Battery Back-up",null,null,35,null,{"v":0,"d":"$0.00"}]
[]
[{"$nulls":3},"Building Subtotal Year 1 - Incl Sensitivity & 5th Year Internal",null,null,{"$f":"SUM(G15,G26,G37,G40,G42,G43)","v":{"v":0,"d":"$0.00"}}]
[{"$nulls":3},"Building Subtotal Years 3/5 - Incl Sensitivity",null,null,{"$f":"SUM(G15,G26,G38,G40,G42,G43)","v":{"v":0,"d":"$0.00"}}]
[{"$nulls":3},"Building Subtotal Years 2/4",null,null,{"$f":"SUM(G16,G26,G38,G40,G42,G43)","v":{"v":0,"d":"$0.00"}}]

{"sheet":"SCH600","index":33,"n_rows":47,"n_cols":7,"rows_kept":47}
[]
["Equipment to Bid for ITM - SCH600 - Southeast Campus Housing 600",{"$nulls":3},"Back to Contents"]
[]
[1,"Fire Alarm (Annual)",{"$nulls":4},"Bid Price"]
[]
[null,"Device Counts",null,"Smoke Detectors",0,null,{"v":0,"d":"$0.00"}]
[{"$nulls":3},"Heat Detectors",0,null,{"v":0,"d":"$0.00"}]
[{"$nulls":3},"Duct Detectors",0,null,{"v":0,"d":"$0.00"}]
[{"$nulls":3},"Pull Stations",6,null,{"v":0,"d":"$0.00"}]
[{"$nulls":3},"Relay (Aux Control Functions)",0,null,{"v":0,"d":"$0.00"}]
[{"$nulls":3},"Waterflow",0,null,{"v":0,"d":"$0.00"}]
[{"$nulls":3},"Tamper Valves",0,null,{"v":0,"d":"$0.00"}]
[{"$nulls":3},"Kitchen Hood","N/A",null,{"v":0,"d":"$0.00"}]
[{"$nulls":3},"Notification Appliances","Bld",null,{"v":0,"d":"$0.00"}]
[{"$nulls":3},"Smoke Sensitivity Subtotal (Year 1/3/5)",{"$f":"SUM(E6+E8)","v":0},null,{"$f":"SUM(G6:G14)","v":{"v":0,"d":"$0.00"}}]
[{"$nulls":3},"FA Inspection - Non-Sensitivity Subtotal(Year 2/4)",null,null,{"$f":"SUM(G15*0.7010980775)","v":{"v":0,"d":"$0.00"}}]
[]
[]
[2,"Mass Notification (Semi-Annual)",null,null,"Currently No Mass Notification for this building"]
[]
[{"$nulls":3},"FA Signals received at UAHPD",1,null,{"v":0,"d":"$0.00"}]
[null,"(7 msg x Bld w/MNS)",null,"All MNS messages received at Bld","N/A",null,{"v":0,"d":"$0.00"}]
[null,"(7 msg x Bld w/MNS)",null,"All MNS messages restore at UAHPD","N/A",null,{"v":0,"d":"$0.00"}]
[{"$nulls":3},"All Speakers Operational","N/A",null,{"v":0,"d":"$0.00"}]
[{"$nulls":3},"All Amber Strobes Operational","N/A",null,{"v":0,"d":"$0.00"}]
[{"$nulls":3},"Mass Notification Subtotal",null,null,{"$f":"SUM(G21:G25)","v":{"v":0,"d":"$0.00"}}]
[]
[3,"Sprinkler System (Annual/Semi-Annual as noted)"]
[]
[null,"3a","Kitchen Hoods (Semi-Annual)",null,"N/A",null,{"v":0,"d":"$0.00"}]
[null,"3b","Suppression Panels (S/A) Price for 2 Inspections - 1 to incl panel",null,"N/A",null,{"v":0,"d":"$0.00"}]
[null,"3c","Flow & Tamper Valves (Annual-separate from FA test)",null,"N/A",null,{"v":0,"d":"$0.00"}]
[null,"3d","Fire Pump ",null,"N/A",null,{"v":0,"d":"$0.00"}]
[null,"3e","Standpipe",null,"N/A",null,{"v":0,"d":"$0.00"}]
[null,"3f","Backflow",{"$nulls":3},{"v":0,"d":"$0.00"}]
[null,"3g","5th Year Internal Inspection (To be done Year 1)",{"$nulls":3},{"v":0,"d":"$0.00"}]
[{"$nulls":3},"Wet Systems Subtotal (Incl 5th Year Internal)",null,null,{"$f":"SUM(G30:G36)","v":{"v":0,"d":"$0.00"}}]
[{"$nulls":3},"Wet Systems Subtotal (No 5th Year Internal)",null,null,{"$f":"SUM(G30:G35)","v":{"v":0,"d":"$0.00"}}]
[]
[4,"Fire Extinguishers (Annual/3 Year/6 Year/12 Year)",null,null,24,null,{"v":0,"d":"$0.00"}]
[]
[5,"Emergency Exit Lights w/ Battery Backup (Annual)",{"$nulls":4},{"v":0,"d":"$0.00"}]
[null,"5a Emergency Egress Lights w/Battery Back-up",{"$nulls":4},{"v":0,"d":"$0.00"}]
[]
[{"$nulls":3},"Building Subtotal Year 1 - Incl Sensitivity & 5th Year Internal",null,null,{"$f":"SUM(G15,G26,G37,G40,G42,G43)","v":{"v":0,"d":"$0.00"}}]
[{"$nulls":3},"Building Subtotal Years 3/5 - Incl Sensitivity",null,null,{"$f":"SUM(G15,G26,G38,G40,G42,G43)","v":{"v":0,"d":"$0.00"}}]
[{"$nulls":3},"Building Subtotal Years 2/4",null,null,{"$f":"SUM(G16,G26,G38,G40,G42,G43)","v":{"v":0,"d":"$0.00"}}]

{"sheet":"SCH602","index":34,"n_rows":47,"n_cols":7,"rows_kept":47}
[]
["Equipment to Bid for ITM - SCH602 - Southeast Campus Housing 602",{"$nulls":3},"Back to Contents"]
[]
[1,"Fire Alarm (Annual)",{"$nulls":4},"Bid Price"]
[]
[null,"Device Counts",null,"Smoke Detectors",0,null,{"v":0,"d":"$0.00"}]
[{"$nulls":3},"Heat Detectors",0,null,{"v":0,"d":"$0.00"}]
[{"$nulls":3},"Duct Detectors",0,null,{"v":0,"d":"$0.00"}]
[{"$nulls":3},"Pull Stations",6,null,{"v":0,"d":"$0.00"}]
[{"$nulls":3},"Relay (Aux Control Functions)",0,null,{"v":0,"d":"$0.00"}]
[{"$nulls":3},"Waterflow",0,null,{"v":0,"d":"$0.00"}]
[{"$nulls":3},"Tamper Valves",0,null,{"v":0,"d":"$0.00"}]
[{"$nulls":3},"Kitchen Hood","N/A",null,{"v":0,"d":"$0.00"}]
[{"$nulls":3},"Notification Appliances","Bld",null,{"v":0,"d":"$0.00"}]
[{"$nulls":3},"Smoke Sensitivity Subtotal (Year 1/3/5)",{"$f":"SUM(E6+E8)","v":0},null,{"$f":"SUM(G6:G14)","v":{"v":0,"d":"$0.00"}}]
[{"$nulls":3},"FA Inspection - Non-Sensitivity Subtotal(Year 2/4)",null,null,{"$f":"SUM(G15*0.7010980775)","v":{"v":0,"d":"$0.00"}}]
[]
[]
[2,"Mass Notification (Semi-Annual)",null,null,"Currently No Mass Notification for this building"]
[]
[{"$nulls":3},"FA Signals received at UAHPD",1,null,{"v":0,"d":"$0.00"}]
[null,"(7 msg x Bld w/MNS)",null,"All MNS messages received at Bld","N/A",null,{"v":0,"d":"$0.00"}]
[null,"(7 msg x Bld w/MNS)",null,"All MNS messages restore at UAHPD","N/A",null,{"v":0,"d":"$0.00"}]
[{"$nulls":3},"All Speakers Operational","N/A",null,{"v":0,"d":"$0.00"}]
[{"$nulls":3},"All Amber Strobes Operational","N/A",null,{"v":0,"d":"$0.00"}]
[{"$nulls":3},"Mass Notification Subtotal",null,null,{"$f":"SUM(G21:G25)","v":{"v":0,"d":"$0.00"}}]
[]
[3,"Sprinkler System (Annual/Semi-Annual as noted)"]
[]
[null,"3a","Kitchen Hoods (Semi-Annual)",null,"N/A",null,{"v":0,"d":"$0.00"}]
[null,"3b","Suppression Panels (S/A) Price for 2 Inspections - 1 to incl panel",null,"N/A",null,{"v":0,"d":"$0.00"}]
[null,"3c","Flow & Tamper Valves (Annual-separate from FA test)",null,"N/A",null,{"v":0,"d":"$0.00"}]
[null,"3d","Fire Pump ",null,"N/A",null,{"v":0,"d":"$0.00"}]
[null,"3e","Standpipe",null,"N/A",null,{"v":0,"d":"$0.00"}]
[null,"3f","Backflow",{"$nulls":3},{"v":0,"d":"$0.00"}]
[null,"3g","5th Year Internal Inspection (To be done Year 1)",{"$nulls":3},{"v":0,"d":"$0.00"}]
[{"$nulls":3},"Wet Systems Subtotal (Incl 5th Year Internal)",null,null,{"$f":"SUM(G30:G36)","v":{"v":0,"d":"$0.00"}}]
[{"$nulls":3},"Wet Systems Subtotal (No 5th Year Internal)",null,null,{"$f":"SUM(G30:G35)","v":{"v":0,"d":"$0.00"}}]
[]
[4,"Fire Extinguishers (Annual/3 Year/6 Year/12 Year)",null,null,12,null,{"v":0,"d":"$0.00"}]
[]
[5,"Emergency Exit Lights w/ Battery Backup (Annual)",{"$nulls":4},{"v":0,"d":"$0.00"}]
[null,"5a Emergency Egress Lights w/Battery Back-up",{"$nulls":4},{"v":0,"d":"$0.00"}]
[]
[{"$nulls":3},"Building Subtotal Year 1 - Incl Sensitivity & 5th Year Internal",null,null,{"$f":"SUM(G15,G26,G37,G40,G42,G43)","v":{"v":0,"d":"$0.00"}}]
[{"$nulls":3},"Building Subtotal Years 3/5 - Incl Sensitivity",null,null,{"$f":"SUM(G15,G26,G38,G40,G42,G43)","v":{"v":0,"d":"$0.00"}}]
[{"$nulls":3},"Building Subtotal Years 2/4",null,null,{"$f":"SUM(G16,G26,G38,G40,G42,G43)","v":{"v":0,"d":"$0.00"}}]

{"sheet":"SCH604","index":35,"n_rows":47,"n_cols":7,"rows_kept":47}
[]
["Equipment to Bid for ITM - SCH604 - Southeast Campus Housing 604",{"$nulls":3},"Back to Contents"]
[]
[1,"Fire Alarm (Annual)",{"$nulls":4},"Bid Price"]
[]
[null,"Device Counts",null,"Smoke Detectors",0,null,{"v":0,"d":"$0.00"}]
[{"$nulls":3},"Heat Detectors",0,null,{"v":0,"d":"$0.00"}]
[{"$nulls":3},"Duct Detectors",0,null,{"v":0,"d":"$0.00"}]
[{"$nulls":3},"Pull Stations",6,null,{"v":0,"d":"$0.00"}]
[{"$nulls":3},"Relay (Aux Control Functions)",0,null,{"v":0,"d":"$0.00"}]
[{"$nulls":3},"Waterflow",0,null,{"v":0,"d":"$0.00"}]
[{"$nulls":3},"Tamper Valves",0,null,{"v":0,"d":"$0.00"}]
[{"$nulls":3},"Kitchen Hood","N/A",null,{"v":0,"d":"$0.00"}]
[{"$nulls":3},"Notification Appliances","Bld",null,{"v":0,"d":"$0.00"}]
[{"$nulls":3},"Smoke Sensitivity Subtotal (Year 1/3/5)",{"$f":"SUM(E6+E8)","v":0},null,{"$f":"SUM(G6:G14)","v":{"v":0,"d":"$0.00"}}]
[{"$nulls":3},"FA Inspection - Non-Sensitivity Subtotal(Year 2/4)",null,null,{"$f":"SUM(G15*0.7010980775)","v":{"v":0,"d":"$0.00"}}]
[]
[]
[2,"Mass Notification (Semi-Annual)",null,null,"Currently No Mass Notification for this building"]
[]
[{"$nulls":3},"FA Signals received at UAHPD",1,null,{"v":0,"d":"$0.00"}]
[null,"(7 msg x Bld w/MNS)",null,"All MNS messages received at Bld","N/A",null,{"v":0,"d":"$0.00"}]
[null,"(7 msg x Bld w/MNS)",null,"All MNS messages restore at UAHPD","N/A",null,{"v":0,"d":"$0.00"}]
[{"$nulls":3},"All Speakers Operational","N/A",null,{"v":0,"d":"$0.00"}]
[{"$nulls":3},"All Amber Strobes Operational","N/A",null,{"v":0,"d":"$0.00"}]
[{"$nulls":3},"Mass Notification Subtotal",null,null,{"$f":"SUM(G21:G25)","v":{"v":0,"d":"$0.00"}}]
[]
[3,"Sprinkler System (Annual/Semi-Annual as noted)"]
[]
[null,"3a","Kitchen Hoods (Semi-Annual)",null,"N/A",null,{"v":0,"d":"$0.00"}]
[null,"3b","Suppression Panels (S/A) Price for 2 Inspections - 1 to incl panel",null,"N/A",null,{"v":0,"d":"$0.00"}]
[null,"3c","Flow & Tamper Valves (Annual-separate from FA test)",null,"N/A",null,{"v":0,"d":"$0.00"}]
[null,"3d","Fire Pump ",null,"N/A",null,{"v":0,"d":"$0.00"}]
[null,"3e","Standpipe",null,"N/A",null,{"v":0,"d":"$0.00"}]
[null,"3f","Backflow",{"$nulls":3},{"v":0,"d":"$0.00"}]
[null,"3g","5th Year Internal Inspection (To be done Year 1)",{"$nulls":3},{"v":0,"d":"$0.00"}]
[{"$nulls":3},"Wet Systems Subtotal (Incl 5th Year Internal)",null,null,{"$f":"SUM(G30:G36)","v":{"v":0,"d":"$0.00"}}]
[{"$nulls":3},"Wet Systems Subtotal (No 5th Year Internal)",null,null,{"$f":"SUM(G30:G35)","v":{"v":0,"d":"$0.00"}}]
[]
[4,"Fire Extinguishers (Annual/3 Year/6 Year/12 Year)",null,null,12,null,{"v":0,"d":"$0.00"}]
[]
[5,"Emergency Exit Lights w/ Battery Backup (Annual)",{"$nulls":4},{"v":0,"d":"$0.00"}]
[null,"5a Emergency Egress Lights w/Battery Back-up",{"$nulls":4},{"v":0,"d":"$0.00"}]
[]
[{"$nulls":3},"Building Subtotal Year 1 - Incl Sensitivity & 5th Year Internal",null,null,{"$f":"SUM(G15,G26,G37,G40,G42,G43)","v":{"v":0,"d":"$0.00"}}]
[{"$nulls":3},"Building Subtotal Years 3/5 - Incl Sensitivity",null,null,{"$f":"SUM(G15,G26,G38,G40,G42,G43)","v":{"v":0,"d":"$0.00"}}]
[{"$nulls":3},"Building Subtotal Years 2/4",null,null,{"$f":"SUM(G16,G26,G38,G40,G42,G43)","v":{"v":0,"d":"$0.00"}}]

{"sheet":"SCH606","index":36,"n_rows":47,"n_cols":7,"rows_kept":47}
[]
["Equipment to Bid for ITM - SCH606 - Southeast Campus Housing 606",{"$nulls":3},"Back to Contents"]
[]
[1,"Fire Alarm (Annual)",{"$nulls":4},"Bid Price"]
[]
[null,"Device Counts",null,"Smoke Detectors",0,null,{"v":0,"d":"$0.00"}]
[{"$nulls":3},"Heat Detectors",0,null,{"v":0,"d":"$0.00"}]
[{"$nulls":3},"Duct Detectors",0,null,{"v":0,"d":"$0.00"}]
[{"$nulls":3},"Pull Stations",6,null,{"v":0,"d":"$0.00"}]
[{"$nulls":3},"Relay (Aux Control Functions)",0,null,{"v":0,"d":"$0.00"}]
[{"$nulls":3},"Waterflow",0,null,{"v":0,"d":"$0.00"}]
[{"$nulls":3},"Tamper Valves",0,null,{"v":0,"d":"$0.00"}]
[{"$nulls":3},"Kitchen Hood","N/A",null,{"v":0,"d":"$0.00"}]
[{"$nulls":3},"Notification Appliances","Bld",null,{"v":0,"d":"$0.00"}]
[{"$nulls":3},"Smoke Sensitivity Subtotal (Year 1/3/5)",{"$f":"SUM(E6+E8)","v":0},null,{"$f":"SUM(G6:G14)","v":{"v":0,"d":"$0.00"}}]
[{"$nulls":3},"FA Inspection - Non-Sensitivity Subtotal(Year 2/4)",null,null,{"$f":"SUM(G15*0.7010980775)","v":{"v":0,"d":"$0.00"}}]
[]
[]
[2,"Mass Notification (Semi-Annual)",null,null,"Currently No Mass Notification for this building"]
[]
[{"$nulls":3},"FA Signals received at UAHPD",1,null,{"v":0,"d":"$0.00"}]
[null,"(7 msg x Bld w/MNS)",null,"All MNS messages received at Bld","N/A",null,{"v":0,"d":"$0.00"}]
[null,"(7 msg x Bld w/MNS)",null,"All MNS messages restore at UAHPD","N/A",null,{"v":0,"d":"$0.00"}]
[{"$nulls":3},"All Speakers Operational","N/A",null,{"v":0,"d":"$0.00"}]
[{"$nulls":3},"All Amber Strobes Operational","N/A",null,{"v":0,"d":"$0.00"}]
[{"$nulls":3},"Mass Notification Subtotal",null,null,{"$f":"SUM(G21:G25)","v":{"v":0,"d":"$0.00"}}]
[]
[3,"Sprinkler System (Annual/Semi-Annual as noted)"]
[]
[null,"3a","Kitchen Hoods (Semi-Annual)",null,"N/A",null,{"v":0,"d":"$0.00"}]
[null,"3b","Suppression Panels (S/A) Price for 2 Inspections - 1 to incl panel",null,"N/A",null,{"v":0,"d":"$0.00"}]
[null,"3c","Flow & Tamper Valves (Annual-separate from FA test)",null,"N/A",null,{"v":0,"d":"$0.00"}]
[null,"3d","Fire Pump ",null,"N/A",null,{"v":0,"d":"$0.00"}]
[null,"3e","Standpipe",null,"N/A",null,{"v":0,"d":"$0.00"}]
[null,"3f","Backflow",{"$nulls":3},{"v":0,"d":"$0.00"}]
[null,"3g","5th Year Internal Inspection (To be done Year 1)",{"$nulls":3},{"v":0,"d":"$0.00"}]
[{"$nulls":3},"Wet Systems Subtotal (Incl 5th Year Internal)",null,null,{"$f":"SUM(G30:G36)","v":{"v":0,"d":"$0.00"}}]
[{"$nulls":3},"Wet Systems Subtotal (No 5th Year Internal)",null,null,{"$f":"SUM(G30:G35)","v":{"v":0,"d":"$0.00"}}]
[]
[4,"Fire Extinguishers (Annual/3 Year/6 Year/12 Year)",null,null,12,null,{"v":0,"d":"$0.00"}]
[]
[5,"Emergency Exit Lights w/ Battery Backup (Annual)",{"$nulls":4},{"v":0,"d":"$0.00"}]
[null,"5a Emergency Egress Lights w/Battery Back-up",{"$nulls":4},{"v":0,"d":"$0.00"}]
[]
[{"$nulls":3},"Building Subtotal Year 1 - Incl Sensitivity & 5th Year Internal",null,null,{"$f":"SUM(G15,G26,G37,G40,G42,G43)","v":{"v":0,"d":"$0.00"}}]
[{"$nulls":3},"Building Subtotal Years 3/5 - Incl Sensitivity",null,null,{"$f":"SUM(G15,G26,G38,G40,G42,G43)","v":{"v":0,"d":"$0.00"}}]
[{"$nulls":3},"Building Subtotal Years 2/4",null,null,{"$f":"SUM(G16,G26,G38,G40,G42,G43)","v":{"v":0,"d":"$0.00"}}]

{"sheet":"SCH608","index":37,"n_rows":47,"n_cols":7,"rows_kept":47}
[]
["Equipment to Bid for ITM - SCH608 - Southeast Campus Housing 608",{"$nulls":3},"Back to Contents"]
[]
[1,"Fire Alarm (Annual)",{"$nulls":4},"Bid Price"]
[]
[null,"Device Counts",null,"Smoke Detectors",0,null,{"v":0,"d":"$0.00"}]
[{"$nulls":3},"Heat Detectors",0,null,{"v":0,"d":"$0.00"}]
[{"$nulls":3},"Duct Detectors",0,null,{"v":0,"d":"$0.00"}]
[{"$nulls":3},"Pull Stations",6,null,{"v":0,"d":"$0.00"}]
[{"$nulls":3},"Relay (Aux Control Functions)",0,null,{"v":0,"d":"$0.00"}]
[{"$nulls":3},"Waterflow",0,null,{"v":0,"d":"$0.00"}]
[{"$nulls":3},"Tamper Valves",0,null,{"v":0,"d":"$0.00"}]
[{"$nulls":3},"Kitchen Hood","N/A",null,{"v":0,"d":"$0.00"}]
[{"$nulls":3},"Notification Appliances","Bld",null,{"v":0,"d":"$0.00"}]
[{"$nulls":3},"Smoke Sensitivity Subtotal (Year 1/3/5)",{"$f":"SUM(E6+E8)","v":0},null,{"$f":"SUM(G6:G14)","v":{"v":0,"d":"$0.00"}}]
[{"$nulls":3},"FA Inspection - Non-Sensitivity Subtotal(Year 2/4)",null,null,{"$f":"SUM(G15*0.7010980775)","v":{"v":0,"d":"$0.00"}}]
[]
[]
[2,"Mass Notification (Semi-Annual)",null,null,"Currently No Mass Notification for this building"]
[]
[{"$nulls":3},"FA Signals received at UAHPD",1,null,{"v":0,"d":"$0.00"}]
[null,"(7 msg x Bld w/MNS)",null,"All MNS messages received at Bld","N/A",null,{"v":0,"d":"$0.00"}]
[null,"(7 msg x Bld w/MNS)",null,"All MNS messages restore at UAHPD","N/A",null,{"v":0,"d":"$0.00"}]
[{"$nulls":3},"All Speakers Operational","N/A",null,{"v":0,"d":"$0.00"}]
[{"$nulls":3},"All Amber Strobes Operational","N/A",null,{"v":0,"d":"$0.00"}]
[{"$nulls":3},"Mass Notification Subtotal",null,null,{"$f":"SUM(G21:G25)","v":{"v":0,"d":"$0.00"}}]
[]
[3,"Sprinkler System (Annual/Semi-Annual as noted)"]
[]
[null,"3a","Kitchen Hoods (Semi-Annual)",null,"N/A",null,{"v":0,"d":"$0.00"}]
[null,"3b","Suppression Panels (S/A) Price for 2 Inspections - 1 to incl panel",null,"N/A",null,{"v":0,"d":"$0.00"}]
[null,"3c","Flow & Tamper Valves (Annual-separate from FA test)",null,"N/A",null,{"v":0,"d":"$0.00"}]
[null,"3d","Fire Pump ",null,"N/A",null,{"v":0,"d":"$0.00"}]
[null,"3e","Standpipe",null,"N/A",null,{"v":0,"d":"$0.00"}]
[null,"3f","Backflow",{"$nulls":3},{"v":0,"d":"$0.00"}]
[null,"3g","5th Year Internal Inspection (To be done Year 1)",{"$nulls":3},{"v":0,"d":"$0.00"}]
[{"$nulls":3},"Wet Systems Subtotal (Incl 5th Year Internal)",null,null,{"$f":"SUM(G30:G36)","v":{"v":0,"d":"$0.00"}}]
[{"$nulls":3},"Wet Systems Subtotal (No 5th Year Internal)",null,null,{"$f":"SUM(G30:G35)","v":{"v":0,"d":"$0.00"}}]
[]
[4,"Fire Extinguishers (Annual/3 Year/6 Year/12 Year)",null,null,12,null,{"v":0,"d":"$0.00"}]
[]
[5,"Emergency Exit Lights w/ Battery Backup (Annual)",{"$nulls":4},{"v":0,"d":"$0.00"}]
[null,"5a Emergency Egress Lights w/Battery Back-up",{"$nulls":4},{"v":0,"d":"$0.00"}]
[]
[{"$nulls":3},"Building Subtotal Year 1 - Incl Sensitivity & 5th Year Internal",null,null,{"$f":"SUM(G15,G26,G37,G40,G42,G43)","v":{"v":0,"d":"$0.00"}}]
[{"$nulls":3},"Building Subtotal Years 3/5 - Incl Sensitivity",null,null,{"$f":"SUM(G15,G26,G38,G40,G42,G43)","v":{"v":0,"d":"$0.00"}}]
[{"$nulls":3},"Building Subtotal Years 2/4",null,null,{"$f":"SUM(G16,G26,G38,G40,G42,G43)","v":{"v":0,"d":"$0.00"}}]

{"sheet":"SCH700","index":38,"n_rows":47,"n_cols":7,"rows_kept":47}
[]
["Equipment to Bid for ITM - SCH700 - Southeast Campus Housing 700",{"$nulls":3},"Back to Contents"]
[]
[1,"Fire Alarm (Annual)",{"$nulls":4},"Bid Price"]
[]
[null,"Device Counts",null,"Smoke Detectors",0,null,{"v":0,"d":"$0.00"}]
[{"$nulls":3},"Heat Detectors",0,null,{"v":0,"d":"$0.00"}]
[{"$nulls":3},"Duct Detectors",0,null,{"v":0,"d":"$0.00"}]
[{"$nulls":3},"Pull Stations",6,null,{"v":0,"d":"$0.00"}]
[{"$nulls":3},"Relay (Aux Control Functions)",0,null,{"v":0,"d":"$0.00"}]
[{"$nulls":3},"Waterflow",0,null,{"v":0,"d":"$0.00"}]
[{"$nulls":3},"Tamper Valves",0,null,{"v":0,"d":"$0.00"}]
[{"$nulls":3},"Kitchen Hood","N/A",null,{"v":0,"d":"$0.00"}]
[{"$nulls":3},"Notification Appliances","Bld",null,{"v":0,"d":"$0.00"}]
[{"$nulls":3},"Smoke Sensitivity Subtotal (Year 1/3/5)",{"$f":"SUM(E6+E8)","v":0},null,{"$f":"SUM(G6:G14)","v":{"v":0,"d":"$0.00"}}]
[{"$nulls":3},"FA Inspection - Non-Sensitivity Subtotal(Year 2/4)",null,null,{"$f":"SUM(G15*0.7010980775)","v":{"v":0,"d":"$0.00"}}]
[]
[]
[2,"Mass Notification (Semi-Annual)",null,null,"Currently No Mass Notification for this building"]
[]
[{"$nulls":3},"FA Signals received at UAHPD",1,null,{"v":0,"d":"$0.00"}]
[null,"(7 msg x Bld w/MNS)",null,"All MNS messages received at Bld","N/A",null,{"v":0,"d":"$0.00"}]
[null,"(7 msg x Bld w/MNS)",null,"All MNS messages restore at UAHPD","N/A",null,{"v":0,"d":"$0.00"}]
[{"$nulls":3},"All Speakers Operational","N/A",null,{"v":0,"d":"$0.00"}]
[{"$nulls":3},"All Amber Strobes Operational","N/A",null,{"v":0,"d":"$0.00"}]
[{"$nulls":3},"Mass Notification Subtotal",null,null,{"$f":"SUM(G21:G25)","v":{"v":0,"d":"$0.00"}}]
[]
[3,"Sprinkler System (Annual/Semi-Annual as noted)"]
[]
[null,"3a","Kitchen Hoods (Semi-Annual)",null,"N/A",null,{"v":0,"d":"$0.00"}]
[null,"3b","Suppression Panels (S/A) Price for 2 Inspections - 1 to incl panel",null,"N/A",null,{"v":0,"d":"$0.00"}]
[null,"3c","Flow & Tamper Valves (Annual-separate from FA test)",null,"N/A",null,{"v":0,"d":"$0.00"}]
[null,"3d","Fire Pump ",null,"N/A",null,{"v":0,"d":"$0.00"}]
[null,"3e","Standpipe",null,"N/A",null,{"v":0,"d":"$0.00"}]
[null,"3f","Backflow",{"$nulls":3},{"v":0,"d":"$0.00"}]
[null,"3g","5th Year Internal Inspection (To be done Year 1)",{"$nulls":3},{"v":0,"d":"$0.00"}]
[{"$nulls":3},"Wet Systems Subtotal (Incl 5th Year Internal)",null,null,{"$f":"SUM(G30:G36)","v":{"v":0,"d":"$0.00"}}]
[{"$nulls":3},"Wet Systems Subtotal (No 5th Year Internal)",null,null,{"$f":"SUM(G30:G35)","v":{"v":0,"d":"$0.00"}}]
[]
[4,"Fire Extinguishers (Annual/3 Year/6 Year/12 Year)",null,null,24,null,{"v":0,"d":"$0.00"}]
[]
[5,"Emergency Exit Lights w/ Battery Backup (Annual)",{"$nulls":4},{"v":0,"d":"$0.00"}]
[null,"5a Emergency Egress Lights w/Battery Back-up",{"$nulls":4},{"v":0,"d":"$0.00"}]
[]
[{"$nulls":3},"Building Subtotal Year 1 - Incl Sensitivity & 5th Year Internal",null,null,{"$f":"SUM(G15,G26,G37,G40,G42,G43)","v":{"v":0,"d":"$0.00"}}]
[{"$nulls":3},"Building Subtotal Years 3/5 - Incl Sensitivity",null,null,{"$f":"SUM(G15,G26,G38,G40,G42,G43)","v":{"v":0,"d":"$0.00"}}]
[{"$nulls":3},"Building Subtotal Years 2/4",null,null,{"$f":"SUM(G16,G26,G38,G40,G42,G43)","v":{"v":0,"d":"$0.00"}}]

{"sheet":"SCH702","index":39,"n_rows":47,"n_cols":7,"rows_kept":47}
[]
["Equipment to Bid for ITM - SCH702 - Southeast Campus Housing 702",{"$nulls":3},"Back to Contents"]
[]
[1,"Fire Alarm (Annual)",{"$nulls":4},"Bid Price"]
[]
[null,"Device Counts",null,"Smoke Detectors",0,null,{"v":0,"d":"$0.00"}]
[{"$nulls":3},"Heat Detectors",0,null,{"v":0,"d":"$0.00"}]
[{"$nulls":3},"Duct Detectors",0,null,{"v":0,"d":"$0.00"}]
[{"$nulls":3},"Pull Stations",6,null,{"v":0,"d":"$0.00"}]
[{"$nulls":3},"Relay (Aux Control Functions)",0,null,{"v":0,"d":"$0.00"}]
[{"$nulls":3},"Waterflow",0,null,{"v":0,"d":"$0.00"}]
[{"$nulls":3},"Tamper Valves",0,null,{"v":0,"d":"$0.00"}]
[{"$nulls":3},"Kitchen Hood","N/A",null,{"v":0,"d":"$0.00"}]
[{"$nulls":3},"Notification Appliances","Bld",null,{"v":0,"d":"$0.00"}]
[{"$nulls":3},"Smoke Sensitivity Subtotal (Year 1/3/5)",{"$f":"SUM(E6+E8)","v":0},null,{"$f":"SUM(G6:G14)","v":{"v":0,"d":"$0.00"}}]
[{"$nulls":3},"FA Inspection - Non-Sensitivity Subtotal(Year 2/4)",null,null,{"$f":"SUM(G15*0.7010980775)","v":{"v":0,"d":"$0.00"}}]
[]
[]
[2,"Mass Notification (Semi-Annual)",null,null,"Currently No Mass Notification for this building"]
[]
[{"$nulls":3},"FA Signals received at UAHPD",1,null,{"v":0,"d":"$0.00"}]
[null,"(7 msg x Bld w/MNS)",null,"All MNS messages received at Bld","N/A",null,{"v":0,"d":"$0.00"}]
[null,"(7 msg x Bld w/MNS)",null,"All MNS messages restore at UAHPD","N/A",null,{"v":0,"d":"$0.00"}]
[{"$nulls":3},"All Speakers Operational","N/A",null,{"v":0,"d":"$0.00"}]
[{"$nulls":3},"All Amber Strobes Operational","N/A",null,{"v":0,"d":"$0.00"}]
[{"$nulls":3},"Mass Notification Subtotal",null,null,{"$f":"SUM(G21:G25)","v":{"v":0,"d":"$0.00"}}]
[]
[3,"Sprinkler System (Annual/Semi-Annual as noted)"]
[]
[null,"3a","Kitchen Hoods (Semi-Annual)",null,"N/A",null,{"v":0,"d":"$0.00"}]
[null,"3b","Suppression Panels (S/A) Price for 2 Inspections - 1 to incl panel",null,"N/A",null,{"v":0,"d":"$0.00"}]
[null,"3c","Flow & Tamper Valves (Annual-separate from FA test)",null,"N/A",null,{"v":0,"d":"$0.00"}]
[null,"3d","Fire Pump ",null,"N/A",null,{"v":0,"d":"$0.00"}]
[null,"3e","Standpipe",null,"N/A",null,{"v":0,"d":"$0.00"}]
[null,"3f","Backflow",{"$nulls":3},{"v":0,"d":"$0.00"}]
[null,"3g","5th Year Internal Inspection (To be done Year 1)",{"$nulls":3},{"v":0,"d":"$0.00"}]
[{"$nulls":3},"Wet Systems Subtotal (Incl 5th Year Internal)",null,null,{"$f":"SUM(G30:G36)","v":{"v":0,"d":"$0.00"}}]
[{"$nulls":3},"Wet Systems Subtotal (No 5th Year Internal)",null,null,{"$f":"SUM(G30:G35)","v":{"v":0,"d":"$0.00"}}]
[]
[4,"Fire Extinguishers (Annual/3 Year/6 Year/12 Year)",null,null,12,null,{"v":0,"d":"$0.00"}]
[]
[5,"Emergency Exit Lights w/ Battery Backup (Annual)",{"$nulls":4},{"v":0,"d":"$0.00"}]
[null,"5a Emergency Egress Lights w/Battery Back-up",{"$nulls":4},{"v":0,"d":"$0.00"}]
[]
[{"$nulls":3},"Building Subtotal Year 1 - Incl Sensitivity & 5th Year Internal",null,null,{"$f":"SUM(G15,G26,G37,G40,G42,G43)","v":{"v":0,"d":"$0.00"}}]
[{"$nulls":3},"Building Subtotal Years 3/5 - Incl Sensitivity",null,null,{"$f":"SUM(G15,G26,G38,G40,G42,G43)","v":{"v":0,"d":"$0.00"}}]
[{"$nulls":3},"Building Subtotal Years 2/4",null,null,{"$f":"SUM(G16,G26,G38,G40,G42,G43)","v":{"v":0,"d":"$0.00"}}]

{"sheet":"SCH704","index":40,"n_rows":47,"n_cols":7,"rows_kept":47}
[]
["Equipment to Bid for ITM - SCH704 - Southeast Campus Housing 704",{"$nulls":3},"Back to Contents"]
[]
[1,"Fire Alarm (Annual)",{"$nulls":4},"Bid Price"]
[]
[null,"Device Counts",null,"Smoke Detectors",0,null,{"v":0,"d":"$0.00"}]
[{"$nulls":3},"Heat Detectors",0,null,{"v":0,"d":"$0.00"}]
[{"$nulls":3},"Duct Detectors",0,null,{"v":0,"d":"$0.00"}]
[{"$nulls":3},"Pull Stations",6,null,{"v":0,"d":"$0.00"}]
[{"$nulls":3},"Relay (Aux Control Functions)",0,null,{"v":0,"d":"$0.00"}]
[{"$nulls":3},"Waterflow",0,null,{"v":0,"d":"$0.00"}]
[{"$nulls":3},"Tamper Valves",0,null,{"v":0,"d":"$0.00"}]
[{"$nulls":3},"Kitchen Hood","N/A",null,{"v":0,"d":"$0.00"}]
[{"$nulls":3},"Notification Appliances","Bld",null,{"v":0,"d":"$0.00"}]
[{"$nulls":3},"Smoke Sensitivity Subtotal (Year 1/3/5)",{"$f":"SUM(E6+E8)","v":0},null,{"$f":"SUM(G6:G14)","v":{"v":0,"d":"$0.00"}}]
[{"$nulls":3},"FA Inspection - Non-Sensitivity Subtotal(Year 2/4)",null,null,{"$f":"SUM(G15*0.7010980775)","v":{"v":0,"d":"$0.00"}}]
[]
[]
[2,"Mass Notification (Semi-Annual)",null,null,"Currently No Mass Notification for this building"]
[]
[{"$nulls":3},"FA Signals received at UAHPD",1,null,{"v":0,"d":"$0.00"}]
[null,"(7 msg x Bld w/MNS)",null,"All MNS messages received at Bld","N/A",null,{"v":0,"d":"$0.00"}]
[null,"(7 msg x Bld w/MNS)",null,"All MNS messages restore at UAHPD","N/A",null,{"v":0,"d":"$0.00"}]
[{"$nulls":3},"All Speakers Operational","N/A",null,{"v":0,"d":"$0.00"}]
[{"$nulls":3},"All Amber Strobes Operational","N/A",null,{"v":0,"d":"$0.00"}]
[{"$nulls":3},"Mass Notification Subtotal",null,null,{"$f":"SUM(G21:G25)","v":{"v":0,"d":"$0.00"}}]
[]
[3,"Sprinkler System (Annual/Semi-Annual as noted)"]
[]
[null,"3a","Kitchen Hoods (Semi-Annual)",null,"N/A",null,{"v":0,"d":"$0.00"}]
[null,"3b","Suppression Panels (S/A) Price for 2 Inspections - 1 to incl panel",null,"N/A",null,{"v":0,"d":"$0.00"}]
[null,"3c","Flow & Tamper Valves (Annual-separate from FA test)",null,"N/A",null,{"v":0,"d":"$0.00"}]
[null,"3d","Fire Pump ",null,"N/A",null,{"v":0,"d":"$0.00"}]
[null,"3e","Standpipe",null,"N/A",null,{"v":0,"d":"$0.00"}]
[null,"3f","Backflow",{"$nulls":3},{"v":0,"d":"$0.00"}]
[null,"3g","5th Year Internal Inspection (To be done Year 1)",{"$nulls":3},{"v":0,"d":"$0.00"}]
[{"$nulls":3},"Wet Systems Subtotal (Incl 5th Year Internal)",null,null,{"$f":"SUM(G30:G36)","v":{"v":0,"d":"$0.00"}}]
[{"$nulls":3},"Wet Systems Subtotal (No 5th Year Internal)",null,null,{"$f":"SUM(G30:G35)","v":{"v":0,"d":"$0.00"}}]
[]
[4,"Fire Extinguishers (Annual/3 Year/6 Year/12 Year)",null,null,12,null,{"v":0,"d":"$0.00"}]
[]
[5,"Emergency Exit Lights w/ Battery Backup (Annual)",{"$nulls":4},{"v":0,"d":"$0.00"}]
[null,"5a Emergency Egress Lights w/Battery Back-up",{"$nulls":4},{"v":0,"d":"$0.00"}]
[]
[{"$nulls":3},"Building Subtotal Year 1 - Incl Sensitivity & 5th Year Internal",null,null,{"$f":"SUM(G15,G26,G37,G40,G42,G43)","v":{"v":0,"d":"$0.00"}}]
[{"$nulls":3},"Building Subtotal Years 3/5 - Incl Sensitivity",null,null,{"$f":"SUM(G15,G26,G38,G40,G42,G43)","v":{"v":0,"d":"$0.00"}}]
[{"$nulls":3},"Building Subtotal Years 2/4",null,null,{"$f":"SUM(G16,G26,G38,G40,G42,G43)","v":{"v":0,"d":"$0.00"}}]

{"sheet":"SCH706","index":41,"n_rows":47,"n_cols":7,"rows_kept":47}
[]
["Equipment to Bid for ITM - SCH706 - Southeast Campus Housing 706",{"$nulls":3},"Back to Contents"]
[]
[1,"Fire Alarm (Annual)",{"$nulls":4},"Bid Price"]
[]
[null,"Device Counts",null,"Smoke Detectors",0,null,{"v":0,"d":"$0.00"}]
[{"$nulls":3},"Heat Detectors",0,null,{"v":0,"d":"$0.00"}]
[{"$nulls":3},"Duct Detectors",0,null,{"v":0,"d":"$0.00"}]
[{"$nulls":3},"Pull Stations",6,null,{"v":0,"d":"$0.00"}]
[{"$nulls":3},"Relay (Aux Control Functions)",0,null,{"v":0,"d":"$0.00"}]
[{"$nulls":3},"Waterflow",0,null,{"v":0,"d":"$0.00"}]
[{"$nulls":3},"Tamper Valves",0,null,{"v":0,"d":"$0.00"}]
[{"$nulls":3},"Kitchen Hood","N/A",null,{"v":0,"d":"$0.00"}]
[{"$nulls":3},"Notification Appliances","Bld",null,{"v":0,"d":"$0.00"}]
[{"$nulls":3},"Smoke Sensitivity Subtotal (Year 1/3/5)",{"$f":"SUM(E6+E8)","v":0},null,{"$f":"SUM(G6:G14)","v":{"v":0,"d":"$0.00"}}]
[{"$nulls":3},"FA Inspection - Non-Sensitivity Subtotal(Year 2/4)",null,null,{"$f":"SUM(G15*0.7010980775)","v":{"v":0,"d":"$0.00"}}]
[]
[]
[2,"Mass Notification (Semi-Annual)",null,null,"Currently No Mass Notification for this building"]
[]
[{"$nulls":3},"FA Signals received at UAHPD",1,null,{"v":0,"d":"$0.00"}]
[null,"(7 msg x Bld w/MNS)",null,"All MNS messages received at Bld","N/A",null,{"v":0,"d":"$0.00"}]
[null,"(7 msg x Bld w/MNS)",null,"All MNS messages restore at UAHPD","N/A",null,{"v":0,"d":"$0.00"}]
[{"$nulls":3},"All Speakers Operational","N/A",null,{"v":0,"d":"$0.00"}]
[{"$nulls":3},"All Amber Strobes Operational","N/A",null,{"v":0,"d":"$0.00"}]
[{"$nulls":3},"Mass Notification Subtotal",null,null,{"$f":"SUM(G21:G25)","v":{"v":0,"d":"$0.00"}}]
[]
[3,"Sprinkler System (Annual/Semi-Annual as noted)"]
[]
[null,"3a","Kitchen Hoods (Semi-Annual)",null,"N/A",null,{"v":0,"d":"$0.00"}]
[null,"3b","Suppression Panels (S/A) Price for 2 Inspections - 1 to incl panel",null,"N/A",null,{"v":0,"d":"$0.00"}]
[null,"3c","Flow & Tamper Valves (Annual-separate from FA test)",null,"N/A",null,{"v":0,"d":"$0.00"}]
[null,"3d","Fire Pump ",null,"N/A",null,{"v":0,"d":"$0.00"}]
[null,"3e","Standpipe",null,"N/A",null,{"v":0,"d":"$0.00"}]
[null,"3f","Backflow",{"$nulls":3},{"v":0,"d":"$0.00"}]
[null,"3g","5th Year Internal Inspection (To be done Year 1)",{"$nulls":3},{"v":0,"d":"$0.00"}]
[{"$nulls":3},"Wet Systems Subtotal (Incl 5th Year Internal)",null,null,{"$f":"SUM(G30:G36)","v":{"v":0,"d":"$0.00"}}]
[{"$nulls":3},"Wet Systems Subtotal (No 5th Year Internal)",null,null,{"$f":"SUM(G30:G35)","v":{"v":0,"d":"$0.00"}}]
[]
[4,"Fire Extinguishers (Annual/3 Year/6 Year/12 Year)",null,null,12,null,{"v":0,"d":"$0.00"}]
[]
[5,"Emergency Exit Lights w/ Battery Backup (Annual)",{"$nulls":4},{"v":0,"d":"$0.00"}]
[null,"5a Emergency Egress Lights w/Battery Back-up",{"$nulls":4},{"v":0,"d":"$0.00"}]
[]
[{"$nulls":3},"Building Subtotal Year 1 - Incl Sensitivity & 5th Year Internal",null,null,{"$f":"SUM(G15,G26,G37,G40,G42,G43)","v":{"v":0,"d":"$0.00"}}]
[{"$nulls":3},"Building Subtotal Years 3/5 - Incl Sensitivity",null,null,{"$f":"SUM(G15,G26,G38,G40,G42,G43)","v":{"v":0,"d":"$0.00"}}]
[{"$nulls":3},"Building Subtotal Years 2/4",null,null,{"$f":"SUM(G16,G26,G38,G40,G42,G43)","v":{"v":0,"d":"$0.00"}}]

{"sheet":"SKH","index":42,"n_rows":47,"n_cols":7,"rows_kept":47}
[]
["Equipment to Bid for ITM - SKH - Shelby King Hall",{"$nulls":3},"Back to Contents"]
[]
[1,"Fire Alarm (Annual)",{"$nulls":4},"Bid Price"]
[]
[null,"Device Counts",null,"Smoke Detectors",134,null,{"v":0,"d":"$0.00"}]
[{"$nulls":3},"Heat Detectors",2,null,{"v":0,"d":"$0.00"}]
[{"$nulls":3},"Duct Detectors",10,null,{"v":0,"d":"$0.00"}]
[{"$nulls":3},"Pull Stations",9,null,{"v":0,"d":"$0.00"}]
[{"$nulls":3},"Relay (Aux Control Functions)",0,null,{"v":0,"d":"$0.00"}]
[{"$nulls":3},"Waterflow",0,null,{"v":0,"d":"$0.00"}]
[{"$nulls":3},"Tamper Valves",0,null,{"v":0,"d":"$0.00"}]
[{"$nulls":3},"Kitchen Hood","N/A",null,{"v":0,"d":"$0.00"}]
[{"$nulls":3},"Notification Appliances","Bld",null,{"v":0,"d":"$0.00"}]
[{"$nulls":3},"Smoke Sensitivity Subtotal (Year 1/3/5)",{"$f":"SUM(E6+E8)","v":144},null,{"$f":"SUM(G6:G14)","v":{"v":0,"d":"$0.00"}}]
[{"$nulls":3},"FA Inspection - Non-Sensitivity Subtotal(Year 2/4)",null,null,{"$f":"SUM(G15*0.7010980775)","v":{"v":0,"d":"$0.00"}}]
[]
[]
[2,"Mass Notification (Semi-Annual)",null,null,"Currently No Mass Notification for this building"]
[]
[{"$nulls":3},"FA Signals received at UAHPD",1,null,{"v":0,"d":"$0.00"}]
[null,"(7 msg x Bld w/MNS)",null,"All MNS messages received at Bld","N/A",null,{"v":0,"d":"$0.00"}]
[null,"(7 msg x Bld w/MNS)",null,"All MNS messages restore at UAHPD","N/A",null,{"v":0,"d":"$0.00"}]
[{"$nulls":3},"All Speakers Operational","N/A",null,{"v":0,"d":"$0.00"}]
[{"$nulls":3},"All Amber Strobes Operational","N/A",null,{"v":0,"d":"$0.00"}]
[{"$nulls":3},"Mass Notification Subtotal",null,null,{"$f":"SUM(G21:G25)","v":{"v":0,"d":"$0.00"}}]
[]
[3,"Sprinkler System (Annual/Semi-Annual as noted)"]
[]
[null,"3a","Kitchen Hoods (Semi-Annual)",null,"N/A",null,{"v":0,"d":"$0.00"}]
[null,"3b","Suppression Panels (S/A) Price for 2 Inspections - 1 to incl panel",null,"N/A",null,{"v":0,"d":"$0.00"}]
[null,"3c","Flow & Tamper Valves (Annual-separate from FA test)",null,"N/A",null,{"v":0,"d":"$0.00"}]
[null,"3d","Fire Pump ",null,"N/A",null,{"v":0,"d":"$0.00"}]
[null,"3e","Standpipe",null,1,null,{"v":0,"d":"$0.00"}]
[null,"3f","Backflow",{"$nulls":3},{"v":0,"d":"$0.00"}]
[null,"3g","5th Year Internal Inspection (To be done Year 1)",{"$nulls":3},{"v":0,"d":"$0.00"}]
[{"$nulls":3},"Wet Systems Subtotal (Incl 5th Year Internal)",null,null,{"$f":"SUM(G30:G36)","v":{"v":0,"d":"$0.00"}}]
[{"$nulls":3},"Wet Systems Subtotal (No 5th Year Internal)",null,null,{"$f":"SUM(G30:G35)","v":{"v":0,"d":"$0.00"}}]
[]
[4,"Fire Extinguishers (Annual/3 Year/6 Year/12 Year)",null,null,33,null,{"v":0,"d":"$0.00"}]
[]
[5,"Emergency Exit Lights w/ Battery Backup (Annual)",null,null,39,null,{"v":0,"d":"$0.00"}]
[null,"5a Emergency Egress Lights w/Battery Back-up",{"$nulls":4},{"v":0,"d":"$0.00"}]
[]
[{"$nulls":3},"Building Subtotal Year 1 - Incl Sensitivity & 5th Year Internal",null,null,{"$f":"SUM(G15,G26,G37,G40,G42,G43)","v":{"v":0,"d":"$0.00"}}]
[{"$nulls":3},"Building Subtotal Years 3/5 - Incl Sensitivity",null,null,{"$f":"SUM(G15,G26,G38,G40,G42,G43)","v":{"v":0,"d":"$0.00"}}]
[{"$nulls":3},"Building Subtotal Years 2/4",null,null,{"$f":"SUM(G16,G26,G38,G40,G42,G43)","v":{"v":0,"d":"$0.00"}}]

{"sheet":"SNH","index":43,"n_rows":47,"n_cols":7,"rows_kept":47}
[]
["Equipment to Bid for ITM - SNH - Sigma Nu House",{"$nulls":3},"Back to Contents"]
[]
[1,"Fire Alarm (Annual)",{"$nulls":4},"Bid Price"]
[]
[null,"Device Counts",null,"Smoke Detectors",28,null,{"v":0,"d":"$0.00"}]
[{"$nulls":3},"Heat Detectors",4,null,{"v":0,"d":"$0.00"}]
[{"$nulls":3},"Duct Detectors",9,null,{"v":0,"d":"$0.00"}]
[{"$nulls":3},"Pull Stations",3,null,{"v":0,"d":"$0.00"}]
[{"$nulls":3},"Relay (Aux Control Functions)",2,null,{"v":0,"d":"$0.00"}]
[{"$nulls":3},"Waterflow",1,null,{"v":0,"d":"$0.00"}]
[{"$nulls":3},"Tamper Valves",1,null,{"v":0,"d":"$0.00"}]
[{"$nulls":3},"Kitchen Hood",1,null,{"v":0,"d":"$0.00"}]
[{"$nulls":3},"Notification Appliances","Bld",null,{"v":0,"d":"$0.00"}]
[{"$nulls":3},"Smoke Sensitivity Subtotal (Year 1/3/5)",{"$f":"SUM(E6+E8)","v":37},null,{"$f":"SUM(G6:G14)","v":{"v":0,"d":"$0.00"}}]
[{"$nulls":3},"FA Inspection - Non-Sensitivity Subtotal(Year 2/4)",null,null,{"$f":"SUM(G15*0.7010980775)","v":{"v":0,"d":"$0.00"}}]
[]
[]
[2,"Mass Notification (Semi-Annual)",null,null,"Currently No Mass Notification for this building"]
[]
[{"$nulls":3},"FA Signals received at UAHPD",1,null,{"v":0,"d":"$0.00"}]
[null,"(7 msg x Bld w/MNS)",null,"All MNS messages received at Bld","N/A",null,{"v":0,"d":"$0.00"}]
[null,"(7 msg x Bld w/MNS)",null,"All MNS messages restore at UAHPD","N/A",null,{"v":0,"d":"$0.00"}]
[{"$nulls":3},"All Speakers Operational","N/A",null,{"v":0,"d":"$0.00"}]
[{"$nulls":3},"All Amber Strobes Operational","N/A",null,{"v":0,"d":"$0.00"}]
[{"$nulls":3},"Mass Notification Subtotal",null,null,{"$f":"SUM(G21:G25)","v":{"v":0,"d":"$0.00"}}]
[]
[3,"Sprinkler System (Annual/Semi-Annual as noted)"]
[]
[null,"3a","Kitchen Hoods (Semi-Annual) - Price for 2 Inspections",null,1,null,{"v":0,"d":"$0.00"}]
[null,"3b","Suppression Panels (S/A) Price for 2 Inspections - 1 to incl panel",null,"N/A",null,{"v":0,"d":"$0.00"}]
[null,"3c","Flow & Tamper Valves (Annual-separate from FA test)",null,1,null,{"v":0,"d":"$0.00"}]
[null,"3d","Fire Pump ",null,"N/A",null,{"v":0,"d":"$0.00"}]
[null,"3e","Standpipe",null,"N/A",null,{"v":0,"d":"$0.00"}]
[null,"3f","Backflow",{"$nulls":3},{"v":0,"d":"$0.00"}]
[null,"3g","5th Year Internal Inspection (To be done Year 1)",{"$nulls":3},{"v":0,"d":"$0.00"}]
[{"$nulls":3},"Wet Systems Subtotal (Incl 5th Year Internal)",null,null,{"$f":"SUM(G30:G36)","v":{"v":0,"d":"$0.00"}}]
[{"$nulls":3},"Wet Systems Subtotal (No 5th Year Internal)",null,null,{"$f":"SUM(G30:G35)","v":{"v":0,"d":"$0.00"}}]
[]
[4,"Fire Extinguishers (Annual/3 Year/6 Year/12 Year)",null,null,4,null,{"v":0,"d":"$0.00"}]
[]
[5,"Emergency Exit Lights w/ Battery Backup (Annual)",null,null,9,null,{"v":0,"d":"$0.00"}]
[null,"5a Emergency Egress Lights w/Battery Back-up",null,null,0,null,{"v":0,"d":"$0.00"}]
[]
[{"$nulls":3},"Building Subtotal Year 1 - Incl Sensitivity & 5th Year Internal",null,null,{"$f":"SUM(G15,G26,G37,G40,G42,G43)","v":{"v":0,"d":"$0.00"}}]
[{"$nulls":3},"Building Subtotal Years 3/5 - Incl Sensitivity",null,null,{"$f":"SUM(G15,G26,G38,G40,G42,G43)","v":{"v":0,"d":"$0.00"}}]
[{"$nulls":3},"Building Subtotal Years 2/4",null,null,{"$f":"SUM(G16,G26,G38,G40,G42,G43)","v":{"v":0,"d":"$0.00"}}]

{"sheet":"SPR","index":44,"n_rows":47,"n_cols":7,"rows_kept":47}
[]
["Equipment to Bid for ITM - SPR - Spragins Hall",{"$nulls":3},"Back to Contents"]
[]
[1,"Fire Alarm (Annual)",{"$nulls":4},"Bid Price"]
[]
[null,"Device Counts",null,"Smoke Detectors",108,null,{"v":0,"d":"$0.00"}]
[{"$nulls":3},"Heat Detectors",4,null,{"v":0,"d":"$0.00"}]
[{"$nulls":3},"Duct Detectors",15,null,{"v":0,"d":"$0.00"}]
[{"$nulls":3},"Pull Stations",18,null,{"v":0,"d":"$0.00"}]
[{"$nulls":3},"Relay (Aux Control Functions)",3,null,{"v":0,"d":"$0.00"}]
[{"$nulls":3},"Waterflow",1,null,{"v":0,"d":"$0.00"}]
[{"$nulls":3},"Tamper Valves",1,null,{"v":0,"d":"$0.00"}]
[{"$nulls":3},"Kitchen Hood","N/A",null,{"v":0,"d":"$0.00"}]
[{"$nulls":3},"Notification Appliances","Bld",null,{"v":0,"d":"$0.00"}]
[{"$nulls":3},"Smoke Sensitivity Subtotal (Year 1/3/5)",{"$f":"SUM(E6+E8)","v":123},null,{"$f":"SUM(G6:G14)","v":{"v":0,"d":"$0.00"}}]
[{"$nulls":3},"FA Inspection - Non-Sensitivity Subtotal(Year 2/4)",null,null,{"$f":"SUM(G15*0.7010980775)","v":{"v":0,"d":"$0.00"}}]
[]
[]
[2,"Mass Notification (Semi-Annual)"]
[]
[{"$nulls":3},"FA Signals received at UAHPD",1,null,{"v":0,"d":"$0.00"}]
[null,"(7 msg x Bld w/MNS)",null,"All MNS messages received at Bld",7,null,{"v":0,"d":"$0.00"}]
[null,"(7 msg x Bld w/MNS)",null,"All MNS messages restore at UAHPD",7,null,{"v":0,"d":"$0.00"}]
[{"$nulls":3},"All Speakers Operational","Bld",null,{"v":0,"d":"$0.00"}]
[{"$nulls":3},"All Amber Strobes Operational","Bld",null,{"v":0,"d":"$0.00"}]
[{"$nulls":3},"Mass Notification Subtotal",null,null,{"$f":"SUM(G21:G25)","v":{"v":0,"d":"$0.00"}}]
[]
[3,"Sprinkler System (Annual/Semi-Annual as noted)"]
[]
[null,"3a","Kitchen Hoods (Semi-Annual)",null,"N/A",null,{"v":0,"d":"$0.00"}]
[null,"3b","Suppression Panels (S/A) Price for 2 Inspections - 1 to incl panel",null,"N/A",null,{"v":0,"d":"$0.00"}]
[null,"3c","Flow & Tamper Valves (Annual-separate from FA test)",null,1,null,{"v":0,"d":"$0.00"}]
[null,"3d","Fire Pump ",null,"N/A",null,{"v":0,"d":"$0.00"}]
[null,"3e","Standpipe",null,1,null,{"v":0,"d":"$0.00"}]
[null,"3f","Backflow",{"$nulls":3},{"v":0,"d":"$0.00"}]
[null,"3g","5th Year Internal Inspection (To be done Year 1)",{"$nulls":3},{"v":0,"d":"$0.00"}]
[{"$nulls":3},"Wet Systems Subtotal (Incl 5th Year Internal)",null,null,{"$f":"SUM(G30:G36)","v":{"v":0,"d":"$0.00"}}]
[{"$nulls":3},"Wet Systems Subtotal (No 5th Year Internal)",null,null,{"$f":"SUM(G30:G35)","v":{"v":0,"d":"$0.00"}}]
[]
[4,"Fire Extinguishers (Annual/3 Year/6 Year/12 Year)",null,null,21,null,{"v":0,"d":"$0.00"}]
[]
[5,"Emergency Exit Lights w/ Battery Backup (Annual)",null,null,26,null,{"v":0,"d":"$0.00"}]
[null,"5a Emergency Egress Lights w/Battery Back-up",{"$nulls":4},{"v":0,"d":"$0.00"}]
[]
[{"$nulls":3},"Building Subtotal Year 1 - Incl Sensitivity & 5th Year Internal",null,null,{"$f":"SUM(G15,G26,G37,G40,G42,G43)","v":{"v":0,"d":"$0.00"}}]
[{"$nulls":3},"Building Subtotal Years 3/5 - Incl Sensitivity",null,null,{"$f":"SUM(G15,G26,G38,G40,G42,G43)","v":{"v":0,"d":"$0.00"}}]
[{"$nulls":3},"Building Subtotal Years 2/4",null,null,{"$f":"SUM(G16,G26,G38,G40,G42,G43)","v":{"v":0,"d":"$0.00"}}]

{"sheet":"SSB","index":45,"n_rows":47,"n_cols":7,"rows_kept":47}
[]
["Equipment to Bid for ITM - SSB - Student Services Building",{"$nulls":3},"Back to Contents"]
[]
[1,"Fire Alarm (Annual)",{"$nulls":4},"Bid Price"]
[]
[null,"Device Counts",null,"Smoke Detectors",59,null,{"v":0,"d":"$0.00"}]
[{"$nulls":3},"Heat Detectors",26,null,{"v":0,"d":"$0.00"}]
[{"$nulls":3},"Duct Detectors",9,null,{"v":0,"d":"$0.00"}]
[{"$nulls":3},"Pull Stations",22,null,{"v":0,"d":"$0.00"}]
[{"$nulls":3},"Relay (Aux Control Functions)",17,null,{"v":0,"d":"$0.00"}]
[{"$nulls":3},"Waterflow",12,null,{"v":0,"d":"$0.00"}]
[{"$nulls":3},"Tamper Valves",12,null,{"v":0,"d":"$0.00"}]
[{"$nulls":3},"Kitchen Hood",1,null,{"v":0,"d":"$0.00"}]
[{"$nulls":3},"Notification Appliances","Bld",null,{"v":0,"d":"$0.00"}]
[{"$nulls":3},"Smoke Sensitivity Subtotal (Year 1/3/5)",{"$f":"SUM(E6+E8)","v":68},null,{"$f":"SUM(G6:G14)","v":{"v":0,"d":"$0.00"}}]
[{"$nulls":3},"FA Inspection - Non-Sensitivity Subtotal(Year 2/4)",null,null,{"$f":"SUM(G15*0.7010980775)","v":{"v":0,"d":"$0.00"}}]
[]
[]
[2,"Mass Notification (Semi-Annual)"]
[]
[{"$nulls":3},"FA Signals received at UAHPD",1,null,{"v":0,"d":"$0.00"}]
[null,"(7 msg x Bld w/MNS)",null,"All MNS messages received at Bld",7,null,{"v":0,"d":"$0.00"}]
[null,"(7 msg x Bld w/MNS)",null,"All MNS messages restore at UAHPD",7,null,{"v":0,"d":"$0.00"}]
[{"$nulls":3},"All Speakers Operational","Bld",null,{"v":0,"d":"$0.00"}]
[{"$nulls":3},"All Amber Strobes Operational","Bld",null,{"v":0,"d":"$0.00"}]
[{"$nulls":3},"Mass Notification Subtotal",null,null,{"$f":"SUM(G21:G25)","v":{"v":0,"d":"$0.00"}}]
[]
[3,"Sprinkler System (Annual/Semi-Annual as noted)"]
[]
[null,"3a","Kitchen Hoods (Semi-Annual) - Price for 2 Inspections",null,1,null,{"v":0,"d":"$0.00"}]
[null,"3b","Suppression Panels (S/A) Price for 2 Inspections - 1 to incl panel",null,1,null,{"v":0,"d":"$0.00"}]
[null,"3c","Flow & Tamper Valves (Annual-separate from FA test)",null,12,null,{"v":0,"d":"$0.00"}]
[null,"3d","Fire Pump ",null,"N/A",null,{"v":0,"d":"$0.00"}]
[null,"3e","Standpipe",null,1,null,{"v":0,"d":"$0.00"}]
[null,"3f","Backflow",null,1,null,{"v":0,"d":"$0.00"}]
[null,"3g","5th Year Internal Inspection (To be done Year 1)",{"$nulls":3},{"v":0,"d":"$0.00"}]
[{"$nulls":3},"Wet Systems Subtotal (Incl 5th Year Internal)",null,null,{"$f":"SUM(G30:G36)","v":{"v":0,"d":"$0.00"}}]
[{"$nulls":3},"Wet Systems Subtotal (No 5th Year Internal)",null,null,{"$f":"SUM(G30:G35)","v":{"v":0,"d":"$0.00"}}]
[]
[4,"Fire Extinguishers (Annual/3 Year/6 Year/12 Year)",null,null,36,null,{"v":0,"d":"$0.00"}]
[]
[5,"Emergency Exit Lights w/ Battery Backup (Annual)",{"$nulls":4},{"v":0,"d":"$0.00"}]
[null,"5a Emergency Egress Lights w/Battery Back-up",{"$nulls":4},{"v":0,"d":"$0.00"}]
[]
[{"$nulls":3},"Building Subtotal Year 1 - Incl Sensitivity & 5th Year Internal",null,null,{"$f":"SUM(G15,G26,G37,G40,G42,G43)","v":{"v":0,"d":"$0.00"}}]
[{"$nulls":3},"Building Subtotal Years 3/5 - Incl Sensitivity",null,null,{"$f":"SUM(G15,G26,G38,G40,G42,G43)","v":{"v":0,"d":"$0.00"}}]
[{"$nulls":3},"Building Subtotal Years 2/4",null,null,{"$f":"SUM(G16,G26,G38,G40,G42,G43)","v":{"v":0,"d":"$0.00"}}]

{"sheet":"SST","index":46,"n_rows":47,"n_cols":7,"rows_kept":47}
[]
["Equipment to Bid for ITM - SST - Shelby Center for Science and Technology",{"$nulls":3},"Back to Contents"]
[]
[1,"Fire Alarm (Annual)",{"$nulls":4},"Bid Price"]
[]
[null,"Device Counts",null,"Smoke Detectors",229,null,{"v":0,"d":"$0.00"}]
[{"$nulls":3},"Heat Detectors",16,null,{"v":0,"d":"$0.00"}]
[{"$nulls":3},"Duct Detectors",19,null,{"v":0,"d":"$0.00"}]
[{"$nulls":3},"Pull Stations",23,null,{"v":0,"d":"$0.00"}]
[{"$nulls":3},"Relay (Aux Control Functions)",11,null,{"v":0,"d":"$0.00"}]
[{"$nulls":3},"Waterflow",9,null,{"v":0,"d":"$0.00"}]
[{"$nulls":3},"Tamper Valves",21,null,{"v":0,"d":"$0.00"}]
[{"$nulls":3},"Kitchen Hood","N/A",null,{"v":0,"d":"$0.00"}]
[{"$nulls":3},"Notification Appliances","Bld",null,{"v":0,"d":"$0.00"}]
[{"$nulls":3},"Smoke Sensitivity Subtotal (Year 1/3/5)",{"$f":"SUM(E6+E8)","v":248},null,{"$f":"SUM(G6:G14)","v":{"v":0,"d":"$0.00"}}]
[{"$nulls":3},"FA Inspection - Non-Sensitivity Subtotal(Year 2/4)",null,null,{"$f":"SUM(G15*0.7010980775)","v":{"v":0,"d":"$0.00"}}]
[]
[]
[2,"Mass Notification (Semi-Annual)",null,null,"Currently No Mass Notification for this building"]
[]
[{"$nulls":3},"FA Signals received at UAHPD",1,null,{"v":0,"d":"$0.00"}]
[null,"(7 msg x Bld w/MNS)",null,"All MNS messages received at Bld","N/A",null,{"v":0,"d":"$0.00"}]
[null,"(7 msg x Bld w/MNS)",null,"All MNS messages restore at UAHPD","N/A",null,{"v":0,"d":"$0.00"}]
[{"$nulls":3},"All Speakers Operational","N/A",null,{"v":0,"d":"$0.00"}]
[{"$nulls":3},"All Amber Strobes Operational","N/A",null,{"v":0,"d":"$0.00"}]
[{"$nulls":3},"Mass Notification Subtotal",null,null,{"$f":"SUM(G21:G25)","v":{"v":0,"d":"$0.00"}}]
[]
[3,"Sprinkler System (Annual/Semi-Annual as noted)"]
[]
[null,"3a","Kitchen Hoods (Semi-Annual)",null,"N/A",null,{"v":0,"d":"$0.00"}]
[null,"3b","Suppression Panels (S/A) Price for 2 Inspections - 1 to incl panel",null,"N/A",null,{"v":0,"d":"$0.00"}]
[null,"3c","Flow & Tamper Valves (Annual-separate from FA test)",null,9,null,{"v":0,"d":"$0.00"}]
[null,"3d","Fire Pump ",null,1,null,{"v":0,"d":"$0.00"}]
[null,"3e","Standpipe",null,1,null,{"v":0,"d":"$0.00"}]
[null,"3f","Backflow",null,1,null,{"v":0,"d":"$0.00"}]
[null,"3g","5th Year Internal Inspection (To be done Year 1)",null,1,null,{"v":0,"d":"$0.00"}]
[{"$nulls":3},"Wet Systems Subtotal (Incl 5th Year Internal)",null,null,{"$f":"SUM(G30:G36)","v":{"v":0,"d":"$0.00"}}]
[{"$nulls":3},"Wet Systems Subtotal (No 5th Year Internal)",null,null,{"$f":"SUM(G30:G35)","v":{"v":0,"d":"$0.00"}}]
[]
[4,"Fire Extinguishers (Annual/3 Year/6 Year/12 Year)",null,null,70,null,{"v":0,"d":"$0.00"}]
[]
[5,"Emergency Exit Lights w/ Battery Backup (Annual)",{"$nulls":4},{"v":0,"d":"$0.00"}]
[null,"5a Emergency Egress Lights w/Battery Back-up",{"$nulls":4},{"v":0,"d":"$0.00"}]
[]
[{"$nulls":3},"Building Subtotal Year 1 - Incl Sensitivity & 5th Year Internal",null,null,{"$f":"SUM(G15,G26,G37,G40,G42,G43)","v":{"v":0,"d":"$0.00"}}]
[{"$nulls":3},"Building Subtotal Years 3/5 - Incl Sensitivity",null,null,{"$f":"SUM(G15,G26,G38,G40,G42,G43)","v":{"v":0,"d":"$0.00"}}]
[{"$nulls":3},"Building Subtotal Years 2/4",null,null,{"$f":"SUM(G16,G26,G38,G40,G42,G43)","v":{"v":0,"d":"$0.00"}}]

{"sheet":"SWI","index":47,"n_rows":47,"n_cols":7,"rows_kept":47}
[]
["Equipment to Bid for ITM - SWI - Severe Weather Institute",{"$nulls":3},"Back to Contents"]
[]
[1,"Fire Alarm (Annual)",{"$nulls":4},"Bid Price"]
[]
[null,"Device Counts",null,"Smoke Detectors",15,null,{"v":0,"d":"$0.00"}]
[{"$nulls":3},"Heat Detectors",20,null,{"v":0,"d":"$0.00"}]
[{"$nulls":3},"Duct Detectors",0,null,{"v":0,"d":"$0.00"}]
[{"$nulls":3},"Pull Stations",8,null,{"v":0,"d":"$0.00"}]
[{"$nulls":3},"Relay (Aux Control Functions)",12,null,{"v":0,"d":"$0.00"}]
[{"$nulls":3},"Waterflow",2,null,{"v":0,"d":"$0.00"}]
[{"$nulls":3},"Tamper Valves",4,null,{"v":0,"d":"$0.00"}]
[{"$nulls":3},"Kitchen Hood","N/A",null,{"v":0,"d":"$0.00"}]
[{"$nulls":3},"Notification Appliances","Bld",null,{"v":0,"d":"$0.00"}]
[{"$nulls":3},"Smoke Sensitivity Subtotal (Year 1/3/5)",{"$f":"SUM(E6+E8)","v":15},null,{"$f":"SUM(G6:G14)","v":{"v":0,"d":"$0.00"}}]
[{"$nulls":3},"FA Inspection - Non-Sensitivity Subtotal(Year 2/4)",null,null,{"$f":"SUM(G15*0.7010980775)","v":{"v":0,"d":"$0.00"}}]
[]
[]
[2,"Mass Notification (Semi-Annual)"]
[]
[{"$nulls":3},"FA Signals received at UAHPD",1,null,{"v":0,"d":"$0.00"}]
[null,"(7 msg x Bld w/MNS)",null,"All MNS messages received at Bld",7,null,{"v":0,"d":"$0.00"}]
[null,"(7 msg x Bld w/MNS)",null,"All MNS messages restore at UAHPD",7,null,{"v":0,"d":"$0.00"}]
[{"$nulls":3},"All Speakers Operational","Bld",null,{"v":0,"d":"$0.00"}]
[{"$nulls":3},"All Amber Strobes Operational","Bld",null,{"v":0,"d":"$0.00"}]
[{"$nulls":3},"Mass Notification Subtotal",null,null,{"$f":"SUM(G21:G25)","v":{"v":0,"d":"$0.00"}}]
[]
[3,"Sprinkler System (Annual/Semi-Annual as noted)"]
[]
[null,"3a","Kitchen Hoods (Semi-Annual)",null,"N/A",null,{"v":0,"d":"$0.00"}]
[null,"3b","Suppression Panels (S/A) Price for 2 Inspections - 1 to incl panel",null,"N/A",null,{"v":0,"d":"$0.00"}]
[null,"3c","Flow & Tamper Valves (Annual-separate from FA test)",null,2,null,{"v":0,"d":"$0.00"}]
[null,"3d","Fire Pump ",null,"N/A",null,{"v":0,"d":"$0.00"}]
[null,"3e","Standpipe",null,"N/A",null,{"v":0,"d":"$0.00"}]
[null,"3f","Backflow",null,1,null,{"v":0,"d":"$0.00"}]
[null,"3g","5th Year Internal Inspection (To be done Year 1)",null,1,null,{"v":0,"d":"$0.00"}]
[{"$nulls":3},"Wet Systems Subtotal (Incl 5th Year Internal)",null,null,{"$f":"SUM(G30:G36)","v":{"v":0,"d":"$0.00"}}]
[{"$nulls":3},"Wet Systems Subtotal (No 5th Year Internal)",null,null,{"$f":"SUM(G30:G35)","v":{"v":0,"d":"$0.00"}}]
[]
[4,"Fire Extinguishers (Annual/3 Year/6 Year/12 Year)",null,null,13,null,{"v":0,"d":"$0.00"}]
[]
[5,"Emergency Exit Lights w/ Battery Backup (Annual)",{"$nulls":4},{"v":0,"d":"$0.00"}]
[null,"5a Emergency Egress Lights w/Battery Back-up",{"$nulls":4},{"v":0,"d":"$0.00"}]
[]
[{"$nulls":3},"Building Subtotal Year 1 - Incl Sensitivity & 5th Year Internal",null,null,{"$f":"SUM(G15,G26,G37,G40,G42,G43)","v":{"v":0,"d":"$0.00"}}]
[{"$nulls":3},"Building Subtotal Years 3/5 - Incl Sensitivity",null,null,{"$f":"SUM(G15,G26,G38,G40,G42,G43)","v":{"v":0,"d":"$0.00"}}]
[{"$nulls":3},"Building Subtotal Years 2/4",null,null,{"$f":"SUM(G16,G26,G38,G40,G42,G43)","v":{"v":0,"d":"$0.00"}}]

{"sheet":"UFC","index":48,"n_rows":47,"n_cols":7,"rows_kept":47}
[]
["Equipment to Bid for ITM - UFC - University Fitness Center",{"$nulls":3},"Back to Contents"]
[]
[1,"Fire Alarm (Annual)",{"$nulls":4},"Bid Price"]
[]
[null,"Device Counts",null,"Smoke Detectors",17,null,{"v":0,"d":"$0.00"}]
[{"$nulls":3},"Heat Detectors",5,null,{"v":0,"d":"$0.00"}]
[{"$nulls":3},"Duct Detectors",20,null,{"v":0,"d":"$0.00"}]
[{"$nulls":3},"Pull Stations",20,null,{"v":0,"d":"$0.00"}]
[{"$nulls":3},"Relay (Aux Control Functions)",17,null,{"v":0,"d":"$0.00"}]
[{"$nulls":3},"Waterflow",2,null,{"v":0,"d":"$0.00"}]
[{"$nulls":3},"Tamper Valves",5,null,{"v":0,"d":"$0.00"}]
[{"$nulls":3},"Kitchen Hood","N/A",null,{"v":0,"d":"$0.00"}]
[{"$nulls":3},"Notification Appliances","Bld",null,{"v":0,"d":"$0.00"}]
[{"$nulls":3},"Smoke Sensitivity Subtotal (Year 1/3/5)",{"$f":"SUM(E6+E8)","v":37},null,{"$f":"SUM(G6:G14)","v":{"v":0,"d":"$0.00"}}]
[{"$nulls":3},"FA Inspection - Non-Sensitivity Subtotal(Year 2/4)",null,null,{"$f":"SUM(G15*0.7010980775)","v":{"v":0,"d":"$0.00"}}]
[]
[]
[2,"Mass Notification (Semi-Annual)"]
[]
[{"$nulls":3},"FA Signals received at UAHPD",1,null,{"v":0,"d":"$0.00"}]
[null,"(7 msg x Bld w/MNS)",null,"All MNS messages received at Bld",7,null,{"v":0,"d":"$0.00"}]
[null,"(7 msg x Bld w/MNS)",null,"All MNS messages restore at UAHPD",7,null,{"v":0,"d":"$0.00"}]
[{"$nulls":3},"All Speakers Operational","Bld",null,{"v":0,"d":"$0.00"}]
[{"$nulls":3},"All Amber Strobes Operational","Bld",null,{"v":0,"d":"$0.00"}]
[{"$nulls":3},"Mass Notification Subtotal",null,null,{"$f":"SUM(G21:G25)","v":{"v":0,"d":"$0.00"}}]
[]
[3,"Sprinkler System (Annual/Semi-Annual as noted)"]
[]
[null,"3a","Kitchen Hoods (Semi-Annual)",null,"N/A",null,{"v":0,"d":"$0.00"}]
[null,"3b","Suppression Panels (S/A) Price for 2 Inspections - 1 to incl panel",null,"N/A",null,{"v":0,"d":"$0.00"}]
[null,"3c","Flow & Tamper Valves (Annual-separate from FA test)",null,2,null,{"v":0,"d":"$0.00"}]
[null,"3d","Fire Pump ",null,"N/A",null,{"v":0,"d":"$0.00"}]
[null,"3e","Standpipe",null,"N/A",null,{"v":0,"d":"$0.00"}]
[null,"3f","Backflow",{"$nulls":3},{"v":0,"d":"$0.00"}]
[null,"3g","5th Year Internal Inspection (To be done Year 1)",null,1,null,{"v":0,"d":"$0.00"}]
[{"$nulls":3},"Wet Systems Subtotal (Incl 5th Year Internal)",null,null,{"$f":"SUM(G30:G36)","v":{"v":0,"d":"$0.00"}}]
[{"$nulls":3},"Wet Systems Subtotal (No 5th Year Internal)",null,null,{"$f":"SUM(G30:G35)","v":{"v":0,"d":"$0.00"}}]
[]
[4,"Fire Extinguishers (Annual/3 Year/6 Year/12 Year)",null,null,13,null,{"v":0,"d":"$0.00"}]
[]
[5,"Emergency Exit Lights w/ Battery Backup (Annual)",null,null,47,null,{"v":0,"d":"$0.00"}]
[null,"5a Emergency Egress Lights w/Battery Back-up",{"$nulls":4},{"v":0,"d":"$0.00"}]
[]
[{"$nulls":3},"Building Subtotal Year 1 - Incl Sensitivity & 5th Year Internal",null,null,{"$f":"SUM(G15,G26,G37,G40,G42,G43)","v":{"v":0,"d":"$0.00"}}]
[{"$nulls":3},"Building Subtotal Years 3/5 - Incl Sensitivity",null,null,{"$f":"SUM(G15,G26,G38,G40,G42,G43)","v":{"v":0,"d":"$0.00"}}]
[{"$nulls":3},"Building Subtotal Years 2/4",null,null,{"$f":"SUM(G16,G26,G38,G40,G42,G43)","v":{"v":0,"d":"$0.00"}}]

{"sheet":"VBH","index":49,"n_rows":47,"n_cols":7,"rows_kept":47}
[]
["Equipment to Bid for ITM - VBH - Von Braun Research Hall",{"$nulls":3},"Back to Contents"]
[]
[1,"Fire Alarm (Annual)",{"$nulls":4},"Bid Price"]
[]
[null,"Device Counts",null,"Smoke Detectors",140,null,{"v":0,"d":"$0.00"}]
[{"$nulls":3},"Heat Detectors",53,null,{"v":0,"d":"$0.00"}]
[{"$nulls":3},"Duct Detectors",19,null,{"v":0,"d":"$0.00"}]
[{"$nulls":3},"Pull Stations",16,null,{"v":0,"d":"$0.00"}]
[{"$nulls":3},"Relay (Aux Control Functions)",6,null,{"v":0,"d":"$0.00"}]
[{"$nulls":3},"Waterflow",0,null,{"v":0,"d":"$0.00"}]
[{"$nulls":3},"Tamper Valves",0,null,{"v":0,"d":"$0.00"}]
[{"$nulls":3},"Kitchen Hood","N/A",null,{"v":0,"d":"$0.00"}]
[{"$nulls":3},"Notification Appliances","Bld",null,{"v":0,"d":"$0.00"}]
[{"$nulls":3},"Smoke Sensitivity Subtotal (Year 1/3/5)",{"$f":"SUM(E6+E8)","v":159},null,{"$f":"SUM(G6:G14)","v":{"v":0,"d":"$0.00"}}]
[{"$nulls":3},"FA Inspection - Non-Sensitivity Subtotal(Year 2/4)",null,null,{"$f":"SUM(G15*0.7010980775)","v":{"v":0,"d":"$0.00"}}]
[]
[]
[2,"Mass Notification (Semi-Annual)",null,null,"Currently No Mass Notification for this building"]
[]
[{"$nulls":3},"FA Signals received at UAHPD",1,null,{"v":0,"d":"$0.00"}]
[null,"(7 msg x Bld w/MNS)",null,"All MNS messages received at Bld","N/A",null,{"v":0,"d":"$0.00"}]
[null,"(7 msg x Bld w/MNS)",null,"All MNS messages restore at UAHPD","N/A",null,{"v":0,"d":"$0.00"}]
[{"$nulls":3},"All Speakers Operational","N/A",null,{"v":0,"d":"$0.00"}]
[{"$nulls":3},"All Amber Strobes Operational","N/A",null,{"v":0,"d":"$0.00"}]
[{"$nulls":3},"Mass Notification Subtotal",null,null,{"$f":"SUM(G21:G25)","v":{"v":0,"d":"$0.00"}}]
[]
[3,"Sprinkler System (Annual/Semi-Annual as noted)"]
[]
[null,"3a","Kitchen Hoods (Semi-Annual)",null,"N/A",null,{"v":0,"d":"$0.00"}]
[null,"3b","Suppression Panels (S/A) Price for 2 Inspections - 1 to incl panel",null,2,null,{"v":0,"d":"$0.00"}]
[null,"3c","Flow & Tamper Valves (Annual-separate from FA test)",null,"N/A",null,{"v":0,"d":"$0.00"}]
[null,"3d","Fire Pump ",null,"N/A",null,{"v":0,"d":"$0.00"}]
[null,"3e","Standpipe",null,"N/A",null,{"v":0,"d":"$0.00"}]
[null,"3f","Backflow",{"$nulls":3},{"v":0,"d":"$0.00"}]
[null,"3g","5th Year Internal Inspection (To be done Year 1)",{"$nulls":3},{"v":0,"d":"$0.00"}]
[{"$nulls":3},"Wet Systems Subtotal (Incl 5th Year Internal)",null,null,{"$f":"SUM(G30:G36)","v":{"v":0,"d":"$0.00"}}]
[{"$nulls":3},"Wet Systems Subtotal (No 5th Year Internal)",null,null,{"$f":"SUM(G30:G35)","v":{"v":0,"d":"$0.00"}}]
[]
[4,"Fire Extinguishers (Annual/3 Year/6 Year/12 Year)",null,null,67,null,{"v":0,"d":"$0.00"}]
[]
[5,"Emergency Exit Lights w/ Battery Backup (Annual)",null,null,32,null,{"v":0,"d":"$0.00"}]
[null,"5a Emergency Egress Lights w/Battery Back-up",null,null,39,null,{"v":0,"d":"$0.00"}]
[]
[{"$nulls":3},"Building Subtotal Year 1 - Incl Sensitivity & 5th Year Internal",null,null,{"$f":"SUM(G15,G26,G37,G40,G42,G43)","v":{"v":0,"d":"$0.00"}}]
[{"$nulls":3},"Building Subtotal Years 3/5 - Incl Sensitivity",null,null,{"$f":"SUM(G15,G26,G38,G40,G42,G43)","v":{"v":0,"d":"$0.00"}}]
[{"$nulls":3},"Building Subtotal Years 2/4",null,null,{"$f":"SUM(G16,G26,G38,G40,G42,G43)","v":{"v":0,"d":"$0.00"}}]

{"sheet":"WIL","index":50,"n_rows":47,"n_cols":7,"rows_kept":47}
[]
["Equipment to Bid for ITM - WIL - Wilson Hall",{"$nulls":3},"Back to Contents"]
[]
[1,"Fire Alarm (Annual)",{"$nulls":4},"Bid Price"]
[]
[null,"Device Counts",null,"Smoke Detectors",135,null,{"v":0,"d":"$0.00"}]
[{"$nulls":3},"Heat Detectors",12,null,{"v":0,"d":"$0.00"}]
[{"$nulls":3},"Duct Detectors",17,null,{"v":0,"d":"$0.00"}]
[{"$nulls":3},"Pull Stations",27,null,{"v":0,"d":"$0.00"}]
[{"$nulls":3},"Relay (Aux Control Functions)",34,null,{"v":0,"d":"$0.00"}]
[{"$nulls":3},"Waterflow",8,null,{"v":0,"d":"$0.00"}]
[{"$nulls":3},"Tamper Valves",8,null,{"v":0,"d":"$0.00"}]
[{"$nulls":3},"Kitchen Hood","N/A",null,{"v":0,"d":"$0.00"}]
[{"$nulls":3},"Notification Appliances","Bld",null,{"v":0,"d":"$0.00"}]
[{"$nulls":3},"Smoke Sensitivity Subtotal (Year 1/3/5)",{"$f":"SUM(E6+E8)","v":152},null,{"$f":"SUM(G6:G14)","v":{"v":0,"d":"$0.00"}}]
[{"$nulls":3},"FA Inspection - Non-Sensitivity Subtotal(Year 2/4)",null,null,{"$f":"SUM(G15*0.7010980775)","v":{"v":0,"d":"$0.00"}}]
[]
[]
[2,"Mass Notification (Semi-Annual)"]
[]
[{"$nulls":3},"FA Signals received at UAHPD",1,null,{"v":0,"d":"$0.00"}]
[null,"(7 msg x Bld w/MNS)",null,"All MNS messages received at Bld",7,null,{"v":0,"d":"$0.00"}]
[null,"(7 msg x Bld w/MNS)",null,"All MNS messages restore at UAHPD",7,null,{"v":0,"d":"$0.00"}]
[{"$nulls":3},"All Speakers Operational","Bld",null,{"v":0,"d":"$0.00"}]
[{"$nulls":3},"All Amber Strobes Operational","Bld",null,{"v":0,"d":"$0.00"}]
[{"$nulls":3},"Mass Notification Subtotal",null,null,{"$f":"SUM(G21:G25)","v":{"v":0,"d":"$0.00"}}]
[]
[3,"Sprinkler System (Annual/Semi-Annual as noted)"]
[]
[null,"3a","Kitchen Hoods (Semi-Annual)",null,"N/A",null,{"v":0,"d":"$0.00"}]
[null,"3b","Suppression Panels (S/A) Price for 2 Inspections - 1 to incl panel",null,"N/A",null,{"v":0,"d":"$0.00"}]
[null,"3c","Flow & Tamper Valves (Annual-separate from FA test)",null,8,null,{"v":0,"d":"$0.00"}]
[null,"3d","Fire Pump ",null,"N/A",null,{"v":0,"d":"$0.00"}]
[null,"3e","Standpipe",null,"N/A",null,{"v":0,"d":"$0.00"}]
[null,"3f","Backflow",{"$nulls":3},{"v":0,"d":"$0.00"}]
[null,"3g","5th Year Internal Inspection (To be done Year 1)",null,1,null,{"v":0,"d":"$0.00"}]
[{"$nulls":3},"Wet Systems Subtotal (Incl 5th Year Internal)",null,null,{"$f":"SUM(G30:G36)","v":{"v":0,"d":"$0.00"}}]
[{"$nulls":3},"Wet Systems Subtotal (No 5th Year Internal)",null,null,{"$f":"SUM(G30:G35)","v":{"v":0,"d":"$0.00"}}]
[]
[4,"Fire Extinguishers (Annual/3 Year/6 Year/12 Year)",null,null,31,null,{"v":0,"d":"$0.00"}]
[]
[5,"Emergency Exit Lights w/ Battery Backup (Annual)",{"$nulls":4},{"v":0,"d":"$0.00"}]
[null,"5a Emergency Egress Lights w/Battery Back-up",{"$nulls":4},{"v":0,"d":"$0.00"}]
[]
[{"$nulls":3},"Building Subtotal Year 1 - Incl Sensitivity & 5th Year Internal",null,null,{"$f":"SUM(G15,G26,G37,G40,G42,G43)","v":{"v":0,"d":"$0.00"}}]
[{"$nulls":3},"Building Subtotal Years 3/5 - Incl Sensitivity",null,null,{"$f":"SUM(G15,G26,G38,G40,G42,G43)","v":{"v":0,"d":"$0.00"}}]
[{"$nulls":3},"Building Subtotal Years 2/4",null,null,{"$f":"SUM(G16,G26,G38,G40,G42,G43)","v":{"v":0,"d":"$0.00"}}]